Supplier ID,Supplier Name,Service,Cost Centre,Expenditure Category,Total,Date Paid,Transaction ID
,1&1 INTERNET LIMITED,Information Technology,Infomation Technology Division,Computer Software Expenses,9.94,20/01/2014 ,5065
00077635,2BM Limited,Building Services,Elizabeth House,Private Contractors,"1,782.00",15/08/2013,vm82127194
00077635,2BM Limited,Building Services,Elizabeth House,Private Contractors,"1,188.00",28/11/2013,rk82125533
00077635,2BM Limited,Building Services,Elizabeth House,Private Contractors,"1,188.00",23/12/2013,rk82125579
00129224,3MS Gold Services,Current Schemes In Progress,Disab.Fac.Grants(Mandatory),Renovation Grants (Capital),"4,110.00",10/03/2014,rk84146249
00175126,A & A Town Planning Ltd,Regulatory Services,Shottery Planning Appeal,Professional Fees,426.25,20/02/2014,wn84133949
00171175,A Line Coaches Coventry Ltd,Local Economy/Tourism,BOO-Games Project,Other Third Party Payments,160.00,26/09/2013,rk84145453
00171175,A Line Coaches Coventry Ltd,Local Economy/Tourism,BOO-Games Project,Other Third Party Payments,90.00,26/09/2013,rk84145454
00171175,A Line Coaches Coventry Ltd,Local Economy/Tourism,BOO-Games Project,Other Third Party Payments,160.00,26/09/2013,rk84145455
00041069,A W Electrical Services,Environmental Health,Pathlow Gypsy Caravan Site,Repairs & Maintenance Expenses,312.85,29/04/2013,rk84144597
00041069,A W Electrical Services,Leisure Centres,Play Areas (Maint.),Repairs & Maintenance Expenses,120.00,28/05/2013,rk84144737
00041069,A W Electrical Services,Environmental Health,Pathlow Gypsy Caravan Site,Repairs & Maintenance Expenses,361.48,01/07/2013,rk84144895
00041069,A W Electrical Services,Leisure Centres,Studley Leisure Centre,Repairs & Maintenance Expenses,615.00,22/07/2013,rk82125406
00041069,A W Electrical Services,Leisure Centres,Studley Leisure Centre,Repairs & Maintenance Expenses,282.00,15/08/2013,rk84145157
00041069,A W Electrical Services,Leisure Centres,Rec Ground Paddling Pool,Repairs & Maintenance Expenses,90.00,03/10/2013,rk84145497
00041069,A W Electrical Services,Leisure Centres,Studley Leisure Centre,Repairs & Maintenance Expenses,90.00,07/10/2013,rk84145509
00041069,A W Electrical Services,Leisure Centres,Studley Leisure Centre,Repairs & Maintenance Expenses,367.05,14/11/2013,rk84145702
00041069,A W Electrical Services,Leisure Centres,Studley Leisure Centre,Repairs & Maintenance Expenses,90.00,16/01/2014,rk84146001
00041069,A W Electrical Services,Leisure Centres,Studley Leisure Centre,Repairs & Maintenance Expenses,90.00,23/01/2014,rk84146047
00041069,A W Electrical Services,Leisure Centres,Studley Leisure Centre,Repairs & Maintenance Expenses,"3,422.97",27/03/2014,rk84146331
00041069,A W Electrical Services,Leisure Centres,Studley Leisure Centre,Repairs & Maintenance Expenses,337.53,31/03/2014,rk84146343
00158538,A&C Weber UK Ltd,Refuse Collection,Domestic Collections,Private Contractors,"13,544.14",07/11/2013,vm82127303
,A2B OFFICE TECHNOL,Off-Street Parking,Car Parks Expenses,Office Expenses,54.79,17/10/2013 ,4625
00122043,AAC Systems,Information Technology,Information Technology Division,Computing Expenses,"3,864.00",01/08/2013,rk82125416
,ABBEY STATIONERY P,Licensing,Licensing&Reg. Exps Public Protection,Materials Expenses,46.44,22/11/2013 ,4848
00135030,ABC Leisure,Sports Development,Sports Development,Other Third Party Payments,713.00,15/08/2013,vm82127214
00119823,Abritas Ltd,Housing,Choice Based Lettings,Computing Expenses,"6,424.80",22/04/2013,wn84133209
00119823,Abritas Ltd,Current Schemes In Progress,Choice Based Lettings,Other Capital Grant Expenses,"1,047.60",19/09/2013,wn84133553
00119823,Abritas Ltd,Housing,Choice Based Lettings,Computing Expenses,"6,847.20",24/10/2013,rk84145583
00119823,Abritas Ltd,Information Technology,Information Technology Division,Computing Expenses,"6,127.20",24/10/2013,rk84145583
00148250,AC First Aid,On Street Parking,On Street,Indirect Employee Expenses,175.00,21/11/2013,vm84133634
00016858,Accord Lets,Housing,Homelessness Prevention Fund,Other Third Party Payments,387.50,14/11/2013,wn84133708
00016858,Accord Lets,Housing,Homelessness Prevention Fund,Other Third Party Payments,"1,162.50",14/11/2013,wn84133709
00127394,Accordial Manufacturing Ltd,Building Services,Elizabeth House,Repairs & Maintenance Expenses,600.00,20/05/2013,rk84144678
00160542,Ace Fire & Security,Current Schemes In Progress,Stratford (SLVC),Capital Works,"14,640.00",18/04/2013,vm82127095
00160542,Ace Fire & Security,Current Schemes In Progress,Stratford (SLVC),Capital Works,"5,480.40",18/04/2013,vm84132707
00160542,Ace Fire & Security,Current Schemes In Progress,Stratford (SLVC),Capital Works,"8,923.20",15/07/2013,vm84133072
00094388,Ace Signs,CDC Chief Executive,Civic Expenses,Miscellaneous Expenses,63.50,07/05/2013,yq84119755
,ACORN VETERINARY CTR,Environmental Health,CV08 AYV Health Van,Miscellaneous Capital Expenditure,73.14,13/05/2013 ,3970
,ACORN VETERINARY CTR,Environmental Health,CV08 AYV Health Van,Miscellaneous Capital Expenditure,133.08,10/06/2013 ,4091
,ACORN VETERINARY CTR,Environmental Health,CV08 AYV Health Van,Miscellaneous Capital Expenditure,188.45,08/08/2013 ,4350
,ACORN VETERINARY CTR,Environmental Health,CV08 AYV Health Van,Miscellaneous Capital Expenditure,23.54,07/10/2013 ,4609
,ACORN VETERINARY CTR,Environmental Health,CV08 AYV Health Van,Miscellaneous Capital Expenditure,98.01,09/10/2013 ,4610
00136990,Act on Energy,Environmental Initiatives,Act On Energy,Other Grants & Contrib Income,"4,000.00",13/05/2013,rk84144645
00136990,Act on Energy,Environmental Initiatives,Act On Energy,Other Third Party Payments,"16,380.00",16/09/2013,rk84145315
00136990,Act on Energy,Environmental Initiatives,Act On Energy,Other Third Party Payments,"1,020.00",31/10/2013,rk84145635
00002383,Action For Market Towns,Current Schemes In Progress,Southam Regeneration (S106),Other Capital Expenses,570.00,25/04/2013,vm84132716
00002383,Action For Market Towns,HR and Training,"Business, Housing & Revenues Training",Indirect Employee Expenses,55.00,04/11/2013,vm82127298
00002383,Action For Market Towns,Local Economy/Tourism,Economic Development,Other Third Party Payments,"3,780.00",13/03/2014,vm82127435
00002383,Action For Market Towns,Community Leadership,Grants - General,Grants & Subscription Expenses,486.00,27/03/2014,vm84133997
00135865,Active Mobility,Off-Street Parking,Shopmobility,Repairs & Maintenance Expenses,"1,789.20",12/12/2013,vm82127339
00135865,Active Mobility,Off-Street Parking,Shopmobility,Machinery & Equipment Expenses,"6,444.00",31/03/2014,vm82127451
00092827,Acumen Business Services Ltd,Corporate Budget,Change Transformation Fund,Miscellaneous Expenses,"8,653.44",04/07/2013,rk84144925
00092827,Acumen Business Services Ltd,Corporate Budget,Change Transformation Fund,Miscellaneous Expenses,"2,635.20",04/07/2013,rk84144927
00092827,Acumen Business Services Ltd,Information Technology,Information Technology Division,Computing Expenses,"3,662.16",03/02/2014,rk84146099
00169297,Adem Limited,Regulatory Services,Dev. Control General,Machinery & Equipment Expenses,594.00,12/08/2013,wn84133484
00169297,Adem Limited,Building Control,Building Control Service (Fee),Machinery & Equipment Expenses,495.00,14/11/2013,wn82116926
00169297,Adem Limited,Regulatory Services,Dev. Control General,Machinery & Equipment Expenses,"1,485.00",14/11/2013,wn82116926
00019431,ADSO,Corp. And Democratic Core,S.D.C. Meetings - Elected Members,Expenses,72.00,20/05/2013,yq84119764
00019431,ADSO,HR and Training,Corporate Support Training,Expenses,150.00,15/08/2013,yq84119950
00019431,ADSO,HR and Training,Corporate Support Training,Expenses,72.00,30/09/2013,yq84119975
00019431,ADSO,HR and Training,Corporate Support Training,Expenses,72.00,06/03/2014,yq84120068
00003243,Adt Fire & Security,C.C.T.V.,CCTV General Operation,Private Contractors,"2,311.78",29/04/2013,rk82125308
00003243,Adt Fire & Security,Building Services,Southam Area Office,Repairs & Maintenance Expenses,790.48,20/05/2013,rk84144633
00003243,Adt Fire & Security,C.C.T.V.,CCTV General Operation,Private Contractors,"2,311.78",20/05/2013,rk82125331
00003243,Adt Fire & Security,Building Services,Elizabeth House,Repairs & Maintenance Expenses,"5,839.20",24/06/2013,rk82125377
00003243,Adt Fire & Security,Building Services,Elizabeth House,Repairs & Maintenance Expenses,"-1,838.20",24/06/2013,rk83116475
00003243,Adt Fire & Security,Building Services,Elizabeth House,Repairs & Maintenance Expenses,925.33,24/06/2013,rk84144858
00003243,Adt Fire & Security,C.C.T.V.,CCTV General Operation,Private Contractors,"2,311.78",24/06/2013,rk82125376
00003243,Adt Fire & Security,Building Services,Alcester Area Office,Repairs & Maintenance Expenses,331.54,15/07/2013,rk84144969
00003243,Adt Fire & Security,Building Services,Elizabeth House,Repairs & Maintenance Expenses,163.20,15/07/2013,rk82125398
00003243,Adt Fire & Security,Building Services,Elizabeth House,Repairs & Maintenance Expenses,"1,928.34",15/07/2013,rk84144970
00003243,Adt Fire & Security,Building Services,Elizabeth House,Repairs & Maintenance Expenses,"1,337.52",15/07/2013,rk84144971
00003243,Adt Fire & Security,C.C.T.V.,CCTV General Operation,Private Contractors,"2,311.78",18/07/2013,rk84144997
00003243,Adt Fire & Security,C.C.T.V.,CCTV General Operation,Private Contractors,"2,311.78",15/08/2013,rk82125428
00003243,Adt Fire & Security,Building Services,Elizabeth House,Repairs & Maintenance Expenses,300.00,22/08/2013,rk84145185
00003243,Adt Fire & Security,Building Services,Elizabeth House,Repairs & Maintenance Expenses,"1,250.40",09/09/2013,rk84145287
00003243,Adt Fire & Security,C.C.T.V.,CCTV General Operation,Private Contractors,"2,311.78",19/09/2013,rk82125465
00003243,Adt Fire & Security,Building Services,Elizabeth House,Repairs & Maintenance Expenses,954.01,26/09/2013,rk84145362
00003243,Adt Fire & Security,Building Services,Elizabeth House,Repairs & Maintenance Expenses,134.40,10/10/2013,rk84145522
00003243,Adt Fire & Security,C.C.T.V.,CCTV General Operation,Private Contractors,"4,672.20",10/10/2013,rk82125484
00003243,Adt Fire & Security,C.C.T.V.,CCTV General Operation,Private Contractors,"2,311.78",24/10/2013,rk84145587
00003243,Adt Fire & Security,Building Services,Elizabeth House,Repairs & Maintenance Expenses,134.40,28/10/2013,rk84145594
00003243,Adt Fire & Security,C.C.T.V.,CCTV General Operation,Private Contractors,"2,311.78",14/11/2013,rk82125526
00003243,Adt Fire & Security,Building Services,Elizabeth House,Repairs & Maintenance Expenses,42.00,21/11/2013,rk82125539
00003243,Adt Fire & Security,Building Services,Elizabeth House,Repairs & Maintenance Expenses,81.60,21/11/2013,rk84145741
00003243,Adt Fire & Security,C.C.T.V.,CCTV General Operation,Private Contractors,"2,311.78",07/01/2014,rk82125613
00003243,Adt Fire & Security,C.C.T.V.,CCTV General Operation,Private Contractors,"1,288.80",07/01/2014,rk84145956
00003243,Adt Fire & Security,Current Schemes In Progress,CCTV Shipston Road (Waitrose) (S106),Acquisition Of Plant/Machinery,"26,450.40",07/01/2014,rk82125614
00003243,Adt Fire & Security,Building Services,Elizabeth House,Repairs & Maintenance Expenses,341.60,13/01/2014,rk84145978
00003243,Adt Fire & Security,Building Services,Elizabeth House,Repairs & Maintenance Expenses,309.59,13/01/2014,rk84145979
00003243,Adt Fire & Security,Building Services,Elizabeth House Executive Suite Operatio,Repairs & Maintenance Expenses,12.66,13/01/2014,rk84145978
00003243,Adt Fire & Security,Building Services,Elizabeth House Executive Suite Operatio,Repairs & Maintenance Expenses,11.46,13/01/2014,rk84145979
00003243,Adt Fire & Security,Building Services,Elizabeth House Ground Floor Area,Repairs & Maintenance Expenses,67.48,13/01/2014,rk84145978
00003243,Adt Fire & Security,Building Services,Elizabeth House Ground Floor Area,Repairs & Maintenance Expenses,61.15,13/01/2014,rk84145979
00003243,Adt Fire & Security,Off-Street Parking,Car Parks Expenses,Repairs & Maintenance Expenses,429.29,16/01/2014,rk84145993
00003243,Adt Fire & Security,On Street Parking,On Street,Repairs & Maintenance Expenses,"1,001.69",16/01/2014,rk84145993
00003243,Adt Fire & Security,C.C.T.V.,CCTV General Operation,Private Contractors,"2,311.78",23/01/2014,rk82125628
00003243,Adt Fire & Security,Building Services,Elizabeth House,Repairs & Maintenance Expenses,772.75,30/01/2014,rk84146068
00003243,Adt Fire & Security,Building Services,Elizabeth House Executive Suite Operatio,Repairs & Maintenance Expenses,28.62,30/01/2014,rk84146068
00003243,Adt Fire & Security,Building Services,Elizabeth House Ground Floor Area,Repairs & Maintenance Expenses,152.64,30/01/2014,rk84146068
00003243,Adt Fire & Security,C.C.T.V.,CCTV General Operation,Private Contractors,"2,311.78",10/02/2014,rk82125662
00003243,Adt Fire & Security,Off-Street Parking,Bridgeway Car Park,Repairs & Maintenance Expenses,156.00,03/03/2014,rk84146219
00003243,Adt Fire & Security,C.C.T.V.,CCTV General Operation,Private Contractors,"2,311.78",17/03/2014,rk82125730
00003243,Adt Fire & Security,Building Services,Elizabeth House,Repairs & Maintenance Expenses,303.00,31/03/2014,rk82125750
00003243,Adt Fire & Security,C.C.T.V.,CCTV General Operation,Private Contractors,"4,749.60",31/03/2014,rk82125756
00003243,Adt Fire & Security,C.C.T.V.,CCTV General Operation,Private Contractors,84.60,31/03/2014,rk84146348
00173403,Advantis Credit Ltd,Investment Properties,"19 Sheep Street, Stratford-upon-Avon",Energy Expenses,97.62,05/12/2013,vm84133682
00042961,Age UK,HR and Training,"Business, Housing & Revenues Training",Expenses,274.80,15/04/2013,rk84144432
00042961,Age UK,Current Schemes In Progress,Home Repair Assist.Grants,Renovation Grants (Capital),54.20,08/07/2013,rk84144943
00042961,Age UK,Current Schemes In Progress,Home Repair Assist.Grants,Renovation Grants (Capital),5.00,08/07/2013,rk84144944
00029227,Age UK Warwickshire,Housing,Private Sector Housing Team,Other Third Party Payments,"7,140.00",02/05/2013,wn84133239
00029227,Age UK Warwickshire,Housing,Private Sector Housing Team,Other Third Party Payments,"6,897.60",07/05/2013,wn82116791
00029227,Age UK Warwickshire,Housing,Private Sector Housing Team,Other Third Party Payments,"6,897.60",22/07/2013,wn82116860
00029227,Age UK Warwickshire,Housing,Private Sector Housing Team,Other Third Party Payments,"6,897.60",14/11/2013,wn82116929
00029227,Age UK Warwickshire,Current Schemes In Progress,Disab.Fac.Grants(Mandatory),Renovation Grants (Capital),691.20,05/12/2013,rk84145806
00029227,Age UK Warwickshire,Current Schemes In Progress,Disab.Fac.Grants(Mandatory),Renovation Grants (Capital),507.60,05/12/2013,rk84145807
00029227,Age UK Warwickshire,Current Schemes In Progress,Disab.Fac.Grants(Mandatory),Renovation Grants (Capital),590.26,12/12/2013,rk84145862
00029227,Age UK Warwickshire,Housing,Private Sector Housing Team,Other Third Party Payments,"6,897.60",23/12/2013,wn82116949
00029227,Age UK Warwickshire,Current Schemes In Progress,Home Repair Assist.Grants,Renovation Grants (Capital),119.60,30/01/2014,rk84146076
00029227,Age UK Warwickshire,Current Schemes In Progress,Disab.Fac.Grants(Mandatory),Renovation Grants (Capital),488.88,17/03/2014,rk84146276
00016489,Airey Consultancy Services Ltd,Council Tax,Council Tax,Other Third Party Payments,780.00,02/05/2013,rk84144611
00016489,Airey Consultancy Services Ltd,Council Tax,Council Tax,Other Third Party Payments,780.00,09/09/2013,rk84145294
00087162,Airwave Solutions Ltd,C.C.T.V.,CCTV General Operation,Private Contractors,493.46,20/05/2013,vm84132828
00087162,Airwave Solutions Ltd,C.C.T.V.,CCTV General Operation,Private Contractors,493.46,05/08/2013,vm84133179
00087162,Airwave Solutions Ltd,C.C.T.V.,CCTV General Operation,Private Contractors,118.80,15/08/2013,vm84133180
00087162,Airwave Solutions Ltd,C.C.T.V.,CCTV General Operation,Private Contractors,493.46,28/10/2013,vm84133528
00087162,Airwave Solutions Ltd,C.C.T.V.,CCTV General Operation,Private Contractors,493.46,06/02/2014,vm84133865
00049278,AIS Total Security Ltd,Building Services,Alcester Area Office,Repairs & Maintenance Expenses,853.20,20/05/2013,vm84132811
00049278,AIS Total Security Ltd,Building Services,Alcester Area Office,Repairs & Maintenance Expenses,19.80,06/02/2014,vm84133838
00024086,ALARM,Resources,Accountancy Division,Grants & Subscription Expenses,180.00,09/01/2014,rk84145965
00129745,Alcester Academy,Sports Development,Sports Development,Rent Expenses,100.00,26/09/2013,vm84133398
00092681,Alcester Chamber  of Trade & Commerce,Community Leadership,Grants - General,Grants & Subscription Expenses,30.00,06/06/2013,vm84132913
,ALCESTER GLASS,Building Services,Elizabeth House,Repair & Maintenance - General,79.00,11/07/2013 ,4220
,ALCESTER GLASS,SDC Infrastructure,SDC Infrastructure (including Car Parks),Repair & Maintenance of Buildings,71.95,20/08/2013 ,4407
,ALCESTER GLASS,SDC Infrastructure,SDC Infrastructure (including Car Parks),Repair & Maintenance of Buildings,138.51,04/03/2014 ,5274
00074191,Alcester Heritage Trust,Community Leadership,Alcester Heritage Centre,Miscellaneous Expenses,184.00,26/09/2013,rk84145457
,ALCESTER LOCKS LIM,Parks Playfields & Open Spaces,Grounds Maintenance,Repair & Maintenance - General,55.50,17/04/2013 ,3852
,ALCESTER LOCKS LIM,SDC Infrastructure,SDC Infrastructure (including Car Parks),Repair & Maintenance of Buildings,142.80,18/04/2013 ,3847
,ALCESTER LOCKS LIM,Building Services,Elizabeth House,Repair & Maintenance - General,7.50,19/04/2013 ,3883
,ALCESTER LOCKS LIM,Public Conveniences,Conveniences Expenses,Repair & Maintenance of Buildings,23.92,23/04/2013 ,3879
,ALCESTER LOCKS LIM,Building Services,Elizabeth House,Repair & Maintenance - General,336.68,23/04/2013 ,3884
,ALCESTER LOCKS LIM,Building Services,Elizabeth House,Repair & Maintenance - General,98.20,26/04/2013 ,3913
,ALCESTER LOCKS LIM,Building Services,Elizabeth House,Repair & Maintenance - General,11.25,30/04/2013 ,3915
,ALCESTER LOCKS LIM,Building Services,Elizabeth House,Repair & Maintenance - General,167.20,28/06/2013 ,4189
,ALCESTER LOCKS LIM,Environmental Health,Pathlow Gypsy Caravan Site,Repair & Maintenance - General,20.40,11/07/2013 ,4221
,ALCESTER LOCKS LIM,SDC Infrastructure,SDC Infrastructure (including Car Parks),Repair & Maintenance - General,69.84,11/07/2013 ,4222
,ALCESTER LOCKS LIM,Public Conveniences,Conveniences Expenses,Repair & Maintenance - General,181.54,30/07/2013 ,4312
,ALCESTER LOCKS LIM,Building Services,Elizabeth House,Repair & Maintenance - General,8.95,14/08/2013 ,4379
,ALCESTER LOCKS LIM,Building Services,Southam Area Office,Repair & Maintenance - General,3.99,05/09/2013 ,4458
,ALCESTER LOCKS LIM,SDC Infrastructure,SDC Infrastructure (including Car Parks),Materials Expenses,59.94,13/09/2013 ,4520
,ALCESTER LOCKS LIM,Investment Properties,The Grange Southam,Repair & Maintenance - General,40.03,30/10/2013 ,4719
,ALCESTER LOCKS LIM,Miscellaneous Properties,Miscellaneous Properties,Materials Expenses,29.31,08/11/2013 ,4791
,ALCESTER LOCKS LIM,SDC Infrastructure,SDC Infrastructure (including Car Parks),Materials Expenses,15.00,29/11/2013 ,4887
,ALCESTER LOCKS LIM,SDC Infrastructure,SDC Infrastructure (including Car Parks),Repair & Maintenance of Buildings,60.48,03/12/2013 ,4883
,ALCESTER LOCKS LIM,SDC Infrastructure,SDC Infrastructure (including Car Parks),Materials Expenses,203.94,06/12/2013 ,4928
,ALCESTER LOCKS LIM,Miscellaneous Properties,Miscellaneous Properties,Materials Expenses,30.00,20/12/2013 ,4980
,ALCESTER LOCKS LIM,Building Services,Elizabeth House,Materials Expenses,10.20,20/01/2014 ,5082
,ALCESTER LOCKS LIM,Public Conveniences,Conveniences Expenses,Repair & Maintenance of Buildings,40.05,21/01/2014 ,5077
,ALCESTER LOCKS LIM,Building Services,Alcester Area Office,Repair & Maintenance - General,142.80,24/01/2014 ,5123
,ALCESTER LOCKS LIM,Corporate Property Div (Sals),Engineers Consultancy Account,Machinery & Equipment Expenses,30.00,31/01/2014 ,5151
,ALCESTER LOCKS LIM,Public Conveniences,Conveniences Expenses,Repair & Maintenance - General,254.68,05/02/2014 ,5158
,ALCESTER LOCKS LIM,SDC Infrastructure,SDC Infrastructure (including Car Parks),Materials Expenses,92.50,25/02/2014 ,5256
,ALCESTER LOCKS LIM,C.C.T.V.,CCTV General Operation,Materials Expenses,10.40,04/03/2014 ,5285
,ALCESTER LOCKS LIM,Building Services,Elizabeth House,Repair & Maintenance - General,76.58,12/03/2014 ,5314
,ALCESTER LOCKS LIM,Public Conveniences,Conveniences Expenses,Repair & Maintenance - General,563.64,12/03/2014 ,5315
,ALCESTER LOCKS LIM,Public Conveniences,Conveniences Expenses,Repair & Maintenance of Buildings,30.80,18/03/2014 ,5346
00158169,Alcester Members Club,Creditors,WCC Elections May 2013,Cash Payments,80.00,27/06/2013,yq84119879
00174318,Alderminster Electrics Ltd,Building Services,Elizabeth House,Repairs & Maintenance Expenses,162.00,10/02/2014,rk82125650
00174318,Alderminster Electrics Ltd,Building Services,Elizabeth House,Repairs & Maintenance Expenses,198.00,17/02/2014,rk82125670
00174318,Alderminster Electrics Ltd,HR and Training,Human Resources,Indirect Employee Expenses,120.00,17/02/2014,rk82125670
00014083,Alderminster Village Hall,Creditors,WCC Elections May 2013,Cash Payments,238.00,10/06/2013,yq84119783
,ALEXANDRA,Environmental Health,Food Safety,Materials Expenses,51.01,06/03/2014 ,5298
00056559,ALine Drainage,Environmental Health,Pathlow Gypsy Caravan Site,Repairs & Maintenance Expenses,135.00,15/08/2013,wn84133489
00056559,ALine Drainage,Leisure Centres,Stratford Leisure Centre,Repairs & Maintenance Expenses,221.40,29/08/2013,vm84133267
00056559,ALine Drainage,Leisure Centres,Studley Leisure Centre,Repairs & Maintenance Expenses,90.00,26/09/2013,vm84133397
,ALL PURPOSE CLEANING S,Building Services,Elizabeth House,Materials Expenses,64.06,11/03/2014 ,5308
00075475,Allpay.net Limited,Front Office & Trans Team,Front Office & Trans Team,Professional Fees,434.25,15/04/2013,rk84144426
00075475,Allpay.net Limited,Front Office & Trans Team,Front Office & Trans Team,Professional Fees,19.94,15/04/2013,rk84144429
00075475,Allpay.net Limited,Front Office & Trans Team,Front Office & Trans Team,Professional Fees,"1,811.64",13/05/2013,rk84144660
00075475,Allpay.net Limited,Front Office & Trans Team,Front Office & Trans Team,Professional Fees,69.60,13/05/2013,rk84144661
00075475,Allpay.net Limited,Front Office & Trans Team,Front Office & Trans Team,Professional Fees,49.05,24/06/2013,rk84144847
00075475,Allpay.net Limited,Front Office & Trans Team,Front Office & Trans Team,Professional Fees,"1,659.39",24/06/2013,rk84144848
00075475,Allpay.net Limited,Front Office & Trans Team,Front Office & Trans Team,Professional Fees,"1,577.13",15/07/2013,rk84144987
00075475,Allpay.net Limited,Front Office & Trans Team,Front Office & Trans Team,Professional Fees,42.21,15/07/2013,rk84144991
00075475,Allpay.net Limited,Front Office & Trans Team,Front Office & Trans Team,Professional Fees,"1,729.16",15/08/2013,rk84145165
00075475,Allpay.net Limited,Front Office & Trans Team,Front Office & Trans Team,Professional Fees,18.62,15/08/2013,rk84145166
00075475,Allpay.net Limited,Front Office & Trans Team,Front Office & Trans Team,Professional Fees,44.98,15/08/2013,rk84145167
00075475,Allpay.net Limited,Front Office & Trans Team,Front Office & Trans Team,Professional Fees,528.52,15/08/2013,rk84145168
00075475,Allpay.net Limited,Front Office & Trans Team,Front Office & Trans Team,Professional Fees,"1,540.27",15/08/2013,rk84145169
00075475,Allpay.net Limited,Front Office & Trans Team,Front Office & Trans Team,Professional Fees,74.72,15/08/2013,rk84145170
00075475,Allpay.net Limited,Front Office & Trans Team,Front Office & Trans Team,Professional Fees,41.52,07/10/2013,rk84145505
00075475,Allpay.net Limited,Front Office & Trans Team,Front Office & Trans Team,Professional Fees,"1,654.15",07/10/2013,rk84145506
00075475,Allpay.net Limited,Front Office & Trans Team,Front Office & Trans Team,Professional Fees,"1,619.49",10/10/2013,rk84145536
00075475,Allpay.net Limited,Front Office & Trans Team,Front Office & Trans Team,Professional Fees,44.69,10/10/2013,rk84145537
00075475,Allpay.net Limited,Front Office & Trans Team,Front Office & Trans Team,Professional Fees,"1,705.14",05/12/2013,rk84145814
00075475,Allpay.net Limited,Front Office & Trans Team,Front Office & Trans Team,Professional Fees,34.15,05/12/2013,rk84145815
00075475,Allpay.net Limited,Front Office & Trans Team,Front Office & Trans Team,Professional Fees,"1,571.67",23/12/2013,rk84145899
00075475,Allpay.net Limited,Front Office & Trans Team,Front Office & Trans Team,Professional Fees,37.76,23/12/2013,rk84145900
00075475,Allpay.net Limited,Front Office & Trans Team,Front Office & Trans Team,Professional Fees,"1,496.65",03/02/2014,rk84146095
00075475,Allpay.net Limited,Front Office & Trans Team,Front Office & Trans Team,Professional Fees,38.76,03/02/2014,rk84146096
00075475,Allpay.net Limited,Front Office & Trans Team,Front Office & Trans Team,Legal Expenses,"1,325.71",13/02/2014,rk84146143
00075475,Allpay.net Limited,Front Office & Trans Team,Front Office & Trans Team,Professional Fees,98.36,13/02/2014,rk84146143
00075475,Allpay.net Limited,Front Office & Trans Team,Front Office & Trans Team,Professional Fees,40.04,13/02/2014,rk84146144
00075475,Allpay.net Limited,Front Office & Trans Team,Front Office & Trans Team,Professional Fees,20.06,13/03/2014,rk84146252
00075475,Allpay.net Limited,Front Office & Trans Team,Front Office & Trans Team,Professional Fees,572.46,13/03/2014,rk84146253
00173335,Ally Purchon,Off-Street Parking,Car Parks Expenses,Indirect Employee Expenses,25.80,13/01/2014,yq84120044
00173335,Ally Purchon,On Street Parking,On Street,Indirect Employee Expenses,60.20,13/01/2014,yq84120044
00173335,Ally Purchon,Off-Street Parking,Car Parks Expenses,Indirect Employee Expenses,25.80,06/02/2014,yq84120057
00173335,Ally Purchon,On Street Parking,On Street,Indirect Employee Expenses,60.20,06/02/2014,yq84120057
00173335,Ally Purchon,Off-Street Parking,Car Parks Expenses,Indirect Employee Expenses,25.80,13/03/2014,yq84120077
00173335,Ally Purchon,On Street Parking,On Street,Indirect Employee Expenses,60.20,13/03/2014,yq84120077
00139612,Alphabet (GB) Ltd,Regulatory Services,Conservation,Car Leasing,12.03,15/04/2013,rk84144442
00139612,Alphabet (GB) Ltd,Regulatory Services,Dev. Control General,Car Leasing,18.05,15/04/2013,rk84144442
00139612,Alphabet (GB) Ltd,Community Leadership,Grants - General,Car Leasing,404.68,18/04/2013,rk84144445
00139612,Alphabet (GB) Ltd,Community Leadership,Market Town Initiative Projects Officer,Car Leasing,50.07,18/04/2013,rk84144445
00139612,Alphabet (GB) Ltd,Corp. And Democratic Core,CDC - Salary Recharges,Car Leasing,250.36,18/04/2013,rk84144445
00139612,Alphabet (GB) Ltd,Council Tax,Council Tax,Car Leasing,100.14,18/04/2013,rk84144445
00139612,Alphabet (GB) Ltd,Council Tax Reduction - Admin.,Council Tax Benefits - Admin.,Car Leasing,50.07,18/04/2013,rk84144445
00139612,Alphabet (GB) Ltd,Environmental Health,Env. Hlth.Dept.Exps.-Env.Protec,Car Leasing,716.35,18/04/2013,rk84144445
00139612,Alphabet (GB) Ltd,Housing,Homelessness,Car Leasing,50.07,18/04/2013,rk84144445
00139612,Alphabet (GB) Ltd,Housing,Housing Advice,Car Leasing,50.07,18/04/2013,rk84144445
00139612,Alphabet (GB) Ltd,Housing,Private Sector Housing Team,Car Leasing,454.75,18/04/2013,rk84144445
00139612,Alphabet (GB) Ltd,Housing Ben. Admin,H BenPrvte Tnants-Gen Admin,Car Leasing,50.07,18/04/2013,rk84144445
00139612,Alphabet (GB) Ltd,Local Economy/Tourism,Tourism-Client,Car Leasing,50.07,18/04/2013,rk84144445
00139612,Alphabet (GB) Ltd,National Non-Domestic Rate,NNDR Admin.,Car Leasing,50.07,18/04/2013,rk84144445
00139612,Alphabet (GB) Ltd,Policy,Hsg Enabling Activities,Car Leasing,100.14,18/04/2013,rk84144445
00139612,Alphabet (GB) Ltd,Social Inclusion,Social Inclusion,Car Leasing,150.23,18/04/2013,rk84144445
00139612,Alphabet (GB) Ltd,Regulatory Services,Dev. Control General,Car Leasing,670.62,20/05/2013,rk84144643
00139612,Alphabet (GB) Ltd,Regulatory Services,Conservation,Car Leasing,418.34,20/06/2013,rk84144817
00139612,Alphabet (GB) Ltd,Regulatory Services,Dev. Control General,Car Leasing,278.89,20/06/2013,rk84144817
00139612,Alphabet (GB) Ltd,Regulatory Services,Dev. Control General,Car Leasing,-369.70,04/07/2013,rk83116476
00139612,Alphabet (GB) Ltd,Regulatory Services,Dev. Control General,Car Leasing,"1,018.91",04/07/2013,rk84144831
00139612,Alphabet (GB) Ltd,Regulatory Services,Dev. Control General,Car Leasing,-15.00,18/07/2013,rk83116477
00139612,Alphabet (GB) Ltd,Regulatory Services,Dev. Control General,Car Leasing,15.00,18/07/2013,rk84145002
00139612,Alphabet (GB) Ltd,Community Leadership,Grants - General,Car Leasing,404.68,25/07/2013,rk84144964
00139612,Alphabet (GB) Ltd,Community Leadership,Market Town Initiative Projects Officer,Car Leasing,50.07,25/07/2013,rk84144964
00139612,Alphabet (GB) Ltd,Corp. And Democratic Core,CDC - Salary Recharges,Car Leasing,250.36,25/07/2013,rk84144964
00139612,Alphabet (GB) Ltd,Council Tax,Council Tax,Car Leasing,100.14,25/07/2013,rk84144964
00139612,Alphabet (GB) Ltd,Council Tax Reduction - Admin.,Council Tax Benefits - Admin.,Car Leasing,50.07,25/07/2013,rk84144964
00139612,Alphabet (GB) Ltd,Environmental Health,Env. Hlth.Dept.Exps.-Env.Protec,Car Leasing,716.35,25/07/2013,rk84144964
00139612,Alphabet (GB) Ltd,Housing,Homelessness,Car Leasing,50.07,25/07/2013,rk84144964
00139612,Alphabet (GB) Ltd,Housing,Housing Advice,Car Leasing,50.07,25/07/2013,rk84144964
00139612,Alphabet (GB) Ltd,Housing,Private Sector Housing Team,Car Leasing,454.77,25/07/2013,rk84144964
00139612,Alphabet (GB) Ltd,Housing Ben. Admin,H BenPrvte Tnants-Gen Admin,Car Leasing,50.07,25/07/2013,rk84144964
00139612,Alphabet (GB) Ltd,Local Economy/Tourism,Tourism-Client,Car Leasing,50.06,25/07/2013,rk84144964
00139612,Alphabet (GB) Ltd,National Non-Domestic Rate,NNDR Admin.,Car Leasing,50.07,25/07/2013,rk84144964
00139612,Alphabet (GB) Ltd,Policy,Hsg Enabling Activities,Car Leasing,100.14,25/07/2013,rk84144964
00139612,Alphabet (GB) Ltd,Social Inclusion,Social Inclusion,Car Leasing,150.23,25/07/2013,rk84144964
00139612,Alphabet (GB) Ltd,Regulatory Services,Dev. Control General,Car Leasing,-76.77,08/08/2013,rk83116484
00139612,Alphabet (GB) Ltd,Regulatory Services,Dev. Control General,Car Leasing,76.77,08/08/2013,rk84145129
00139612,Alphabet (GB) Ltd,Regulatory Services,Dev. Control General,Car Leasing,"1,689.54",22/08/2013,rk84145211
00139612,Alphabet (GB) Ltd,Regulatory Services,Conservation,Car Leasing,418.34,19/09/2013,rk84145322
00139612,Alphabet (GB) Ltd,Regulatory Services,Dev. Control General,Car Leasing,278.89,19/09/2013,rk84145322
00139612,Alphabet (GB) Ltd,Community Leadership,Market Town Initiative Projects Officer,Car Leasing,50.07,14/10/2013,rk84145559
00139612,Alphabet (GB) Ltd,Corp. And Democratic Core,CDC - Salary Recharges,Car Leasing,250.36,14/10/2013,rk84145559
00139612,Alphabet (GB) Ltd,Council Tax,Council Tax,Car Leasing,100.14,14/10/2013,rk84145559
00139612,Alphabet (GB) Ltd,Council Tax Reduction - Admin.,Council Tax Benefits - Admin.,Car Leasing,50.07,14/10/2013,rk84145559
00139612,Alphabet (GB) Ltd,Environmental Health,Env. Hlth.Dept.Exps.-Env.Protec,Car Leasing,716.38,14/10/2013,rk84145559
00139612,Alphabet (GB) Ltd,Housing,Homelessness,Car Leasing,50.07,14/10/2013,rk84145559
00139612,Alphabet (GB) Ltd,Housing,Housing Advice,Car Leasing,50.07,14/10/2013,rk84145559
00139612,Alphabet (GB) Ltd,Housing,Private Sector Housing Team,Car Leasing,50.07,14/10/2013,rk84145559
00139612,Alphabet (GB) Ltd,Housing Ben. Admin,H BenPrvte Tnants-Gen Admin,Car Leasing,50.07,14/10/2013,rk84145559
00139612,Alphabet (GB) Ltd,Local Economy/Tourism,Tourism-Client,Car Leasing,50.07,14/10/2013,rk84145559
00139612,Alphabet (GB) Ltd,National Non-Domestic Rate,NNDR Admin.,Car Leasing,50.07,14/10/2013,rk84145559
00139612,Alphabet (GB) Ltd,Policy,Hsg Enabling Activities,Car Leasing,100.14,14/10/2013,rk84145559
00139612,Alphabet (GB) Ltd,Social Inclusion,Social Inclusion,Car Leasing,150.23,14/10/2013,rk84145559
00139612,Alphabet (GB) Ltd,Community Leadership,Grants - General,Car Leasing,62.08,21/11/2013,rk84145719
00139612,Alphabet (GB) Ltd,Housing,Private Sector Housing Team,Car Leasing,62.08,21/11/2013,rk84145719
00139612,Alphabet (GB) Ltd,Regulatory Services,Conservation,Car Leasing,12.00,21/11/2013,rk84145716
00139612,Alphabet (GB) Ltd,Regulatory Services,Dev. Control General,Car Leasing,23.00,21/11/2013,rk84145716
00139612,Alphabet (GB) Ltd,Regulatory Services,Dev. Control General,Car Leasing,"1,018.92",21/11/2013,rk84145720
00139612,Alphabet (GB) Ltd,Community Leadership,Grants - General,Car Leasing,133.01,12/12/2013,rk84145853
00139612,Alphabet (GB) Ltd,Housing,Private Sector Housing Team,Car Leasing,133.03,12/12/2013,rk84145853
00139612,Alphabet (GB) Ltd,Regulatory Services,Conservation,Car Leasing,418.34,19/12/2013,rk84145855
00139612,Alphabet (GB) Ltd,Regulatory Services,Dev. Control General,Car Leasing,278.89,19/12/2013,rk84145855
00139612,Alphabet (GB) Ltd,Community Leadership,Grants - General,Car Leasing,137.44,16/01/2014,rk84145988
00139612,Alphabet (GB) Ltd,Community Leadership,Market Town Initiative Projects Officer,Car Leasing,50.07,16/01/2014,rk84145989
00139612,Alphabet (GB) Ltd,Corp. And Democratic Core,CDC - Salary Recharges,Car Leasing,250.36,16/01/2014,rk84145989
00139612,Alphabet (GB) Ltd,Council Tax,Council Tax,Car Leasing,100.14,16/01/2014,rk84145989
00139612,Alphabet (GB) Ltd,Council Tax Reduction - Admin.,Council Tax Benefits - Admin.,Car Leasing,50.07,16/01/2014,rk84145989
00139612,Alphabet (GB) Ltd,Environmental Health,Env. Hlth.Dept.Exps.-Env.Protec,Car Leasing,716.38,16/01/2014,rk84145989
00139612,Alphabet (GB) Ltd,Housing,Homelessness,Car Leasing,50.07,16/01/2014,rk84145989
00139612,Alphabet (GB) Ltd,Housing,Housing Advice,Car Leasing,50.07,16/01/2014,rk84145989
00139612,Alphabet (GB) Ltd,Housing,Private Sector Housing Team,Car Leasing,137.45,16/01/2014,rk84145988
00139612,Alphabet (GB) Ltd,Housing,Private Sector Housing Team,Car Leasing,50.07,16/01/2014,rk84145989
00139612,Alphabet (GB) Ltd,Housing Ben. Admin,H BenPrvte Tnants-Gen Admin,Car Leasing,50.07,16/01/2014,rk84145989
00139612,Alphabet (GB) Ltd,Local Economy/Tourism,Tourism-Client,Car Leasing,50.07,16/01/2014,rk84145989
00139612,Alphabet (GB) Ltd,National Non-Domestic Rate,NNDR Admin.,Car Leasing,50.07,16/01/2014,rk84145989
00139612,Alphabet (GB) Ltd,Policy,Hsg Enabling Activities,Car Leasing,100.14,16/01/2014,rk84145989
00139612,Alphabet (GB) Ltd,Regulatory Services,Dev. Control General,Car Leasing,242.36,16/01/2014,rk84145988
00139612,Alphabet (GB) Ltd,Social Inclusion,Social Inclusion,Car Leasing,150.23,16/01/2014,rk84145989
00139612,Alphabet (GB) Ltd,Community Leadership,Grants - General,Car Leasing,137.44,13/02/2014,rk84146151
00139612,Alphabet (GB) Ltd,Housing,Private Sector Housing Team,Car Leasing,137.45,13/02/2014,rk84146151
00139612,Alphabet (GB) Ltd,Regulatory Services,Dev. Control General,Car Leasing,"1,018.92",13/02/2014,rk84146150
00139612,Alphabet (GB) Ltd,Regulatory Services,Dev. Control General,Car Leasing,227.67,13/02/2014,rk84146151
00139612,Alphabet (GB) Ltd,Community Leadership,Grants - General,Car Leasing,124.16,20/03/2014,rk84146291
00139612,Alphabet (GB) Ltd,Housing,Private Sector Housing Team,Car Leasing,124.16,20/03/2014,rk84146291
00139612,Alphabet (GB) Ltd,Regulatory Services,Conservation,Car Leasing,418.34,20/03/2014,rk84146292
00139612,Alphabet (GB) Ltd,Regulatory Services,Dev. Control General,Car Leasing,205.61,20/03/2014,rk84146291
00139612,Alphabet (GB) Ltd,Regulatory Services,Dev. Control General,Car Leasing,278.89,20/03/2014,rk84146292
00150989,Alphastar Productions,Local Economy/Tourism,Tourism-Client,Other Third Party Payments,150.00,02/09/2013,rk84145261
00000220,ALS Environmental Ltd,Environmental Health,Water Supplies,Professional Fees,529.20,20/06/2013,wn82116827
00000220,ALS Environmental Ltd,Environmental Health,Water Supplies,Professional Fees,180.00,11/07/2013,wn82116836
00000220,ALS Environmental Ltd,Environmental Health,Water Supplies,Professional Fees,180.00,18/07/2013,wn82116844
00000220,ALS Environmental Ltd,Environmental Health,Water Supplies,Professional Fees,237.34,15/08/2013,wn84133490
00000220,ALS Environmental Ltd,Environmental Health,Water Supplies,Professional Fees,180.00,03/10/2013,wn84133591
00000220,ALS Environmental Ltd,Environmental Health,Water Supplies,Professional Fees,328.22,31/10/2013,wn82116901
00000220,ALS Environmental Ltd,Environmental Health,Water Supplies,Professional Fees,470.83,20/02/2014,wn82116978
00000220,ALS Environmental Ltd,Environmental Health,Water Supplies,Professional Fees,180.00,31/03/2014,wn82117003
00159508,Alveston C of E Primary School,Sports Development,Sports Development,Rent Expenses,200.00,01/07/2013,vm84133009
,Amazon  Mktplce EU-UK,Building Control,Building Control,Protective Clothing Expenses,27.40,03/05/2013 ,3908
,Amazon  Mktplce EU-UK,Stocks,General Stationery Stocks,Stores Purchases,10.99,16/05/2013 ,3968
,Amazon  Mktplce EU-UK,Stocks,General Stationery Stocks,Stores Purchases,9.22,16/05/2013 ,3969
,Amazon  Mktplce EU-UK,Building Control,Building Control,Protective Clothing Expenses,82.20,21/05/2013 ,4005
,Amazon  Mktplce EU-UK,Building Control,Building Control,Protective Clothing Expenses,54.90,21/05/2013 ,4006
,Amazon  Mktplce EU-UK,Regulatory Services,Development Control General,Machinery & Equipment Expenses,536.04,23/05/2013 ,3986
,Amazon  Mktplce EU-UK,Environmental Health,Food Safety,Materials Expenses,89.38,23/05/2013 ,3986
,Amazon  Mktplce EU-UK,Regulatory Services,Development Control General,Machinery & Equipment Expenses,29.82,23/05/2013 ,3987
,Amazon  Mktplce EU-UK,Environmental Health,Food Safety,Materials Expenses,4.97,23/05/2013 ,3987
,Amazon  Mktplce EU-UK,Regulatory Services,Development Control General,Machinery & Equipment Expenses,37.20,27/05/2013 ,4012
,Amazon  Mktplce EU-UK,Environmental Health,Food Safety,Materials Expenses,6.20,27/05/2013 ,4012
,Amazon  Mktplce EU-UK,Regulatory Services,Development Control General,Machinery & Equipment Expenses,4.97,05/06/2013 ,4032
,Amazon  Mktplce EU-UK,Regulatory Services,Development Control General,Machinery & Equipment Expenses,91.48,06/06/2013 ,4033
,Amazon  Mktplce EU-UK,Regulatory Services,Development Control General,Machinery & Equipment Expenses,5.25,06/06/2013 ,4034
,Amazon  Mktplce EU-UK,Information Technology,Infomation Technology Division,Machinery & Equipment Maintenance,2.90,06/06/2013 ,4035
,Amazon  Mktplce EU-UK,Leisure Centres,Leisure Centres General,Machinery & Equipment Maintenance,439.96,25/06/2013 ,4127
,Amazon  Mktplce EU-UK,Housing,Private Sector Housing Team,Machinery & Equipment Expenses,33.44,25/06/2013 ,4150
,Amazon  Mktplce EU-UK,Leisure Centres,Leisure Centres General,Signs & Notices,23.65,26/06/2013 ,4128
,Amazon  Mktplce EU-UK,Sports Development,Sports Development,Stationery Expenses,15.76,28/06/2013 ,4164
,Amazon  Mktplce EU-UK,Licensing,Licensing&Reg. Exps Public Protection,Advertising Expenses General,95.49,03/07/2013 ,4176
,Amazon  Mktplce EU-UK,Stocks,General Stationery Stocks,Materials Expenses,2.40,03/07/2013 ,4195
,Amazon  Mktplce EU-UK,Licensing,Licensing&Reg. Exps Public Protection,Machinery & Equipment Expenses,4.97,04/07/2013 ,4177
,Amazon  Mktplce EU-UK,Licensing,Licensing&Reg. Exps Public Protection,Machinery & Equipment Expenses,6.79,05/07/2013 ,4214
,Amazon  Mktplce EU-UK,Stocks,General Stationery Stocks,Furniture & Fittings Expenses,83.15,19/07/2013 ,4285
,Amazon  Mktplce EU-UK,On Street Parking,On Street Parking,Machinery & Equipment Expenses,24.99,09/08/2013 ,4359
,Amazon  Mktplce EU-UK,Information Technology,Infomation Technology Division,Machinery & Equipment Maintenance,10.80,14/08/2013 ,4360
,Amazon  Mktplce EU-UK,Stocks,General Stationery Stocks,Stores Purchases,7.98,20/08/2013 ,4405
,Amazon  Mktplce EU-UK,Refuse Collection,Env Waste-General Operation,Mobile Phones,10.98,13/09/2013 ,4504
,Amazon  Mktplce EU-UK,Housing,Private Sector Housing Team,Machinery & Equipment Expenses,99.99,13/09/2013 ,4505
,Amazon  Mktplce EU-UK,Off-Street Parking,Car Parks Expenses,Stationery Expenses,10.99,17/09/2013 ,4514
,Amazon  Mktplce EU-UK,Off-Street Parking,Car Parks Expenses,Advertising Expenses General,6.99,17/09/2013 ,4514
,Amazon  Mktplce EU-UK,Off-Street Parking,Car Parks Expenses,Stationery Expenses,-10.99,25/09/2013 ,4543
,Amazon  Mktplce EU-UK,Local Economy/Tourism,Tourist Visitor Centre,Materials Expenses,5.30,09/10/2013 ,4595
,Amazon  Mktplce EU-UK,Building Control,Building Control,Protective Clothing Expenses,24.70,13/10/2013 ,4630
,Amazon  Mktplce EU-UK,Stocks,General Stationery Stocks,Stores Purchases,18.94,14/11/2013 ,4798
,Amazon  Mktplce EU-UK,Environmental Health,Environmental Health Expenses,Machinery & Equipment Maintenance,10.79,19/11/2013 ,4812
,Amazon  Mktplce EU-UK,Corporate Property Div (Sals),Engineers Consultancy Account,Materials Expenses,27.17,26/11/2013 ,4858
,Amazon  Mktplce EU-UK,Corporate Property Div (Sals),Engineers Consultancy Account,Materials Expenses,98.15,27/11/2013 ,4859
,Amazon  Mktplce EU-UK,Building Services,Elizabeth House,Heating & Ventilation Repairs,29.47,07/12/2013 ,4916
,Amazon  Mktplce EU-UK,Information Technology,Infomation Technology Division,Machinery & Equipment Maintenance,5.80,11/12/2013 ,4904
,Amazon  Mktplce EU-UK,Stocks,General Stationery Stocks,Stores Purchases,19.15,12/12/2013 ,4931
,Amazon  Mktplce EU-UK,Environmental Health,Food Safety,Machinery & Equipment Expenses,12.99,09/01/2014 ,5022
,Amazon  Mktplce EU-UK,Stocks,General Stationery Stocks,Stores Purchases,9.22,15/01/2014 ,5039
,Amazon  Mktplce EU-UK,Resources,Accountancy Division,Materials Expenses,28.00,31/01/2014 ,5160
,Amazon  Mktplce EU-UK,Housing,Private Sector Housing Team,Machinery & Equipment Expenses,64.94,09/02/2014 ,5187
,Amazon  Mktplce EU-UK,Corporate Property Div (Sals),Engineers Consultancy Account,Mobile Phones,21.76,17/02/2014 ,5218
,Amazon  Mktplce EU-UK,Leisure Centres,Stratford Leisure Centre,Machinery & Equipment Expenses,3.60,20/02/2014 ,5221
,Amazon  Mktplce EU-UK,Sports Development,Sports Development,Machinery & Equipment Expenses,3.60,20/02/2014 ,5221
,Amazon  Mktplce EU-UK,Refuse Collection,Env Waste-General Operation,Mobile Phones,6.88,21/02/2014 ,5244
,Amazon  Mktplce EU-UK,Corporate Property Div (Sals),Engineers Consultancy Account,Mobile Phones,5.80,21/02/2014 ,5245
,Amazon  Mktplce EU-UK,Stocks,General Stationery Stocks,Stores Purchases,5.49,21/02/2014 ,5250
,Amazon  Mktplce EU-UK,Environmental Health,Environmental Health Expenses,Materials Expenses,11.64,27/02/2014 ,5242
,Amazon  Mktplce EU-UK,Environmental Health,Environmental Health Expenses,Materials Expenses,4.98,28/02/2014 ,5264
,Amazon  Mktplce EU-UK,Regulatory Services,Development Control General,Stationery Expenses,16.95,04/03/2014 ,5286
,Amazon  Mktplce EU-UK,Regulatory Services,Development Control General,Stationery Expenses,6.29,04/03/2014 ,5287
,Amazon  Mktplce EU-UK,Corp. And Democratic Core,SDC Meetings-Elected Members,Machinery & Equipment Expenses,37.99,07/03/2014 ,5318
,Amazon  Mktplce EU-UK,Community Leadership,Grants General,Machinery & Equipment Expenses,13.23,21/03/2014 ,5363
,Amazon EU,Members Services,Legal Unit,Books & Publications,55.00,12/04/2013 ,3836
,Amazon EU,Members Services,Legal Unit,Office Expenses,26.48,25/06/2013 ,4147
,Amazon EU,Sports Development,Sports Development,Stationery Expenses,9.52,28/06/2013 ,4165
,Amazon EU,Sports Development,Sports Development,Stationery Expenses,47.02,30/06/2013 ,4166
,Amazon EU,Stocks,General Stationery Stocks,Stores Purchases,13.20,15/07/2013 ,4255
,Amazon EU,Stocks,General Stationery Stocks,Stores Purchases,11.66,15/07/2013 ,4256
,Amazon EU,Corporate Property Div (Sals),Engineers Consultancy Account,Materials Expenses,70.45,21/08/2013 ,4412
,Amazon EU,Stocks,General Stationery Stocks,Stores Purchases,15.80,21/08/2013 ,4415
,Amazon EU,Stocks,General Stationery Stocks,Stores Purchases,-12.50,30/08/2013 ,4459
,Amazon EU,CDC Chief Executive,Chief Executive's Unit,Books & Publications,52.79,16/10/2013 ,4645
,Amazon EU,Regulatory Services,Development Control General,Advertising Expenses General,18.37,25/10/2013 ,4722
,Amazon EU,Stocks,General Stationery Stocks,Stores Purchases,35.88,04/11/2013 ,4742
,Amazon EU,Stocks,General Stationery Stocks,Stores Purchases,33.81,12/12/2013 ,4932
,Amazon EU,HR and Training,Customer Access Training,Training Expenses,47.49,23/01/2014 ,5087
,Amazon EU,Regulatory Services,Conservation,Machinery & Equipment Maintenance,11.99,30/01/2014 ,5106
,Amazon EU,Housing,Private Sector Housing Team,Stationery Expenses,14.30,09/02/2014 ,5188
,Amazon Prime,Stocks,General Stationery Stocks,Stores Purchases,49.00,15/08/2013 ,4372
,Amazon Prime,Stocks,General Stationery Stocks,Stores Purchases,-49.00,19/08/2013 ,4403
,Amazon Prime,Environmental Health,Food Safety,Payments Made,49.00,08/02/2014 ,5201
,Amazon Prime,Environmental Health,Food Safety,Office Expenses,-49.00,17/02/2014 ,5237
,AMBER REPROGRAPHICS LT,Information Technology,Infomation Technology Division,Materials Expenses,373.85,22/04/2013 ,3873
00000165,Andrews Air Conditioning,C.C.T.V.,CCTV General Operation,Repairs & Maintenance Expenses,128.65,30/05/2013,rk84144709
00000165,Andrews Air Conditioning,Investment Properties,"The Grange, Southam",Repairs & Maintenance Expenses,79.20,06/06/2013,rk82125344
00000165,Andrews Air Conditioning,Building Services,Alcester Area Office,Repairs & Maintenance Expenses,553.18,13/06/2013,rk82125364
00000165,Andrews Air Conditioning,Building Services,Elizabeth House,Repairs & Maintenance Expenses,"1,703.52",20/06/2013,rk84144805
00000165,Andrews Air Conditioning,Building Services,Elizabeth House,Repairs & Maintenance Expenses,740.98,24/06/2013,rk82125375
00000165,Andrews Air Conditioning,Building Services,Elizabeth House,Repairs & Maintenance Expenses,231.60,18/07/2013,rk84144966
00000165,Andrews Air Conditioning,Building Services,Alcester Area Office,Repairs & Maintenance Expenses,147.60,08/08/2013,rk84145085
00000165,Andrews Air Conditioning,Building Services,Elizabeth House,Repairs & Maintenance Expenses,581.42,22/08/2013,rk82125433
00000165,Andrews Air Conditioning,Building Services,Alcester Area Office,Repairs & Maintenance Expenses,224.64,12/09/2013,rk82125456
00000165,Andrews Air Conditioning,Building Services,Alcester Area Office,Repairs & Maintenance Expenses,352.90,19/09/2013,rk82125458
00000165,Andrews Air Conditioning,Building Services,Elizabeth House,Repairs & Maintenance Expenses,420.00,21/10/2013,rk84145577
00000165,Andrews Air Conditioning,Building Services,Elizabeth House,Repairs & Maintenance Expenses,"1,703.52",21/10/2013,rk84145578
00000165,Andrews Air Conditioning,Building Services,Elizabeth House,Repairs & Maintenance Expenses,656.40,14/11/2013,rk82125514
00000165,Andrews Air Conditioning,Building Services,Elizabeth House,Repairs & Maintenance Expenses,348.60,14/11/2013,rk82125515
00000165,Andrews Air Conditioning,C.C.T.V.,CCTV General Operation,Repairs & Maintenance Expenses,196.20,16/12/2013,rk84145872
00000165,Andrews Air Conditioning,C.C.T.V.,CCTV General Operation,Repairs & Maintenance Expenses,247.84,16/12/2013,rk84145873
00000165,Andrews Air Conditioning,Off-Street Parking,Car Parks Expenses,Repairs & Maintenance Expenses,43.76,16/12/2013,rk84145871
00000165,Andrews Air Conditioning,On Street Parking,On Street,Repairs & Maintenance Expenses,102.12,16/12/2013,rk84145871
00000165,Andrews Air Conditioning,Building Services,Elizabeth House,Repairs & Maintenance Expenses,142.98,19/12/2013,rk82125565
00000165,Andrews Air Conditioning,Investment Properties,"The Grange, Southam",Repairs & Maintenance Expenses,90.00,10/02/2014,rk84146110
00000165,Andrews Air Conditioning,Building Services,Alcester Area Office,Repairs & Maintenance Expenses,257.04,03/03/2014,rk84146221
00000165,Andrews Air Conditioning,Building Services,Elizabeth House,Repairs & Maintenance Expenses,231.60,20/03/2014,rk82125720
00136686,Anglia Stairlifts Ltd,Current Schemes In Progress,Disab.Fac.Grants(Mandatory),Renovation Grants (Capital),"3,795.00",02/05/2013,rk84144600
00136686,Anglia Stairlifts Ltd,Current Schemes In Progress,Disab.Fac.Grants(Mandatory),Renovation Grants (Capital),"4,368.00",03/06/2013,rk84144757
00174871,Animal House,Environmental Health,Dog Warden Service,Other Third Party Payments,48.00,06/02/2014,wn84133898
00126298,APCOM,Information Technology,Design & Cartographic Unit,Grants & Subscription Expenses,100.00,31/03/2014,rk82125746
00167134,APH Building Services,Crime Reduction,Anti-Social Behaviour Officer,Other Third Party Payments,500.00,06/06/2013,rk84144768
00068518,Applied Geology,Leisure Centres,Stratford Leisure Centre,Repairs & Maintenance Expenses,570.00,05/12/2013,vm82127327
00110152,Approved E S Ltd,Current Schemes In Progress,Home Repair Assist.Grants,Renovation Grants (Capital),762.00,12/08/2013,rk84145139
00110152,Approved E S Ltd,Current Schemes In Progress,Home Repair Assist.Grants,Renovation Grants (Capital),480.00,19/08/2013,rk84145177
00110152,Approved E S Ltd,Current Schemes In Progress,Disab.Fac.Grants(Mandatory),Renovation Grants (Capital),108.00,27/02/2014,rk84146199
00023184,APSE,Street Cleansing & Furniture,Street Cleansing General Exps,Expenses,331.20,31/03/2014,vm82127452
00165592,Apt Controls Ltd,Environmental Initiatives,Electric Cars,Machinery & Equipment Expenses,0,23/05/2013,rk82125343
00165592,Apt Controls Ltd,Environmental Initiatives,Environmental Management,Machinery & Equipment Expenses,"3,913.34",23/05/2013,rk82125343
00165592,Apt Controls Ltd,Environmental Initiatives,Environmental Management,Machinery & Equipment Expenses,"1,624.80",10/06/2013,rk84144799
00164108,AQUAID,Building Services,Elizabeth House,Private Contractors,"1,536.00",24/06/2013,vm82127142
00164108,AQUAID,Building Services,Elizabeth House,Machinery & Equipment Expenses,"1,536.00",24/02/2014,vm84133916
,ARCO LTD,Building Control,Building Control,Protective Clothing Expenses,90.60,02/05/2013 ,3909
,ARCO LTD,Public Conveniences,Conveniences Expenses,Repair & Maintenance of Buildings,210.96,07/06/2013 ,4079
,ARCO LTD,Environmental Health,Environmental Health Expenses,Materials Expenses,2.69,21/06/2013 ,4131
,ARCO LTD,Environmental Health,Food Safety,Materials Expenses,58.70,24/06/2013 ,4132
,ARCO LTD,Public Conveniences,Conveniences Expenses,Repair & Maintenance of Buildings,146.16,19/08/2013 ,4408
,ARCO LTD,Building Control,Building Control,Protective Clothing Expenses,18.97,11/10/2013 ,4631
,ARCO LTD,Public Conveniences,Conveniences Expenses,Repair & Maintenance of Buildings,146.16,20/01/2014 ,5078
,ARCO LTD,Environmental Health,Food Safety,Protective Clothing Expenses,200.02,16/03/2014 ,5333
00005380,Arden Construction Ltd,Current Schemes In Progress,"Elizabeth House, Stratford-upon-Avon",Capital Works,"29,832.10",29/04/2013,rk82125314
00005380,Arden Construction Ltd,Current Schemes In Progress,"Elizabeth House, Stratford-upon-Avon",Capital Works,"5,793.29",22/07/2013,rk82125403
,ARDEN FOREST VETERINARY,Environmental Health,CV08 AYV Health Van,Miscellaneous Capital Expenditure,32.08,02/10/2013 ,4579
,ARDEN FOREST VETERINARY,Environmental Health,CV08 AYV Health Van,Miscellaneous Capital Expenditure,55.25,10/10/2013 ,4611
00004705,Arden Garages (2011) Ltd,Off-Street Parking,Car Parks Expenses,Direct Transport Expenses,3.73,16/05/2013,rk84144681
00004705,Arden Garages (2011) Ltd,On Street Parking,On Street,Direct Transport Expenses,8.70,16/05/2013,rk84144681
00004705,Arden Garages (2011) Ltd,Off-Street Parking,Car Parks Expenses,Direct Transport Expenses,14.60,08/07/2013,rk84144936
00004705,Arden Garages (2011) Ltd,On Street Parking,On Street,Direct Transport Expenses,34.08,08/07/2013,rk84144936
,ARGOS DIRECT,Front Office & Trans Team,Front Office & Transactional Team,Machinery & Equipment Expenses,399.99,12/06/2013 ,4060
,ARGOS LTD,Off-Street Parking,Car Parks Expenses,Repair & Maintenance - General,33.24,01/04/2013 ,3771
,ARGOS LTD,Regulatory Services,Enforcement Team,Materials Expenses,23.74,19/09/2013 ,4534
,ARGOS LTD,Regulatory Services,Enforcement Team,Materials Expenses,28.50,19/09/2013 ,4535
,ARGOS LTD,Off-Street Parking,Car Parks Expenses,Computer Hardware Expenses,26.78,24/09/2013 ,4537
,ARGOS LTD,On Street Parking,On Street Parking,Computer Hardware Expenses,62.50,24/09/2013 ,4537
,ARGOS LTD,Regulatory Services,Enforcement Team,Materials Expenses,52.24,30/09/2013 ,4563
,ARGOS LTD,C.C.T.V.,CCTV General Operation,Mobile Phones,47.49,16/10/2013 ,4624
,ARGOS LTD,Environmental Health,Environmental Health Expenses,Materials Expenses,9.49,28/10/2013 ,4696
,ARGOS LTD,Crime Reduction,Crime Reduction,Machinery & Equipment Maintenance,151.99,29/10/2013 ,4706
,ARGOS LTD,Housing,Homelessness,Gift Expenses,100.00,06/11/2013 ,4740
,ARGOS LTD,Current Schemes In Progress,"Capital Elizabeth House, SoA",Capital Acquistion Computer Hardware,4.74,08/01/2014 ,5003
00153944,Ark Housing Consultancy,Regulatory Services,Dev. Control General,Professional Fees,"1,920.00",30/01/2014,wn82116962
00141121,Arnold Clark Vehicle Management,Avenue Farm Depot,Avenue Farm Depot,Car Leasing,46.80,08/04/2013,rk84144401
00141121,Arnold Clark Vehicle Management,Building Services,Elizabeth House,Car Leasing,121.68,08/04/2013,rk84144401
00141121,Arnold Clark Vehicle Management,Cons. & Performance Management,"Governance, Community Safety & Procuremt",Car Leasing,"1,173.60",08/04/2013,rk84144400
00141121,Arnold Clark Vehicle Management,Environmental Health,Pathlow Gypsy Caravan Site,Car Leasing,46.80,08/04/2013,rk84144401
00141121,Arnold Clark Vehicle Management,Investment Properties,Investment Properties - General,Car Leasing,46.80,08/04/2013,rk84144401
00141121,Arnold Clark Vehicle Management,Leisure Centres,Stratford Leisure Centre,Car Leasing,46.79,08/04/2013,rk84144401
00141121,Arnold Clark Vehicle Management,Miscellaneous Properties,Misc. Properties - General,Car Leasing,112.33,08/04/2013,rk84144401
00141121,Arnold Clark Vehicle Management,Off-Street Parking,Car Parks Expenses,Car Leasing,93.61,08/04/2013,rk84144401
00141121,Arnold Clark Vehicle Management,Public Conveniences,Conveniences Expenses,Car Leasing,140.40,08/04/2013,rk84144401
00141121,Arnold Clark Vehicle Management,Recreational Amenities,Rec Ground Properties,Car Leasing,93.59,08/04/2013,rk84144401
00141121,Arnold Clark Vehicle Management,Resources,Accountancy Division,Car Leasing,921.60,08/04/2013,rk84144399
00141121,Arnold Clark Vehicle Management,SDC Infrastructure,SDC Infrastructure (inc. Car Parks),Car Leasing,140.40,08/04/2013,rk84144401
00141121,Arnold Clark Vehicle Management,Street Cleansing & Furniture,Street Furniture,Car Leasing,46.80,08/04/2013,rk84144401
00141121,Arnold Clark Vehicle Management,Housing,Private Sector Housing Team,Car Leasing,217.20,15/04/2013,rk84144444
00141121,Arnold Clark Vehicle Management,Environmental Health,Land Drainage Expenses,Car Leasing,"-1,173.60",18/04/2013,rk83116463
00141121,Arnold Clark Vehicle Management,Environmental Health,Land Drainage Expenses,Car Leasing,"1,173.60",18/04/2013,rk84144451
00141121,Arnold Clark Vehicle Management,Environmental Health,Env. Hlth.Dept.Exps.-Env.Protec,Car Leasing,-151.50,22/04/2013,rk83116466
00141121,Arnold Clark Vehicle Management,Environmental Health,Env. Hlth.Dept.Exps.-Env.Protec,Car Leasing,469.44,22/04/2013,rk84144471
00141121,Arnold Clark Vehicle Management,Environmental Health,Land Drainage Expenses,Car Leasing,-227.20,22/04/2013,rk83116466
00141121,Arnold Clark Vehicle Management,Environmental Health,Land Drainage Expenses,Car Leasing,704.16,22/04/2013,rk84144471
00141121,Arnold Clark Vehicle Management,Investment Properties,Investment Properties - General,Car Leasing,342.72,07/05/2013,rk84144626
00141121,Arnold Clark Vehicle Management,Miscellaneous Properties,Misc. Properties - General,Car Leasing,514.08,07/05/2013,rk84144626
00141121,Arnold Clark Vehicle Management,Regulatory Services,Dev. Control General,Car Leasing,907.20,13/05/2013,rk84144625
00141121,Arnold Clark Vehicle Management,Parks Playfields & Open Spaces,Grounds Maint. - General Admin,Car Leasing,190.09,16/05/2013,rk84144627
00141121,Arnold Clark Vehicle Management,Refuse Collection,Refuse Collection-Client Exs.,Car Leasing,126.71,16/05/2013,rk84144627
00141121,Arnold Clark Vehicle Management,Street Cleansing & Furniture,Street Cleansing General Exps,Car Leasing,253.44,16/05/2013,rk84144627
00141121,Arnold Clark Vehicle Management,Street Cleansing & Furniture,Street Furniture,Car Leasing,63.36,16/05/2013,rk84144627
00141121,Arnold Clark Vehicle Management,Housing,Private Sector Housing Team,Car Leasing,217.20,20/05/2013,rk84144642
00141121,Arnold Clark Vehicle Management,Regulatory Services,Dev. Control General,Car Leasing,928.80,20/05/2013,rk84144624
00141121,Arnold Clark Vehicle Management,Regulatory Services,Conservation,Car Leasing,309.59,28/05/2013,rk84144730
00141121,Arnold Clark Vehicle Management,Regulatory Services,Dev. Control General,Car Leasing,464.41,28/05/2013,rk84144730
00141121,Arnold Clark Vehicle Management,Regulatory Services,Conservation,Car Leasing,285.13,30/05/2013,rk84144731
00141121,Arnold Clark Vehicle Management,Regulatory Services,Dev. Control General,Car Leasing,427.67,30/05/2013,rk84144731
00141121,Arnold Clark Vehicle Management,Members Services,Legal Unit,Car Leasing,982.80,06/06/2013,rk84144732
00141121,Arnold Clark Vehicle Management,Regulatory Services,Dev. Control General,Car Leasing,810.00,06/06/2013,rk84144732
00141121,Arnold Clark Vehicle Management,Housing,Private Sector Housing Team,Car Leasing,217.20,13/06/2013,rk84144808
00141121,Arnold Clark Vehicle Management,Avenue Farm Depot,Avenue Farm Depot,Car Leasing,46.80,04/07/2013,rk84144908
00141121,Arnold Clark Vehicle Management,Building Services,Elizabeth House,Car Leasing,121.68,04/07/2013,rk84144908
00141121,Arnold Clark Vehicle Management,Environmental Health,Pathlow Gypsy Caravan Site,Car Leasing,46.80,04/07/2013,rk84144908
00141121,Arnold Clark Vehicle Management,Investment Properties,Investment Properties - General,Car Leasing,46.80,04/07/2013,rk84144908
00141121,Arnold Clark Vehicle Management,Leisure Centres,Stratford Leisure Centre,Car Leasing,46.79,04/07/2013,rk84144908
00141121,Arnold Clark Vehicle Management,Miscellaneous Properties,Misc. Properties - General,Car Leasing,112.33,04/07/2013,rk84144908
00141121,Arnold Clark Vehicle Management,Off-Street Parking,Car Parks Expenses,Car Leasing,93.61,04/07/2013,rk84144908
00141121,Arnold Clark Vehicle Management,Public Conveniences,Conveniences Expenses,Car Leasing,140.40,04/07/2013,rk84144908
00141121,Arnold Clark Vehicle Management,Recreational Amenities,Rec Ground Properties,Car Leasing,93.59,04/07/2013,rk84144908
00141121,Arnold Clark Vehicle Management,Resources,Accountancy Division,Car Leasing,921.60,04/07/2013,rk84144913
00141121,Arnold Clark Vehicle Management,SDC Infrastructure,SDC Infrastructure (inc. Car Parks),Car Leasing,140.40,04/07/2013,rk84144908
00141121,Arnold Clark Vehicle Management,Street Cleansing & Furniture,Street Furniture,Car Leasing,46.80,04/07/2013,rk84144908
00141121,Arnold Clark Vehicle Management,Cons. & Performance Management,"Governance, Community Safety & Procuremt",Car Leasing,"1,173.60",18/07/2013,rk84144914
00141121,Arnold Clark Vehicle Management,Housing,Private Sector Housing Team,Car Leasing,217.19,18/07/2013,rk84145001
00141121,Arnold Clark Vehicle Management,Resources,Accountancy Division,Car Leasing,-60.80,18/07/2013,rk83116478
00141121,Arnold Clark Vehicle Management,Resources,Exchequer Division,Car Leasing,-776.26,18/07/2013,rk83116478
00141121,Arnold Clark Vehicle Management,Resources,Exchequer Division,Car Leasing,-120.25,18/07/2013,rk83116479
00141121,Arnold Clark Vehicle Management,Resources,Exchequer Division,Car Leasing,344.85,18/07/2013,rk84145001
00141121,Arnold Clark Vehicle Management,Investment Properties,Investment Properties - General,Car Leasing,342.72,08/08/2013,rk84145122
00141121,Arnold Clark Vehicle Management,Miscellaneous Properties,Misc. Properties - General,Car Leasing,514.08,08/08/2013,rk84145122
00141121,Arnold Clark Vehicle Management,Parks Playfields & Open Spaces,Grounds Maint. - General Admin,Car Leasing,190.09,08/08/2013,rk84145119
00141121,Arnold Clark Vehicle Management,Refuse Collection,Refuse Collection-Client Exs.,Car Leasing,126.71,08/08/2013,rk84145119
00141121,Arnold Clark Vehicle Management,Regulatory Services,Dev. Control General,Car Leasing,907.20,08/08/2013,rk84145120
00141121,Arnold Clark Vehicle Management,Street Cleansing & Furniture,Street Cleansing General Exps,Car Leasing,253.44,08/08/2013,rk84145119
00141121,Arnold Clark Vehicle Management,Street Cleansing & Furniture,Street Furniture,Car Leasing,63.36,08/08/2013,rk84145119
00141121,Arnold Clark Vehicle Management,Resources,Exchequer Division,Car Leasing,240.50,12/08/2013,rk84145140
00141121,Arnold Clark Vehicle Management,Environmental Health,Env. Hlth.Dept.Exps.-Env.Protec,Car Leasing,590.51,19/08/2013,rk84145178
00141121,Arnold Clark Vehicle Management,Housing,Private Sector Housing Team,Car Leasing,217.20,19/08/2013,rk84145178
00141121,Arnold Clark Vehicle Management,Regulatory Services,Dev. Control General,Car Leasing,928.80,22/08/2013,rk84145121
00141121,Arnold Clark Vehicle Management,Members Services,Legal Unit,Car Leasing,982.80,27/08/2013,rk84145216
00141121,Arnold Clark Vehicle Management,Regulatory Services,Conservation,Car Leasing,285.12,27/08/2013,rk84145215
00141121,Arnold Clark Vehicle Management,Regulatory Services,Dev. Control General,Car Leasing,427.68,27/08/2013,rk84145215
00141121,Arnold Clark Vehicle Management,Regulatory Services,Dev. Control General,Car Leasing,810.00,27/08/2013,rk84145216
00141121,Arnold Clark Vehicle Management,Environmental Health,Env. Hlth.Dept.Exps.-Env.Protec,Car Leasing,687.60,29/08/2013,rk84145249
00141121,Arnold Clark Vehicle Management,Environmental Health,Env. Hlth.Dept.Exps.-Env.Protec,Car Leasing,302.40,16/09/2013,rk84145321
00141121,Arnold Clark Vehicle Management,Housing,Private Sector Housing Team,Car Leasing,217.20,16/09/2013,rk84145321
00141121,Arnold Clark Vehicle Management,Avenue Farm Depot,Avenue Farm Depot,Car Leasing,46.80,03/10/2013,rk84145487
00141121,Arnold Clark Vehicle Management,Building Services,Elizabeth House,Car Leasing,121.68,03/10/2013,rk84145487
00141121,Arnold Clark Vehicle Management,Civil Contingencies Funding,Flood Costs,Car Leasing,38.62,03/10/2013,rk84145487
00141121,Arnold Clark Vehicle Management,Cons. & Performance Management,"Governance, Community Safety & Procuremt",Car Leasing,"1,173.60",03/10/2013,rk84145486
00141121,Arnold Clark Vehicle Management,Environmental Health,Env. Hlth.Dept.Exps.-Env.Protec,Car Leasing,-623.10,03/10/2013,rk83116490
00141121,Arnold Clark Vehicle Management,Environmental Health,Env. Hlth.Dept.Exps.-Env.Protec,Car Leasing,29.83,03/10/2013,rk84145348
00141121,Arnold Clark Vehicle Management,Environmental Health,Pathlow Gypsy Caravan Site,Car Leasing,46.80,03/10/2013,rk84145487
00141121,Arnold Clark Vehicle Management,Investment Properties,Investment Properties - General,Car Leasing,8.18,03/10/2013,rk84145487
00141121,Arnold Clark Vehicle Management,Leisure Centres,Stratford Leisure Centre,Car Leasing,46.79,03/10/2013,rk84145487
00141121,Arnold Clark Vehicle Management,Miscellaneous Properties,Misc. Properties - General,Car Leasing,112.33,03/10/2013,rk84145487
00141121,Arnold Clark Vehicle Management,Off-Street Parking,Car Parks Expenses,Car Leasing,93.61,03/10/2013,rk84145487
00141121,Arnold Clark Vehicle Management,Public Conveniences,Conveniences Expenses,Car Leasing,140.40,03/10/2013,rk84145487
00141121,Arnold Clark Vehicle Management,Recreational Amenities,Rec Ground Properties,Car Leasing,93.59,03/10/2013,rk84145487
00141121,Arnold Clark Vehicle Management,Resources,Accountancy Division,Car Leasing,921.60,03/10/2013,rk84145485
00141121,Arnold Clark Vehicle Management,SDC Infrastructure,SDC Infrastructure (inc. Car Parks),Car Leasing,140.40,03/10/2013,rk84145487
00141121,Arnold Clark Vehicle Management,Street Cleansing & Furniture,Street Furniture,Car Leasing,46.80,03/10/2013,rk84145487
00141121,Arnold Clark Vehicle Management,Regulatory Services,Dev. Control General,Car Leasing,-810.00,07/10/2013,rk83116491
00141121,Arnold Clark Vehicle Management,Regulatory Services,Dev. Control General,Car Leasing,870.01,07/10/2013,rk84145507
00141121,Arnold Clark Vehicle Management,Regulatory Services,Dev. Control General,Car Leasing,335.91,07/10/2013,rk84145508
00141121,Arnold Clark Vehicle Management,Housing,Private Sector Housing Team,Car Leasing,217.20,14/10/2013,rk84145558
00141121,Arnold Clark Vehicle Management,Investment Properties,Investment Properties - General,Car Leasing,342.72,04/11/2013,rk84145652
00141121,Arnold Clark Vehicle Management,Miscellaneous Properties,Misc. Properties - General,Car Leasing,514.08,04/11/2013,rk84145652
00141121,Arnold Clark Vehicle Management,Parks Playfields & Open Spaces,Grounds Maint. - General Admin,Car Leasing,190.09,04/11/2013,rk84145651
00141121,Arnold Clark Vehicle Management,Refuse Collection,Refuse Collection-Client Exs.,Car Leasing,126.71,04/11/2013,rk84145651
00141121,Arnold Clark Vehicle Management,Regulatory Services,Dev. Control General,Car Leasing,907.20,04/11/2013,rk84145653
00141121,Arnold Clark Vehicle Management,Street Cleansing & Furniture,Street Cleansing General Exps,Car Leasing,253.44,04/11/2013,rk84145651
00141121,Arnold Clark Vehicle Management,Street Cleansing & Furniture,Street Furniture,Car Leasing,63.36,04/11/2013,rk84145651
00141121,Arnold Clark Vehicle Management,Housing,Private Sector Housing Team,Car Leasing,217.20,18/11/2013,rk84145718
00141121,Arnold Clark Vehicle Management,Regulatory Services,Conservation,Car Leasing,201.53,18/11/2013,rk84145718
00141121,Arnold Clark Vehicle Management,Regulatory Services,Dev. Control General,Car Leasing,302.29,18/11/2013,rk84145718
00141121,Arnold Clark Vehicle Management,Environmental Health,Env. Hlth.Dept.Exps.-Env.Protec,Car Leasing,687.60,02/12/2013,rk84145795
00141121,Arnold Clark Vehicle Management,Members Services,Legal Unit,Car Leasing,982.79,02/12/2013,rk84145793
00141121,Arnold Clark Vehicle Management,Regulatory Services,Conservation,Car Leasing,285.12,02/12/2013,rk84145794
00141121,Arnold Clark Vehicle Management,Regulatory Services,Dev. Control General,Car Leasing,870.02,02/12/2013,rk84145793
00141121,Arnold Clark Vehicle Management,Regulatory Services,Dev. Control General,Car Leasing,427.68,02/12/2013,rk84145794
00141121,Arnold Clark Vehicle Management,Housing,Private Sector Housing Team,Car Leasing,217.19,19/12/2013,rk84145854
00141121,Arnold Clark Vehicle Management,Regulatory Services,Conservation,Car Leasing,103.21,19/12/2013,rk84145854
00141121,Arnold Clark Vehicle Management,Regulatory Services,Dev. Control General,Car Leasing,154.80,19/12/2013,rk84145854
00141121,Arnold Clark Vehicle Management,Cons. & Performance Management,"Governance, Community Safety & Procuremt",Car Leasing,"1,173.60",07/01/2014,rk84145954
00141121,Arnold Clark Vehicle Management,Parks Playfields & Open Spaces,Grounds Maint. - General Admin,Car Leasing,-314.55,07/01/2014,rk83116503
00141121,Arnold Clark Vehicle Management,Parks Playfields & Open Spaces,Grounds Maint. - General Admin,Car Leasing,190.08,07/01/2014,rk84145917
00141121,Arnold Clark Vehicle Management,Refuse Collection,Refuse Collection-Client Exs.,Car Leasing,-209.71,07/01/2014,rk83116503
00141121,Arnold Clark Vehicle Management,Refuse Collection,Refuse Collection-Client Exs.,Car Leasing,126.72,07/01/2014,rk84145917
00141121,Arnold Clark Vehicle Management,Resources,Accountancy Division,Car Leasing,921.60,07/01/2014,rk84145955
00141121,Arnold Clark Vehicle Management,Street Cleansing & Furniture,Street Cleansing General Exps,Car Leasing,-419.42,07/01/2014,rk83116503
00141121,Arnold Clark Vehicle Management,Street Cleansing & Furniture,Street Cleansing General Exps,Car Leasing,253.44,07/01/2014,rk84145917
00141121,Arnold Clark Vehicle Management,Street Cleansing & Furniture,Street Furniture,Car Leasing,-104.84,07/01/2014,rk83116503
00141121,Arnold Clark Vehicle Management,Street Cleansing & Furniture,Street Furniture,Car Leasing,63.36,07/01/2014,rk84145917
00141121,Arnold Clark Vehicle Management,Housing,Private Sector Housing Team,Car Leasing,217.20,16/01/2014,rk84146013
00141121,Arnold Clark Vehicle Management,Regulatory Services,Conservation,Car Leasing,433.14,16/01/2014,rk84146013
00141121,Arnold Clark Vehicle Management,Regulatory Services,Dev. Control General,Car Leasing,154.80,16/01/2014,rk84146013
00141121,Arnold Clark Vehicle Management,Investment Properties,Investment Properties - General,Car Leasing,342.72,06/02/2014,rk84146062
00141121,Arnold Clark Vehicle Management,Miscellaneous Properties,Misc. Properties - General,Car Leasing,514.08,06/02/2014,rk84146062
00141121,Arnold Clark Vehicle Management,Regulatory Services,Dev. Control General,Car Leasing,907.20,06/02/2014,rk84146060
00141121,Arnold Clark Vehicle Management,Community Leadership,Shakespeare Celebrations Project,Car Leasing,136.12,13/02/2014,rk84146134
00141121,Arnold Clark Vehicle Management,Housing,Private Sector Housing Team,Car Leasing,81.09,13/02/2014,rk84146134
00141121,Arnold Clark Vehicle Management,Regulatory Services,Conservation,Car Leasing,103.21,13/02/2014,rk84146134
00141121,Arnold Clark Vehicle Management,Regulatory Services,Dev. Control General,Car Leasing,464.38,13/02/2014,rk84146134
00141121,Arnold Clark Vehicle Management,Environmental Health,Env. Hlth.Dept.Exps.-Env.Protec,Car Leasing,687.60,03/03/2014,rk84146213
00141121,Arnold Clark Vehicle Management,Regulatory Services,Conservation,Car Leasing,285.12,03/03/2014,rk84146218
00141121,Arnold Clark Vehicle Management,Regulatory Services,Dev. Control General,Car Leasing,427.68,03/03/2014,rk84146218
00141121,Arnold Clark Vehicle Management,Members Services,Legal Unit,Car Leasing,982.79,06/03/2014,rk84146214
00141121,Arnold Clark Vehicle Management,Regulatory Services,Dev. Control General,Car Leasing,870.02,06/03/2014,rk84146214
00141121,Arnold Clark Vehicle Management,Avenue Farm Depot,Avenue Farm Depot,Car Leasing,25.85,13/03/2014,rk84146269
00141121,Arnold Clark Vehicle Management,Building Services,Building Services(Custodian & Security),Car Leasing,67.21,13/03/2014,rk84146269
00141121,Arnold Clark Vehicle Management,Community Leadership,Shakespeare Celebrations Project,Car Leasing,217.20,13/03/2014,rk84146269
00141121,Arnold Clark Vehicle Management,Environmental Health,Pathlow Gypsy Caravan Site,Car Leasing,25.85,13/03/2014,rk84146269
00141121,Arnold Clark Vehicle Management,Investment Properties,Investment Properties - General,Car Leasing,25.85,13/03/2014,rk84146269
00141121,Arnold Clark Vehicle Management,Leisure Centres,Stratford Leisure Centre,Car Leasing,25.86,13/03/2014,rk84146269
00141121,Arnold Clark Vehicle Management,Miscellaneous Properties,Misc. Properties - General,Car Leasing,62.03,13/03/2014,rk84146269
00141121,Arnold Clark Vehicle Management,Off-Street Parking,Car Parks Expenses,Car Leasing,51.70,13/03/2014,rk84146269
00141121,Arnold Clark Vehicle Management,Public Conveniences,Conveniences Expenses,Car Leasing,77.56,13/03/2014,rk84146269
00141121,Arnold Clark Vehicle Management,Recreational Amenities,Rec Ground Properties,Car Leasing,51.70,13/03/2014,rk84146269
00141121,Arnold Clark Vehicle Management,Regulatory Services,Conservation,Car Leasing,412.79,13/03/2014,rk84146269
00141121,Arnold Clark Vehicle Management,Regulatory Services,Dev. Control General,Car Leasing,154.80,13/03/2014,rk84146269
00141121,Arnold Clark Vehicle Management,SDC Infrastructure,SDC Infrastructure (inc. Car Parks),Car Leasing,77.56,13/03/2014,rk84146269
00141121,Arnold Clark Vehicle Management,Street Cleansing & Furniture,Street Furniture,Car Leasing,25.85,13/03/2014,rk84146269
00019813,Arrow Mill Hotel Ltd,Corporate Communications,Corp. Communications,Expenses,525.00,12/12/2013,yq84120021
00019813,Arrow Mill Hotel Ltd,Corporate Communications,Corp. Communications,Rent Expenses,490.00,10/03/2014,yq84120075
00010540,Arrow Village Hall,Creditors,WCC Elections May 2013,Cash Payments,100.00,10/06/2013,yq84119784
00055356,Arthur J Gallagher,Resources,Insurances - General,Professional Fees,"4,000.00",01/07/2013,rk84144881
00055356,Arthur J Gallagher,Debtors,Insurances - Property,Cash Payments,"87,364.04",07/10/2013,rk84145515
00055356,Arthur J Gallagher,Off-Street Parking,Car Parks Expenses,Miscellaneous Expenses,6.88,07/10/2013,rk84145514
00055356,Arthur J Gallagher,On Street Parking,On Street,Miscellaneous Expenses,16.07,07/10/2013,rk84145514
00132143,Arvato Government Services Ltd,HR and Training,"Business, Housing & Revenues Training",Indirect Employee Expenses,720.00,01/07/2013,rk82125380
00132143,Arvato Government Services Ltd,HR and Training,"Business, Housing & Revenues Training",Indirect Employee Expenses,288.00,04/07/2013,rk82125382
00132143,Arvato Government Services Ltd,HR and Training,"Business, Housing & Revenues Training",Indirect Employee Expenses,432.00,31/10/2013,rk82125487
,ASDA SUPERSTORE,Local Economy/Tourism,Tourist Visitor Centre,Materials Expenses,42.00,18/10/2013 ,4660
00015244,Ashorne Village Hall,Creditors,WCC Elections May 2013,Cash Payments,125.00,10/06/2013,yq84119785
,ASI www.joydiy.co.uk,Crime Reduction,Crime Reduction,Materials Expenses,31.12,22/06/2013 ,4140
,ASI www.joydiy.co.uk,Crime Reduction,Crime Reduction,Materials Expenses,49.70,03/07/2013 ,4180
,ASSOC OF BUILDING ENGINR,Building Control,Building Control,Training Expenses,78.00,14/02/2014 ,5202
00113560,Associated Commercial Ind Builders Ltd,Current Schemes In Progress,Disab.Fac.Grants(Mandatory),Renovation Grants (Capital),"3,536.00",03/06/2013,rk84144759
00113560,Associated Commercial Ind Builders Ltd,Current Schemes In Progress,Disab.Fac.Grants(Mandatory),Renovation Grants (Capital),"3,626.00",04/07/2013,rk84144929
00113560,Associated Commercial Ind Builders Ltd,Current Schemes In Progress,Disab.Fac.Grants(Mandatory),Renovation Grants (Capital),"4,087.00",10/10/2013,rk84145524
00113560,Associated Commercial Ind Builders Ltd,Current Schemes In Progress,Disab.Fac.Grants(Mandatory),Renovation Grants (Capital),"3,810.00",03/02/2014,rk84146088
00016751,Association of Building Engineers,Building Control,Building Control Service (Fee),Indirect Employee Expenses,165.00,01/08/2013,rk84145075
00016751,Association of Building Engineers,Building Control,Building Control Service (Fee),Indirect Employee Expenses,220.00,01/08/2013,rk84145076
00016751,Association of Building Engineers,Building Control,Building Control Service (Fee),Indirect Employee Expenses,165.00,01/08/2013,rk84145077
00016751,Association of Building Engineers,Building Control,Building Control Service (Fee),Indirect Employee Expenses,200.00,01/08/2013,rk84145078
00016751,Association of Building Engineers,Building Control,Building Control Service (Fee),Indirect Employee Expenses,220.00,01/08/2013,rk84145079
00016751,Association of Building Engineers,Building Control,Building Control Service (Fee),Indirect Employee Expenses,220.00,27/08/2013,rk84145228
00016751,Association of Building Engineers,Building Control,Building Control Service (Fee),Indirect Employee Expenses,200.00,10/10/2013,rk84145533
00016751,Association of Building Engineers,Building Control,Building Control Service (Fee),Indirect Employee Expenses,73.00,21/11/2013,rk84145743
00016751,Association of Building Engineers,Building Control,Building Control Service (Fee),Indirect Employee Expenses,32.00,02/12/2013,rk84145798
00016751,Association of Building Engineers,Building Control,Building Control Service (Fee),Indirect Employee Expenses,32.00,02/12/2013,rk84145801
00128377,AST Connection Ltd,Civil Contingencies Funding,Major Emergency Response,Grants & Subscription Expenses,534.00,22/08/2013,rk82125434
00156381,AST Distribution,Civil Contingencies Funding,Major Emergency Response,Communications Expenses,114.00,03/02/2014,rk84146092
00156381,AST Distribution,Civil Contingencies Funding,Major Emergency Response,Communications Expenses,114.00,10/02/2014,rk82125656
00156381,AST Distribution,Civil Contingencies Funding,Major Emergency Response,Communications Expenses,-114.00,10/02/2014,rk83116507
00075239,Aston Cantlow Village Hall,Creditors,WCC Elections May 2013,Cash Payments,175.00,10/06/2013,yq84119786
,ASTUTIS LTD,Environmental Health,Environmental Health Expenses,Health & Safety,"1,728.00",15/05/2013 ,3952
,ASTUTIS LTD,Environmental Health,Environmental Health Expenses,Training Expenses,120.00,29/08/2013 ,4424
00025409,ATG Access Ltd,Street Cleansing & Furniture,Street Furniture,Other Third Party Payments,"7,694.40",24/03/2014,rk82125737
00003366,Audit Commission,Housing Ben. Admin,H BenPrvte Tnants-Gen Admin,Other Third Party Payments,"1,100.00",20/06/2013,rk82125365
00001326,Automail Envelopes Ltd,Housing Ben. Admin,H BenPrvte Tnants-Gen Admin,General Office Expenses,816.00,20/06/2013,vm82127134
00011604,Automatic Door Ltd,Building Services,Elizabeth House,Repairs & Maintenance Expenses,242.40,20/06/2013,rk82125372
00011604,Automatic Door Ltd,Building Services,Alcester Area Office,Repairs & Maintenance Expenses,238.37,08/08/2013,rk84145037
00011604,Automatic Door Ltd,Building Services,Elizabeth House,Repairs & Maintenance Expenses,204.12,08/08/2013,rk84145037
00011604,Automatic Door Ltd,Building Services,Elizabeth House Executive Suite Operatio,Repairs & Maintenance Expenses,7.56,08/08/2013,rk84145037
00011604,Automatic Door Ltd,Building Services,Elizabeth House Ground Floor Area,Repairs & Maintenance Expenses,40.32,08/08/2013,rk84145037
00011604,Automatic Door Ltd,Investment Properties,"The Grange, Southam",Repairs & Maintenance Expenses,84.00,08/08/2013,rk84145037
00011604,Automatic Door Ltd,Off-Street Parking,Shopmobility,Repairs & Maintenance Expenses,66.00,08/08/2013,rk84145037
00011604,Automatic Door Ltd,Building Services,Elizabeth House,Indirect Employee Expenses,"1,321.20",26/09/2013,rk82125463
00011604,Automatic Door Ltd,HR and Training,Human Resources,Indirect Employee Expenses,0,26/09/2013,rk82125463
00011604,Automatic Door Ltd,Building Services,Elizabeth House,Repairs & Maintenance Expenses,194.40,05/12/2013,rk84145830
00011604,Automatic Door Ltd,Off-Street Parking,Shopmobility,Repairs & Maintenance Expenses,233.88,12/12/2013,rk82125560
00011604,Automatic Door Ltd,Off-Street Parking,Shopmobility,Private Contractors,97.20,24/12/2013,rk82125598
00011604,Automatic Door Ltd,Building Services,Elizabeth House,Repairs & Maintenance Expenses,"14,755.20",10/02/2014,rk82125663
00011604,Automatic Door Ltd,Building Services,Alcester Area Office,Repairs & Maintenance Expenses,252.00,24/02/2014,rk84146180
00011604,Automatic Door Ltd,Building Services,Elizabeth House,Repairs & Maintenance Expenses,145.80,24/02/2014,rk84146180
00011604,Automatic Door Ltd,Building Services,Elizabeth House Executive Suite Operatio,Repairs & Maintenance Expenses,95.40,24/02/2014,rk84146180
00011604,Automatic Door Ltd,Building Services,Elizabeth House Ground Floor Area,Repairs & Maintenance Expenses,28.80,24/02/2014,rk84146180
00011604,Automatic Door Ltd,Investment Properties,"The Grange, Southam",Repairs & Maintenance Expenses,90.00,24/02/2014,rk84146180
00011604,Automatic Door Ltd,Off-Street Parking,Shopmobility,Repairs & Maintenance Expenses,72.00,24/02/2014,rk84146180
00011604,Automatic Door Ltd,Building Services,Alcester Area Office,Repairs & Maintenance Expenses,97.20,27/02/2014,rk82125689
00024497,Automotive Leasing Ltd,Avenue Farm Depot,Avenue Farm Depot,Car Leasing,55.90,08/04/2013,rk84144402
00024497,Automotive Leasing Ltd,Building Services,Elizabeth House,Car Leasing,145.35,08/04/2013,rk84144402
00024497,Automotive Leasing Ltd,Environmental Health,Pathlow Gypsy Caravan Site,Car Leasing,55.90,08/04/2013,rk84144402
00024497,Automotive Leasing Ltd,Information Technology,Information Technology Division,Car Leasing,"1,365.43",08/04/2013,rk84144404
00024497,Automotive Leasing Ltd,Investment Properties,Investment Properties - General,Car Leasing,55.90,08/04/2013,rk84144402
00024497,Automotive Leasing Ltd,Investment Properties,Investment Properties - General,Car Leasing,30.92,08/04/2013,rk84144403
00024497,Automotive Leasing Ltd,Leisure Centres,Stratford Leisure Centre,Car Leasing,55.90,08/04/2013,rk84144402
00024497,Automotive Leasing Ltd,Miscellaneous Properties,Misc. Properties - General,Car Leasing,134.17,08/04/2013,rk84144402
00024497,Automotive Leasing Ltd,Miscellaneous Properties,Misc. Properties - General,Car Leasing,587.40,08/04/2013,rk84144403
00024497,Automotive Leasing Ltd,Off-Street Parking,Car Parks Expenses,Car Leasing,111.81,08/04/2013,rk84144402
00024497,Automotive Leasing Ltd,Off-Street Parking,Car Parks Expenses,Contract Hire/Operating Leases,5.40,08/04/2013,rk84144406
00024497,Automotive Leasing Ltd,On Street Parking,On Street,Contract Hire/Operating Leases,12.60,08/04/2013,rk84144406
00024497,Automotive Leasing Ltd,Public Conveniences,Conveniences Expenses,Car Leasing,167.70,08/04/2013,rk84144402
00024497,Automotive Leasing Ltd,Recreational Amenities,Rec Ground Properties,Car Leasing,111.81,08/04/2013,rk84144402
00024497,Automotive Leasing Ltd,SDC Infrastructure,SDC Infrastructure (inc. Car Parks),Car Leasing,167.71,08/04/2013,rk84144402
00024497,Automotive Leasing Ltd,Street Cleansing & Furniture,Street Furniture,Car Leasing,55.90,08/04/2013,rk84144402
00024497,Automotive Leasing Ltd,Building Services,Elizabeth House,Contract Hire/Operating Leases,684.24,30/05/2013,rk84144747
00024497,Automotive Leasing Ltd,Corp. And Democratic Core,CDC - Salary Recharges,Car Leasing,-3.61,30/05/2013,rk83116465
00024497,Automotive Leasing Ltd,Council Tax,Council Tax,Car Leasing,-9.01,30/05/2013,rk83116465
00024497,Automotive Leasing Ltd,Council Tax Reduction - Admin.,Council Tax Benefits - Admin.,Car Leasing,-9.01,30/05/2013,rk83116465
00024497,Automotive Leasing Ltd,Housing Ben. Admin,H BenPrvte Tnants-Gen Admin,Car Leasing,-171.30,30/05/2013,rk83116461
00024497,Automotive Leasing Ltd,Housing Ben. Admin,H BenPrvte Tnants-Gen Admin,Car Leasing,-9.01,30/05/2013,rk83116465
00024497,Automotive Leasing Ltd,Investment Properties,Investment Properties - General,Car Leasing,-30.90,30/05/2013,rk83116471
00024497,Automotive Leasing Ltd,Investment Properties,Investment Properties - General,Car Leasing,30.91,30/05/2013,rk84144749
00024497,Automotive Leasing Ltd,Miscellaneous Properties,Misc. Properties - General,Car Leasing,-587.41,30/05/2013,rk83116471
00024497,Automotive Leasing Ltd,Miscellaneous Properties,Misc. Properties - General,Car Leasing,587.40,30/05/2013,rk84144749
00024497,Automotive Leasing Ltd,National Non-Domestic Rate,NNDR Admin.,Car Leasing,-5.40,30/05/2013,rk83116465
00024497,Automotive Leasing Ltd,Off-Street Parking,Car Parks Expenses,Contract Hire/Operating Leases,220.52,30/05/2013,rk84144748
00024497,Automotive Leasing Ltd,Off-Street Parking,Car Parks Expenses,Contract Hire/Operating Leases,276.35,30/05/2013,rk84144751
00024497,Automotive Leasing Ltd,On Street Parking,On Street,Contract Hire/Operating Leases,514.55,30/05/2013,rk84144748
00024497,Automotive Leasing Ltd,On Street Parking,On Street,Contract Hire/Operating Leases,644.82,30/05/2013,rk84144751
00024497,Automotive Leasing Ltd,Public Conveniences,Conveniences Expenses,Contract Hire/Operating Leases,456.17,30/05/2013,rk84144747
00024497,Automotive Leasing Ltd,Public Conveniences,Conveniences Expenses,Contract Hire/Operating Leases,939.65,30/05/2013,rk84144750
00024497,Automotive Leasing Ltd,Corp. And Democratic Core,CDC - Salary Recharges,Car Leasing,3.61,08/07/2013,rk84144935
00024497,Automotive Leasing Ltd,Council Tax,Council Tax,Car Leasing,9.01,08/07/2013,rk84144935
00024497,Automotive Leasing Ltd,Council Tax Reduction - Admin.,Council Tax Benefits - Admin.,Car Leasing,9.01,08/07/2013,rk84144935
00024497,Automotive Leasing Ltd,Housing Ben. Admin,H BenPrvte Tnants-Gen Admin,Car Leasing,9.01,08/07/2013,rk84144935
00024497,Automotive Leasing Ltd,National Non-Domestic Rate,NNDR Admin.,Car Leasing,5.40,08/07/2013,rk84144935
00024497,Automotive Leasing Ltd,Information Technology,Information Technology Division,Car Leasing,"1,365.43",11/07/2013,rk84144915
00024497,Automotive Leasing Ltd,Investment Properties,Investment Properties - General,Car Leasing,30.92,18/07/2013,rk84144916
00024497,Automotive Leasing Ltd,Miscellaneous Properties,Misc. Properties - General,Car Leasing,587.40,18/07/2013,rk84144916
00024497,Automotive Leasing Ltd,Building Services,Elizabeth House,Car Leasing,18.00,29/07/2013,rk84145054
00024497,Automotive Leasing Ltd,Avenue Farm Depot,Avenue Farm Depot,Car Leasing,18.63,29/08/2013,rk84145197
00024497,Automotive Leasing Ltd,Building Services,Elizabeth House,Car Leasing,48.45,29/08/2013,rk84145197
00024497,Automotive Leasing Ltd,Civil Contingencies Funding,Flood Costs,Car Leasing,15.86,29/08/2013,rk84145197
00024497,Automotive Leasing Ltd,Environmental Health,Pathlow Gypsy Caravan Site,Car Leasing,18.65,29/08/2013,rk84145197
00024497,Automotive Leasing Ltd,HR and Training,Emergency Control Room,Contract Hire/Operating Leases,684.24,29/08/2013,rk84145198
00024497,Automotive Leasing Ltd,Investment Properties,Investment Properties - General,Car Leasing,2.77,29/08/2013,rk84145197
00024497,Automotive Leasing Ltd,Leisure Centres,Stratford Leisure Centre,Car Leasing,18.63,29/08/2013,rk84145197
00024497,Automotive Leasing Ltd,Miscellaneous Properties,Misc. Properties - General,Car Leasing,44.72,29/08/2013,rk84145197
00024497,Automotive Leasing Ltd,Off-Street Parking,Car Parks Expenses,Car Leasing,37.26,29/08/2013,rk84145197
00024497,Automotive Leasing Ltd,Off-Street Parking,Car Parks Expenses,Contract Hire/Operating Leases,276.35,29/08/2013,rk84145200
00024497,Automotive Leasing Ltd,Off-Street Parking,Car Parks Expenses,Contract Hire/Operating Leases,220.52,29/08/2013,rk84145201
00024497,Automotive Leasing Ltd,On Street Parking,On Street,Contract Hire/Operating Leases,644.82,29/08/2013,rk84145200
00024497,Automotive Leasing Ltd,On Street Parking,On Street,Contract Hire/Operating Leases,514.55,29/08/2013,rk84145201
00024497,Automotive Leasing Ltd,Public Conveniences,Conveniences Expenses,Car Leasing,55.91,29/08/2013,rk84145197
00024497,Automotive Leasing Ltd,Public Conveniences,Conveniences Expenses,Contract Hire/Operating Leases,456.17,29/08/2013,rk84145198
00024497,Automotive Leasing Ltd,Public Conveniences,Conveniences Expenses,Contract Hire/Operating Leases,939.65,29/08/2013,rk84145199
00024497,Automotive Leasing Ltd,Recreational Amenities,Rec Ground Properties,Car Leasing,37.27,29/08/2013,rk84145197
00024497,Automotive Leasing Ltd,SDC Infrastructure,SDC Infrastructure (inc. Car Parks),Car Leasing,55.90,29/08/2013,rk84145197
00024497,Automotive Leasing Ltd,Street Cleansing & Furniture,Street Furniture,Car Leasing,18.63,29/08/2013,rk84145197
00024497,Automotive Leasing Ltd,Avenue Farm Depot,Avenue Farm Depot,Car Leasing,18.63,03/10/2013,rk84145480
00024497,Automotive Leasing Ltd,Building Services,Elizabeth House,Car Leasing,48.45,03/10/2013,rk84145480
00024497,Automotive Leasing Ltd,Environmental Health,Pathlow Gypsy Caravan Site,Car Leasing,18.64,03/10/2013,rk84145480
00024497,Automotive Leasing Ltd,Investment Properties,Investment Properties - General,Car Leasing,18.63,03/10/2013,rk84145480
00024497,Automotive Leasing Ltd,Investment Properties,Investment Properties - General,Car Leasing,30.93,03/10/2013,rk84145488
00024497,Automotive Leasing Ltd,Leisure Centres,Stratford Leisure Centre,Car Leasing,18.66,03/10/2013,rk84145480
00024497,Automotive Leasing Ltd,Miscellaneous Properties,Misc. Properties - General,Car Leasing,44.72,03/10/2013,rk84145480
00024497,Automotive Leasing Ltd,Miscellaneous Properties,Misc. Properties - General,Car Leasing,587.39,03/10/2013,rk84145488
00024497,Automotive Leasing Ltd,Off-Street Parking,Car Parks Expenses,Car Leasing,37.26,03/10/2013,rk84145480
00024497,Automotive Leasing Ltd,Public Conveniences,Conveniences Expenses,Car Leasing,55.90,03/10/2013,rk84145480
00024497,Automotive Leasing Ltd,Recreational Amenities,Rec Ground Properties,Car Leasing,37.26,03/10/2013,rk84145480
00024497,Automotive Leasing Ltd,SDC Infrastructure,SDC Infrastructure (inc. Car Parks),Car Leasing,55.90,03/10/2013,rk84145480
00024497,Automotive Leasing Ltd,Street Cleansing & Furniture,Street Furniture,Car Leasing,18.63,03/10/2013,rk84145480
00024497,Automotive Leasing Ltd,Avenue Farm Depot,Avenue Farm Depot,Car Leasing,-2.41,31/10/2013,rk83116494
00024497,Automotive Leasing Ltd,Avenue Farm Depot,Avenue Farm Depot,Car Leasing,18.63,31/10/2013,rk84145597
00024497,Automotive Leasing Ltd,Building Services,Elizabeth House,Car Leasing,-6.24,31/10/2013,rk83116494
00024497,Automotive Leasing Ltd,Building Services,Elizabeth House,Car Leasing,48.45,31/10/2013,rk84145597
00024497,Automotive Leasing Ltd,Environmental Health,Pathlow Gypsy Caravan Site,Car Leasing,-2.41,31/10/2013,rk83116494
00024497,Automotive Leasing Ltd,Environmental Health,Pathlow Gypsy Caravan Site,Car Leasing,18.64,31/10/2013,rk84145597
00024497,Automotive Leasing Ltd,Investment Properties,Investment Properties - General,Car Leasing,-2.41,31/10/2013,rk83116494
00024497,Automotive Leasing Ltd,Investment Properties,Investment Properties - General,Car Leasing,18.63,31/10/2013,rk84145597
00024497,Automotive Leasing Ltd,Leisure Centres,Stratford Leisure Centre,Car Leasing,-2.37,31/10/2013,rk83116494
00024497,Automotive Leasing Ltd,Leisure Centres,Stratford Leisure Centre,Car Leasing,18.66,31/10/2013,rk84145597
00024497,Automotive Leasing Ltd,Miscellaneous Properties,Misc. Properties - General,Car Leasing,-5.80,31/10/2013,rk83116494
00024497,Automotive Leasing Ltd,Miscellaneous Properties,Misc. Properties - General,Car Leasing,44.72,31/10/2013,rk84145597
00024497,Automotive Leasing Ltd,Off-Street Parking,Car Parks Expenses,Car Leasing,-4.81,31/10/2013,rk83116494
00024497,Automotive Leasing Ltd,Off-Street Parking,Car Parks Expenses,Car Leasing,37.26,31/10/2013,rk84145597
00024497,Automotive Leasing Ltd,Public Conveniences,Conveniences Expenses,Car Leasing,-7.22,31/10/2013,rk83116494
00024497,Automotive Leasing Ltd,Public Conveniences,Conveniences Expenses,Car Leasing,55.90,31/10/2013,rk84145597
00024497,Automotive Leasing Ltd,Recreational Amenities,Rec Ground Properties,Car Leasing,-4.81,31/10/2013,rk83116494
00024497,Automotive Leasing Ltd,Recreational Amenities,Rec Ground Properties,Car Leasing,37.26,31/10/2013,rk84145597
00024497,Automotive Leasing Ltd,SDC Infrastructure,SDC Infrastructure (inc. Car Parks),Car Leasing,-7.22,31/10/2013,rk83116494
00024497,Automotive Leasing Ltd,SDC Infrastructure,SDC Infrastructure (inc. Car Parks),Car Leasing,55.90,31/10/2013,rk84145597
00024497,Automotive Leasing Ltd,Street Cleansing & Furniture,Street Furniture,Car Leasing,-2.40,31/10/2013,rk83116494
00024497,Automotive Leasing Ltd,Street Cleansing & Furniture,Street Furniture,Car Leasing,18.63,31/10/2013,rk84145597
00024497,Automotive Leasing Ltd,Building Services,Elizabeth House,Car Leasing,-13.50,04/11/2013,rk83116495
00024497,Automotive Leasing Ltd,Building Services,Elizabeth House,Car Leasing,-3.42,04/11/2013,rk83116496
00024497,Automotive Leasing Ltd,Information Technology,Information Technology Division,Car Leasing,24.00,04/11/2013,rk84145650
00024497,Automotive Leasing Ltd,Building Services,Building Services(Custodian & Security),Contract Hire/Operating Leases,25.20,25/11/2013,rk84145771
00024497,Automotive Leasing Ltd,Off-Street Parking,Car Parks Expenses,Contract Hire/Operating Leases,22.85,25/11/2013,rk84145772
00024497,Automotive Leasing Ltd,On Street Parking,On Street,Contract Hire/Operating Leases,53.30,25/11/2013,rk84145772
00024497,Automotive Leasing Ltd,Public Conveniences,Conveniences Expenses,Contract Hire/Operating Leases,16.80,25/11/2013,rk84145771
00024497,Automotive Leasing Ltd,Information Technology,Information Technology Division,Car Leasing,455.12,28/11/2013,rk84145774
00024497,Automotive Leasing Ltd,Off-Street Parking,Car Parks Expenses,Contract Hire/Operating Leases,220.52,28/11/2013,rk84145768
00024497,Automotive Leasing Ltd,Off-Street Parking,Car Parks Expenses,Contract Hire/Operating Leases,276.35,28/11/2013,rk84145769
00024497,Automotive Leasing Ltd,On Street Parking,On Street,Contract Hire/Operating Leases,514.55,28/11/2013,rk84145768
00024497,Automotive Leasing Ltd,On Street Parking,On Street,Contract Hire/Operating Leases,644.82,28/11/2013,rk84145769
00024497,Automotive Leasing Ltd,Public Conveniences,Conveniences Expenses,Contract Hire/Operating Leases,939.65,28/11/2013,rk84145770
00024497,Automotive Leasing Ltd,Building Services,Building Services(Custodian & Security),Contract Hire/Operating Leases,647.18,23/12/2013,rk84145902
00024497,Automotive Leasing Ltd,Public Conveniences,Conveniences Expenses,Contract Hire/Operating Leases,431.45,23/12/2013,rk84145902
00024497,Automotive Leasing Ltd,Building Services,Building Services(Custodian & Security),Contract Hire/Operating Leases,-23.09,07/01/2014,rk83116504
00024497,Automotive Leasing Ltd,Information Technology,Information Technology Division,Car Leasing,455.12,07/01/2014,rk84145937
00024497,Automotive Leasing Ltd,Investment Properties,Investment Properties - General,Car Leasing,30.92,07/01/2014,rk84145936
00024497,Automotive Leasing Ltd,Miscellaneous Properties,Misc. Properties - General,Car Leasing,587.40,07/01/2014,rk84145936
00024497,Automotive Leasing Ltd,Public Conveniences,Conveniences Expenses,Contract Hire/Operating Leases,-15.40,07/01/2014,rk83116504
00024497,Automotive Leasing Ltd,Information Technology,Information Technology Division,Car Leasing,455.12,30/01/2014,rk84146058
00024497,Automotive Leasing Ltd,Off-Street Parking,Car Parks Expenses,Car Leasing,12.60,20/02/2014,rk84146166
00024497,Automotive Leasing Ltd,On Street Parking,On Street,Car Leasing,29.40,20/02/2014,rk84146166
00024497,Automotive Leasing Ltd,Building Services,Building Services(Custodian & Security),Contract Hire/Operating Leases,647.18,06/03/2014,rk84146215
00024497,Automotive Leasing Ltd,Information Technology,Information Technology Division,Car Leasing,455.12,06/03/2014,rk84146216
00024497,Automotive Leasing Ltd,Public Conveniences,Conveniences Expenses,Contract Hire/Operating Leases,431.45,06/03/2014,rk84146215
00024497,Automotive Leasing Ltd,Public Conveniences,Conveniences Expenses,Contract Hire/Operating Leases,939.65,06/03/2014,rk84146217
00024497,Automotive Leasing Ltd,Off-Street Parking,Car Parks Expenses,Contract Hire/Operating Leases,7.20,24/03/2014,rk84146302
00024497,Automotive Leasing Ltd,On Street Parking,On Street,Contract Hire/Operating Leases,16.80,24/03/2014,rk84146302
,AVANGATE.COM,Information Technology,Design & Cartographic Unit,Materials Expenses,156.09,02/07/2013 ,4174
,AVON FASTENINGS LTD,Public Conveniences,Conveniences Expenses,Repair & Maintenance of Buildings,15.00,09/08/2013 ,4374
00053471,Avon Studios,CDC Chief Executive,Civic Expenses,Miscellaneous Expenses,285.00,11/07/2013,yq84119933
00166889,Aylesbury Vale District Council,Regulatory Services,Dev. Control General,Professional Fees,"5,167.50",15/08/2013,wn82116878
,Azenberg Hotel,Local Economy/Tourism,Boo - Games Project,Employee Accomodation,172.21,26/04/2013 ,3893
00140038,Aztec Watersports,Sports Development,Sports Development,Other Third Party Payments,100.00,02/05/2013,vm84132709
00140038,Aztec Watersports,Sports Development,Sports Development,Other Third Party Payments,300.00,27/06/2013,vm84132708
00140038,Aztec Watersports,Sports Development,Sports Development,Other Third Party Payments,125.00,17/03/2014,vm84133965
00159414,B & 4th  Transport,Community Leadership,Grants - General,Other Third Party Payments,376.52,25/07/2013,vm84133074
,B & Q,Off-Street Parking,Car Parks Expenses,Machinery & Equipment Expenses,30.45,03/04/2013 ,3774
,B & Q,On Street Parking,On Street Parking,Machinery & Equipment Expenses,71.09,03/04/2013 ,3774
,B & Q,Off-Street Parking,Car Parks Expenses,Machinery & Equipment Expenses,14.94,03/04/2013 ,3784
,B & Q,On Street Parking,On Street Parking,Machinery & Equipment Expenses,34.86,03/04/2013 ,3784
,B & Q,Public Conveniences,Conveniences Expenses,Repair & Maintenance of Buildings,8.48,04/04/2013 ,3790
,B & Q,Off-Street Parking,Car Parks Expenses,Machinery & Equipment Expenses,17.34,10/04/2013 ,3800
,B & Q,On Street Parking,On Street Parking,Machinery & Equipment Expenses,40.42,10/04/2013 ,3800
,B & Q,Parks Playfields & Open Spaces,Grounds Maintenance,Materials Expenses,11.96,10/04/2013 ,3808
,B & Q,Public Conveniences,Conveniences Expenses,Repair & Maintenance of Buildings,20.56,19/04/2013 ,3878
,B & Q,Creditors,WCC Elections May 2013,Cash Payments,10.68,01/05/2013 ,3900
,B & Q,Public Conveniences,Conveniences Expenses,Repair & Maintenance of Buildings,24.98,14/05/2013 ,3963
,B & Q,Environmental Health,Environmental Health Expenses,Long Service Awards,290.00,17/05/2013 ,3989
,B & Q,Public Conveniences,Conveniences Expenses,Repair & Maintenance of Buildings,6.98,06/06/2013 ,4046
,B & Q,Public Conveniences,Conveniences Expenses,Repair & Maintenance of Buildings,28.96,13/06/2013 ,4081
,B & Q,Miscellaneous Properties,Miscellaneous Properties,Repair & Maintenance - General,46.96,24/06/2013 ,4153
,B & Q,Crime Reduction,Crime Reduction,Materials Expenses,7.98,12/07/2013 ,4247
,B & Q,Sports Development,Sports Development,Machinery & Equipment Expenses,14.00,24/07/2013 ,4270
,B & Q,SDC Infrastructure,SDC Infrastructure (including Car Parks),Repair & Maintenance of Buildings,10.46,08/08/2013 ,4341
,B & Q,Street Cleansing & Furniture,Street Cleansing,Materials Expenses,12.48,03/09/2013 ,4441
,B & Q,Public Conveniences,Conveniences Expenses,Repair & Maintenance of Buildings,36.92,25/09/2013 ,4547
,B & Q,Public Conveniences,Conveniences Expenses,Repair & Maintenance of Buildings,28.96,08/10/2013 ,4597
,B & Q,Off-Street Parking,Car Parks Expenses,Materials Expenses,5.00,21/10/2013 ,4661
,B & Q,Public Conveniences,Conveniences Expenses,Repair & Maintenance of Buildings,10.94,06/11/2013 ,4747
,B & Q,Corporate Property Div (Sals),Engineers Consultancy Account,Machinery & Equipment Expenses,8.98,28/11/2013 ,4854
,B & Q,Public Conveniences,Conveniences Expenses,Repair & Maintenance of Ground,4.98,04/12/2013 ,4884
,B & Q,Building Services,Elizabeth House,Repair & Maintenance of Buildings,23.50,09/12/2013 ,4925
,B & Q,Off-Street Parking,Car Parks Expenses,Machinery & Equipment Expenses,10.76,18/12/2013 ,4942
,B & Q,On Street Parking,On Street Parking,Machinery & Equipment Expenses,25.16,18/12/2013 ,4942
,B & Q,Public Conveniences,Conveniences Expenses,Repair & Maintenance of Buildings,26.98,19/12/2013 ,4958
,B & Q,Sports Development,Sports Development,Signs & Notices,8.94,06/01/2014 ,4994
,B & Q,Street Cleansing & Furniture,Street Furniture,Furniture & Fittings Expenses,7.40,16/01/2014 ,5044
,B & Q,Corporate Property Div (Sals),Engineers Consultancy Account,Machinery & Equipment Expenses,19.98,28/01/2014 ,5121
,B & Q,Street Cleansing & Furniture,Street Furniture,Furniture & Fittings Expenses,5.75,12/02/2014 ,5189
,B & Q,SDC Infrastructure,SDC Infrastructure (including Car Parks),Repair & Maintenance of Buildings,5.98,06/03/2014 ,5276
00143543,Back Care Solutions Ltd,HR and Training,Human Resources,Indirect Employee Expenses,370.14,25/07/2013,vm82127181
00143543,Back Care Solutions Ltd,HR and Training,Human Resources,Indirect Employee Expenses,172.20,26/09/2013,vm84133399
00143543,Back Care Solutions Ltd,HR and Training,Human Resources,Indirect Employee Expenses,160.20,10/10/2013,vm82127267
00143543,Back Care Solutions Ltd,HR and Training,Human Resources,Indirect Employee Expenses,160.20,21/11/2013,vm82127315
00143543,Back Care Solutions Ltd,HR and Training,Human Resources,Indirect Employee Expenses,118.20,20/02/2014,vm82127406
,BAILEY BUILDBASE,Street Cleansing & Furniture,Street Furniture,Furniture & Fittings Expenses,6.48,05/09/2013 ,4456
00175919,Baker Goodchild,Elections,Parish By-Elections,General Office Expenses,252.00,27/03/2014,rk84146327
00115490,Bakers Commercial Servcies Ltd,Grants,Youth Strategy,Grants & Subscription Expenses,380.00,29/04/2013,rk84144584
00115490,Bakers Commercial Servcies Ltd,Grants,Youth Strategy,Grants & Subscription Expenses,360.00,03/06/2013,rk84144756
00153685,Balfour Beatty Living Places,Local Economy/Tourism,Stratford-upon-Avon Charter Mop,Other Third Party Payments,257.52,05/12/2013,rk82125556
00153685,Balfour Beatty Living Places,Local Economy/Tourism,Stratford-upon-Avon Charter Mop,Other Third Party Payments,"5,715.73",05/12/2013,rk82125557
00052511,Barbers Flooring,Environmental Health,Pathlow Gypsy Caravan Site,Repairs & Maintenance Expenses,576.00,16/05/2013,rk82125334
00052511,Barbers Flooring,Creditors,HMRC Sub-Contractors,Cash Payments,9.66,23/05/2013,rk84144714
00003418,Barneveld Consultants,Building Control,Building Control Service (Fee),Professional Fees,91.63,25/04/2013,wn84133222
00003418,Barneveld Consultants,Building Control,Building Control Service (Fee),Professional Fees,155.40,23/05/2013,wn84133283
00003418,Barneveld Consultants,Building Control,Building Control Service (Fee),Professional Fees,249.36,24/06/2013,wn84133361
00003418,Barneveld Consultants,Building Control,Building Control Service (Fee),Professional Fees,111.92,18/07/2013,wn84133430
00003418,Barneveld Consultants,Building Control,Building Control Service (Fee),Professional Fees,129.58,19/08/2013,wn84133502
00003418,Barneveld Consultants,Building Control,Building Control Service (Fee),Professional Fees,184.00,16/09/2013,wn84133556
00003418,Barneveld Consultants,Building Control,Building Control Service (Fee),Professional Fees,120.60,17/10/2013,wn84133616
00003418,Barneveld Consultants,Building Control,Building Control Service (Fee),Professional Fees,85.03,11/11/2013,wn84133683
00003418,Barneveld Consultants,Building Control,Building Control Service (Fee),Professional Fees,46.20,19/12/2013,wn84133780
00003418,Barneveld Consultants,Building Control,Building Control Service (Fee),Professional Fees,208.76,17/02/2014,wn84133935
00003418,Barneveld Consultants,Building Control,Building Control Service (Fee),Professional Fees,65.24,24/03/2014,wn84134005
00057147,Barry Chinn Associates,Regulatory Services,Dev. Control General,Professional Fees,"9,763.72",22/08/2013,wn84133496
00057147,Barry Chinn Associates,Regulatory Services,Planning Application Appeals,Professional Fees,"8,833.20",24/10/2013,wn84133638
00057147,Barry Chinn Associates,Regulatory Services,Planning Application Appeals,Professional Fees,"3,885.00",21/11/2013,wn84133688
,BASIC BOAT,Housing,Homelessness,Bed & Breakfast Costs,69.65,02/08/2013 ,4337
00014067,Bearley Village Hall Trust,Creditors,WCC Elections May 2013,Cash Payments,100.00,10/06/2013,yq84119789
,BECA BIN,Building Services,Elizabeth House,Furniture & Fittings Expenses,270.89,07/06/2013 ,4073
,BELL SERVICE STATI,Environmental Health,CV08 AYV Health Van,Vehicle Repair & Maintenance,1.99,10/12/2013 ,4933
,BELL SERVICE STATI,Environmental Health,CV08 AYV Health Van,Vehicle Petrol,30.01,10/12/2013 ,4933
00134073,Bendcrete Leisure Ltd,Current Schemes In Progress,Stratford Skate Park S106,Capital Works,"16,620.00",08/07/2013,rk82125392
00000754,Best Vending Ltd,Building Services,Vending Machines,Machinery & Equipment Expenses,243.86,18/04/2013,vm82127091
00000754,Best Vending Ltd,Building Services,Vending Machines,Machinery & Equipment Expenses,155.95,18/04/2013,vm84132703
00000754,Best Vending Ltd,Building Services,Vending Machines,Machinery & Equipment Expenses,96.63,16/05/2013,vm82127119
00000754,Best Vending Ltd,Building Services,Vending Machines,Machinery & Equipment Expenses,32.72,16/05/2013,vm82127120
00000754,Best Vending Ltd,Building Services,Vending Machines,Machinery & Equipment Expenses,182.87,04/07/2013,vm82127148
00000754,Best Vending Ltd,Building Services,Vending Machines,Machinery & Equipment Expenses,26.00,15/07/2013,vm84133070
00000754,Best Vending Ltd,Building Services,Vending Machines,Machinery & Equipment Expenses,25.37,01/08/2013,vm84133143
00000754,Best Vending Ltd,Building Services,Vending Machines,Machinery & Equipment Expenses,26.00,12/08/2013,vm84133205
00000754,Best Vending Ltd,Building Services,Vending Machines,Machinery & Equipment Expenses,237.77,29/08/2013,vm82127239
00000754,Best Vending Ltd,Building Services,Vending Machines,Machinery & Equipment Expenses,26.00,05/09/2013,vm84133296
00000754,Best Vending Ltd,Building Services,Vending Machines,Machinery & Equipment Expenses,26.00,14/10/2013,vm84133473
00000754,Best Vending Ltd,Building Services,Vending Machines,Machinery & Equipment Expenses,477.60,11/11/2013,vm84133582
00000754,Best Vending Ltd,Building Services,Vending Machines,Machinery & Equipment Expenses,236.25,18/11/2013,vm82127314
00000754,Best Vending Ltd,Information Technology,Printing (Outwork),Repairs & Maintenance Expenses,264.74,19/12/2013,vm82127345
00000754,Best Vending Ltd,Building Services,Vending Machines,Machinery & Equipment Expenses,306.54,10/02/2014,vm84133880
00000754,Best Vending Ltd,Building Services,Vending Machines,Machinery & Equipment Expenses,268.90,17/03/2014,vm82127440
,BHS 153,Off-Street Parking,Car Parks Expenses,Uniform Expenses,15.00,14/08/2013 ,4361
,BHS 153,On Street Parking,On Street Parking,Uniform Expenses,35.00,14/08/2013 ,4361
,BHS 153,Off-Street Parking,Car Parks Expenses,Uniform Expenses,-6.00,14/08/2013 ,4362
,BHS 153,On Street Parking,On Street Parking,Uniform Expenses,-14.00,14/08/2013 ,4362
00156365,Bidford Grange Hotel,Housing,Homelessness Prevention Fund,Other Third Party Payments,115.00,18/04/2013,wn84133202
00156365,Bidford Grange Hotel,Housing,Homelessness Prevention Fund,Other Third Party Payments,110.00,24/06/2013,wn84133359
00017750,Bidford On Avon Health Centre,Housing,Homelessness,Other Third Party Payments,60.00,10/05/2013,wn84133270
00017750,Bidford On Avon Health Centre,Housing,Homelessness,Other Third Party Payments,36.00,19/07/2013,wn84133431
00017750,Bidford On Avon Health Centre,Housing,Homelessness,Other Third Party Payments,36.00,08/11/2013,wn84133680
00006033,Biffa Municipal Ltd,Off-Street Parking,Car Park Cleaning,Private Contractors,"15,382.03",08/04/2013,vm82127081
00006033,Biffa Municipal Ltd,Refuse Collection,Bubbenhall Landfill Site,Private Contractors,"13,002.53",08/04/2013,vm82127083
00006033,Biffa Municipal Ltd,Refuse Collection,Bulk Collections,Private Contractors,"2,243.34",08/04/2013,vm82127083
00006033,Biffa Municipal Ltd,Refuse Collection,Clinical Waste Collection,Private Contractors,893.76,08/04/2013,vm82127083
00006033,Biffa Municipal Ltd,Refuse Collection,Domestic Collections,Private Contractors,"86,244.07",08/04/2013,vm82127082
00006033,Biffa Municipal Ltd,Refuse Collection,Domestic Collections,Private Contractors,"8,522.76",08/04/2013,vm82127083
00006033,Biffa Municipal Ltd,Refuse Collection,Garden Refuse - Wheeled Bins Collection,Private Contractors,"81,450.67",08/04/2013,vm82127082
00006033,Biffa Municipal Ltd,Refuse Collection,General Operation,Private Contractors,"41,816.82",08/04/2013,vm82127078
00006033,Biffa Municipal Ltd,Refuse Collection,Kerbside Recycling/Mini Recycling Centre,Private Contractors,"91,582.36",08/04/2013,vm82127082
00006033,Biffa Municipal Ltd,Refuse Collection,Kerbside Recycling/Mini Recycling Centre,Private Contractors,626.40,08/04/2013,vm82127083
00006033,Biffa Municipal Ltd,Refuse Collection,Night Soil Collection,Private Contractors,108.90,08/04/2013,vm82127082
00006033,Biffa Municipal Ltd,Street Cleansing & Furniture,Street Cleansing General Exps,Private Contractors,680.87,08/04/2013,vm82127079
00006033,Biffa Municipal Ltd,Street Cleansing & Furniture,Street Cleansing General Exps,Private Contractors,"115,702.37",08/04/2013,vm82127081
00006033,Biffa Municipal Ltd,Refuse Collection,General Operation,Private Contractors,"40,218.70",29/04/2013,vm82127107
00006033,Biffa Municipal Ltd,Refuse Collection,Bubbenhall Landfill Site,Private Contractors,"11,380.53",16/05/2013,vm84132814
00006033,Biffa Municipal Ltd,Refuse Collection,Bulk Collections,Private Contractors,"1,978.94",16/05/2013,vm84132814
00006033,Biffa Municipal Ltd,Refuse Collection,Clinical Waste Collection,Private Contractors,5.18,16/05/2013,vm84132814
00006033,Biffa Municipal Ltd,Refuse Collection,Clinical Waste Collection,Private Contractors,769.10,16/05/2013,vm84132815
00006033,Biffa Municipal Ltd,Refuse Collection,Domestic Collections,Private Contractors,"76,959.58",16/05/2013,vm84132815
00006033,Biffa Municipal Ltd,Refuse Collection,Garden Refuse - Wheeled Bins Collection,Private Contractors,"83,893.17",16/05/2013,vm84132815
00006033,Biffa Municipal Ltd,Refuse Collection,Kerbside Recycling/Mini Recycling Centre,Private Contractors,"93,741.56",16/05/2013,vm84132815
00006033,Biffa Municipal Ltd,Refuse Collection,Night Soil Collection,Private Contractors,112.16,16/05/2013,vm84132815
00006033,Biffa Municipal Ltd,Street Cleansing & Furniture,Street Cleansing General Exps,Private Contractors,684.53,16/05/2013,vm84132816
00006033,Biffa Municipal Ltd,Off-Street Parking,Car Park Cleaning,Private Contractors,"15,843.06",23/05/2013,vm84132859
00006033,Biffa Municipal Ltd,Street Cleansing & Furniture,Street Cleansing General Exps,Private Contractors,"119,170.50",23/05/2013,vm84132859
00006033,Biffa Municipal Ltd,Refuse Collection,General Operation,Private Contractors,"44,559.96",28/05/2013,vm84132874
00006033,Biffa Municipal Ltd,Off-Street Parking,Car Park Cleaning,Private Contractors,"15,843.06",10/06/2013,vm84132921
00006033,Biffa Municipal Ltd,Refuse Collection,Bubbenhall Landfill Site,Private Contractors,"11,055.76",10/06/2013,vm84132919
00006033,Biffa Municipal Ltd,Refuse Collection,Bulk Collections,Private Contractors,"2,181.34",10/06/2013,vm84132919
00006033,Biffa Municipal Ltd,Refuse Collection,Clinical Waste Collection,Private Contractors,769.10,10/06/2013,vm84132918
00006033,Biffa Municipal Ltd,Refuse Collection,Clinical Waste Collection,Private Contractors,5.18,10/06/2013,vm84132919
00006033,Biffa Municipal Ltd,Refuse Collection,Domestic Collections,Private Contractors,"76,959.58",10/06/2013,vm84132918
00006033,Biffa Municipal Ltd,Refuse Collection,Garden Refuse - Wheeled Bins Collection,Private Contractors,"83,893.17",10/06/2013,vm84132918
00006033,Biffa Municipal Ltd,Refuse Collection,Kerbside Recycling/Mini Recycling Centre,Private Contractors,"93,741.56",10/06/2013,vm84132918
00006033,Biffa Municipal Ltd,Refuse Collection,Night Soil Collection,Private Contractors,112.16,10/06/2013,vm84132918
00006033,Biffa Municipal Ltd,Street Cleansing & Furniture,Street Cleansing General Exps,Private Contractors,569.69,10/06/2013,vm84132920
00006033,Biffa Municipal Ltd,Street Cleansing & Furniture,Street Cleansing General Exps,Private Contractors,"119,170.50",10/06/2013,vm84132921
00006033,Biffa Municipal Ltd,Street Cleansing & Furniture,Street Cleansing General Exps,Private Contractors,"1,752.00",20/06/2013,vm84132980
00006033,Biffa Municipal Ltd,Off-Street Parking,Car Park Cleaning,Private Contractors,"19,803.86",18/07/2013,vm82127167
00006033,Biffa Municipal Ltd,Refuse Collection,Bubbenhall Landfill Site,Private Contractors,"13,495.00",18/07/2013,vm82127168
00006033,Biffa Municipal Ltd,Refuse Collection,Bulk Collections,Private Contractors,"2,226.31",18/07/2013,vm82127168
00006033,Biffa Municipal Ltd,Refuse Collection,Clinical Waste Collection,Private Contractors,6.48,18/07/2013,vm82127168
00006033,Biffa Municipal Ltd,Refuse Collection,Clinical Waste Collection,Private Contractors,961.38,18/07/2013,vm82127169
00006033,Biffa Municipal Ltd,Refuse Collection,Domestic Collections,Private Contractors,"91,165.24",18/07/2013,vm82127169
00006033,Biffa Municipal Ltd,Refuse Collection,Garden Refuse - Wheeled Bins Collection,Private Contractors,"104,866.45",18/07/2013,vm82127169
00006033,Biffa Municipal Ltd,Refuse Collection,General Operation,Private Contractors,"42,607.28",18/07/2013,vm82127165
00006033,Biffa Municipal Ltd,Refuse Collection,General Operation,Private Contractors,"41,385.44",18/07/2013,vm84133078
00006033,Biffa Municipal Ltd,Refuse Collection,Kerbside Recycling/Mini Recycling Centre,Private Contractors,"117,176.96",18/07/2013,vm82127169
00006033,Biffa Municipal Ltd,Refuse Collection,Night Soil Collection,Private Contractors,140.20,18/07/2013,vm82127169
00006033,Biffa Municipal Ltd,Street Cleansing & Furniture,Street Cleansing General Exps,Private Contractors,425.26,18/07/2013,vm82127166
00006033,Biffa Municipal Ltd,Street Cleansing & Furniture,Street Cleansing General Exps,Private Contractors,"148,963.08",18/07/2013,vm82127167
00006033,Biffa Municipal Ltd,Refuse Collection,Bubbenhall Landfill Site,Private Contractors,"11,210.21",05/08/2013,vm82127193
00006033,Biffa Municipal Ltd,Refuse Collection,Bulk Collections,Private Contractors,"2,361.24",05/08/2013,vm82127193
00006033,Biffa Municipal Ltd,Refuse Collection,Clinical Waste Collection,Private Contractors,4.46,05/08/2013,vm82127193
00006033,Biffa Municipal Ltd,Refuse Collection,Domestic Collections,Private Contractors,"7,072.80",05/08/2013,vm82127193
00006033,Biffa Municipal Ltd,Refuse Collection,Clinical Waste Collection,Private Contractors,769.10,08/08/2013,vm82127199
00006033,Biffa Municipal Ltd,Refuse Collection,Domestic Collections,Private Contractors,"89,041.72",08/08/2013,vm82127199
00006033,Biffa Municipal Ltd,Refuse Collection,Garden Refuse - Wheeled Bins Collection,Private Contractors,"83,893.16",08/08/2013,vm82127199
00006033,Biffa Municipal Ltd,Refuse Collection,General Operation,Private Contractors,"-16,109.51",08/08/2013,vm82127199
00006033,Biffa Municipal Ltd,Refuse Collection,Kerbside Recycling/Mini Recycling Centre,Private Contractors,"93,741.56",08/08/2013,vm82127199
00006033,Biffa Municipal Ltd,Refuse Collection,Night Soil Collection,Private Contractors,112.16,08/08/2013,vm82127199
00006033,Biffa Municipal Ltd,Off-Street Parking,Car Park Cleaning,Private Contractors,"15,843.10",15/08/2013,vm82127208
00006033,Biffa Municipal Ltd,Refuse Collection,Domestic Collections,Private Contractors,19.95,15/08/2013,vm82127209
00006033,Biffa Municipal Ltd,Refuse Collection,General Operation,Private Contractors,"23,721.46",15/08/2013,vm82127207
00006033,Biffa Municipal Ltd,Street Cleansing & Furniture,Street Cleansing General Exps,Private Contractors,"119,170.46",15/08/2013,vm82127208
00006033,Biffa Municipal Ltd,Street Cleansing & Furniture,Street Cleansing General Exps,Private Contractors,453.19,15/08/2013,vm82127209
00006033,Biffa Municipal Ltd,Off-Street Parking,Car Park Cleaning,Private Contractors,"15,843.06",09/09/2013,vm82127245
00006033,Biffa Municipal Ltd,Refuse Collection,Bubbenhall Landfill Site,Private Contractors,"10,537.20",09/09/2013,vm82127243
00006033,Biffa Municipal Ltd,Refuse Collection,Bulk Collections,Private Contractors,"2,091.38",09/09/2013,vm82127243
00006033,Biffa Municipal Ltd,Refuse Collection,Clinical Waste Collection,Private Contractors,5.76,09/09/2013,vm82127243
00006033,Biffa Municipal Ltd,Refuse Collection,Clinical Waste Collection,Private Contractors,769.10,09/09/2013,vm82127244
00006033,Biffa Municipal Ltd,Refuse Collection,Domestic Collections,Private Contractors,"89,041.72",09/09/2013,vm82127244
00006033,Biffa Municipal Ltd,Refuse Collection,Garden Refuse - Wheeled Bins Collection,Private Contractors,"83,893.16",09/09/2013,vm82127244
00006033,Biffa Municipal Ltd,Refuse Collection,General Operation,Private Contractors,"-16,109.51",09/09/2013,vm82127244
00006033,Biffa Municipal Ltd,Refuse Collection,Kerbside Recycling/Mini Recycling Centre,Private Contractors,"93,741.56",09/09/2013,vm82127244
00006033,Biffa Municipal Ltd,Refuse Collection,Night Soil Collection,Private Contractors,112.16,09/09/2013,vm82127244
00006033,Biffa Municipal Ltd,Street Cleansing & Furniture,Street Cleansing General Exps,Private Contractors,"119,170.50",09/09/2013,vm82127245
00006033,Biffa Municipal Ltd,Refuse Collection,General Operation,Private Contractors,"24,803.18",16/09/2013,vm82127250
00006033,Biffa Municipal Ltd,Street Cleansing & Furniture,Street Cleansing General Exps,Private Contractors,823.39,16/09/2013,vm82127249
00006033,Biffa Municipal Ltd,Off-Street Parking,Car Park Cleaning,Private Contractors,"19,803.86",10/10/2013,vm82127277
00006033,Biffa Municipal Ltd,Refuse Collection,Bubbenhall Landfill Site,Private Contractors,"13,756.71",10/10/2013,vm82127279
00006033,Biffa Municipal Ltd,Refuse Collection,Bulk Collections,Private Contractors,"2,900.95",10/10/2013,vm82127279
00006033,Biffa Municipal Ltd,Refuse Collection,Clinical Waste Collection,Private Contractors,961.38,10/10/2013,vm82127278
00006033,Biffa Municipal Ltd,Refuse Collection,Clinical Waste Collection,Private Contractors,5.76,10/10/2013,vm82127279
00006033,Biffa Municipal Ltd,Refuse Collection,Domestic Collections,Private Contractors,"91,165.24",10/10/2013,vm82127278
00006033,Biffa Municipal Ltd,Refuse Collection,Garden Refuse - Wheeled Bins Collection,Private Contractors,"104,866.45",10/10/2013,vm82127278
00006033,Biffa Municipal Ltd,Refuse Collection,General Operation,Private Contractors,"24,829.25",10/10/2013,vm82127280
00006033,Biffa Municipal Ltd,Refuse Collection,Kerbside Recycling/Mini Recycling Centre,Private Contractors,"117,176.96",10/10/2013,vm82127278
00006033,Biffa Municipal Ltd,Refuse Collection,Night Soil Collection,Private Contractors,140.20,10/10/2013,vm82127278
00006033,Biffa Municipal Ltd,Street Cleansing & Furniture,Street Cleansing General Exps,Private Contractors,735.04,10/10/2013,vm82127276
00006033,Biffa Municipal Ltd,Street Cleansing & Furniture,Street Cleansing General Exps,Private Contractors,"148,963.08",10/10/2013,vm82127277
00006033,Biffa Municipal Ltd,Local Economy/Tourism,Stratford-upon-Avon Charter Mop,Repairs & Maintenance Expenses,"3,075.53",11/11/2013,rk82125520
00006033,Biffa Municipal Ltd,Local Economy/Tourism,Stratford-upon-Avon Charter Mop,Repairs & Maintenance Expenses,"2,265.19",11/11/2013,rk82125521
00006033,Biffa Municipal Ltd,Off-Street Parking,Car Park Cleaning,Private Contractors,"15,843.10",11/11/2013,vm82127305
00006033,Biffa Municipal Ltd,Refuse Collection,Bubbenhall Landfill Site,Private Contractors,"11,096.91",11/11/2013,vm82127304
00006033,Biffa Municipal Ltd,Refuse Collection,Bulk Collections,Private Contractors,"1,978.94",11/11/2013,vm82127304
00006033,Biffa Municipal Ltd,Refuse Collection,Clinical Waste Collection,Private Contractors,5.76,11/11/2013,vm82127304
00006033,Biffa Municipal Ltd,Refuse Collection,Clinical Waste Collection,Private Contractors,769.10,11/11/2013,vm82127306
00006033,Biffa Municipal Ltd,Refuse Collection,Domestic Collections,Private Contractors,"89,041.72",11/11/2013,vm82127306
00006033,Biffa Municipal Ltd,Refuse Collection,Garden Refuse - Wheeled Bins Collection,Private Contractors,"83,893.16",11/11/2013,vm82127306
00006033,Biffa Municipal Ltd,Refuse Collection,General Operation,Private Contractors,"-16,109.51",11/11/2013,vm82127306
00006033,Biffa Municipal Ltd,Refuse Collection,General Operation,Private Contractors,"24,689.84",11/11/2013,vm82127308
00006033,Biffa Municipal Ltd,Refuse Collection,Kerbside Recycling/Mini Recycling Centre,Private Contractors,"93,741.56",11/11/2013,vm82127306
00006033,Biffa Municipal Ltd,Refuse Collection,Night Soil Collection,Private Contractors,112.16,11/11/2013,vm82127306
00006033,Biffa Municipal Ltd,Street Cleansing & Furniture,Street Cleansing General Exps,Private Contractors,"119,170.46",11/11/2013,vm82127305
00006033,Biffa Municipal Ltd,Street Cleansing & Furniture,Street Cleansing General Exps,Private Contractors,567.28,11/11/2013,vm82127307
00006033,Biffa Municipal Ltd,Refuse Collection,Bubbenhall Landfill Site,Private Contractors,"10,022.78",12/12/2013,vm82127336
00006033,Biffa Municipal Ltd,Refuse Collection,Bulk Collections,Private Contractors,"2,181.34",12/12/2013,vm82127336
00006033,Biffa Municipal Ltd,Refuse Collection,Clinical Waste Collection,Private Contractors,5.76,12/12/2013,vm82127336
00006033,Biffa Municipal Ltd,Refuse Collection,Clinical Waste Collection,Private Contractors,769.10,12/12/2013,vm82127338
00006033,Biffa Municipal Ltd,Refuse Collection,Domestic Collections,Private Contractors,"8,080.80",12/12/2013,vm82127336
00006033,Biffa Municipal Ltd,Refuse Collection,Domestic Collections,Private Contractors,"89,041.72",12/12/2013,vm82127338
00006033,Biffa Municipal Ltd,Refuse Collection,Garden Refuse - Wheeled Bins Collection,Private Contractors,"83,893.16",12/12/2013,vm82127338
00006033,Biffa Municipal Ltd,Refuse Collection,General Operation,Private Contractors,"25,092.47",12/12/2013,vm82127337
00006033,Biffa Municipal Ltd,Refuse Collection,General Operation,Private Contractors,"-16,109.51",12/12/2013,vm82127338
00006033,Biffa Municipal Ltd,Refuse Collection,Kerbside Recycling/Mini Recycling Centre,Private Contractors,"93,741.56",12/12/2013,vm82127338
00006033,Biffa Municipal Ltd,Refuse Collection,Night Soil Collection,Private Contractors,112.16,12/12/2013,vm82127338
00006033,Biffa Municipal Ltd,Off-Street Parking,Car Park Cleaning,Private Contractors,"15,843.07",16/12/2013,vm82127342
00006033,Biffa Municipal Ltd,Street Cleansing & Furniture,Street Cleansing General Exps,Private Contractors,535.75,16/12/2013,vm82127341
00006033,Biffa Municipal Ltd,Street Cleansing & Furniture,Street Cleansing General Exps,Private Contractors,"119,170.49",16/12/2013,vm82127342
00006033,Biffa Municipal Ltd,Street Cleansing & Furniture,Street Cleansing General Exps,Private Contractors,522.00,23/12/2013,vm82127350
00006033,Biffa Municipal Ltd,Refuse Collection,Bubbenhall Landfill Site,Private Contractors,"9,301.79",13/01/2014,vm82127368
00006033,Biffa Municipal Ltd,Refuse Collection,Bulk Collections,Private Contractors,"2,001.43",13/01/2014,vm82127368
00006033,Biffa Municipal Ltd,Refuse Collection,Clinical Waste Collection,Private Contractors,961.38,13/01/2014,vm82127365
00006033,Biffa Municipal Ltd,Refuse Collection,Clinical Waste Collection,Private Contractors,5.76,13/01/2014,vm82127368
00006033,Biffa Municipal Ltd,Refuse Collection,Domestic Collections,Private Contractors,"111,302.14",13/01/2014,vm82127365
00006033,Biffa Municipal Ltd,Refuse Collection,Garden Refuse - Wheeled Bins Collection,Private Contractors,"104,866.45",13/01/2014,vm82127365
00006033,Biffa Municipal Ltd,Refuse Collection,General Operation,Private Contractors,"-20,136.90",13/01/2014,vm82127365
00006033,Biffa Municipal Ltd,Refuse Collection,General Operation,Private Contractors,"25,162.40",13/01/2014,vm82127366
00006033,Biffa Municipal Ltd,Refuse Collection,Kerbside Recycling/Mini Recycling Centre,Private Contractors,"117,176.96",13/01/2014,vm82127365
00006033,Biffa Municipal Ltd,Refuse Collection,Night Soil Collection,Private Contractors,140.20,13/01/2014,vm82127365
00006033,Biffa Municipal Ltd,Off-Street Parking,Car Park Cleaning,Private Contractors,"19,803.86",16/01/2014,vm82127373
00006033,Biffa Municipal Ltd,Street Cleansing & Furniture,Street Cleansing General Exps,Private Contractors,"148,963.08",16/01/2014,vm82127373
00006033,Biffa Municipal Ltd,Street Cleansing & Furniture,Street Cleansing General Exps,Private Contractors,-14.96,20/01/2014,vm83115495
00006033,Biffa Municipal Ltd,Street Cleansing & Furniture,Street Cleansing General Exps,Private Contractors,862.42,20/01/2014,vm84133801
00006033,Biffa Municipal Ltd,Refuse Collection,Bubbenhall Landfill Site,Private Contractors,"12,795.96",06/02/2014,vm82127393
00006033,Biffa Municipal Ltd,Refuse Collection,Bulk Collections,Private Contractors,"2,091.38",06/02/2014,vm82127393
00006033,Biffa Municipal Ltd,Refuse Collection,Clinical Waste Collection,Private Contractors,0.72,06/02/2014,vm82127393
00006033,Biffa Municipal Ltd,Refuse Collection,Clinical Waste Collection,Private Contractors,769.10,06/02/2014,vm82127395
00006033,Biffa Municipal Ltd,Refuse Collection,Domestic Collections,Private Contractors,"89,041.72",06/02/2014,vm82127395
00006033,Biffa Municipal Ltd,Refuse Collection,Garden Refuse - Wheeled Bins Collection,Private Contractors,"83,893.16",06/02/2014,vm82127395
00006033,Biffa Municipal Ltd,Refuse Collection,General Operation,Private Contractors,"29,128.13",06/02/2014,vm82127394
00006033,Biffa Municipal Ltd,Refuse Collection,General Operation,Private Contractors,"-16,109.51",06/02/2014,vm82127395
00006033,Biffa Municipal Ltd,Refuse Collection,General Operation,Private Contractors,"-3,356.15",06/02/2014,vm83115497
00006033,Biffa Municipal Ltd,Refuse Collection,Kerbside Recycling/Mini Recycling Centre,Private Contractors,"93,741.56",06/02/2014,vm82127395
00006033,Biffa Municipal Ltd,Refuse Collection,Night Soil Collection,Private Contractors,112.16,06/02/2014,vm82127395
00006033,Biffa Municipal Ltd,Off-Street Parking,Car Park Cleaning,Private Contractors,"15,843.06",10/02/2014,vm82127403
00006033,Biffa Municipal Ltd,Street Cleansing & Furniture,Street Cleansing General Exps,Private Contractors,702.71,10/02/2014,vm82127402
00006033,Biffa Municipal Ltd,Street Cleansing & Furniture,Street Cleansing General Exps,Private Contractors,"119,170.50",10/02/2014,vm82127403
00006033,Biffa Municipal Ltd,Street Cleansing & Furniture,Street Cleansing General Exps,Private Contractors,-62.80,10/02/2014,vm83115498
00006033,Biffa Municipal Ltd,Refuse Collection,General Operation,Private Contractors,"25,661.42",03/03/2014,vm82127422
00006033,Biffa Municipal Ltd,Off-Street Parking,Car Park Cleaning,Private Contractors,"15,843.06",10/03/2014,vm82127430
00006033,Biffa Municipal Ltd,Street Cleansing & Furniture,Street Cleansing General Exps,Private Contractors,"1,068.83",10/03/2014,vm82127429
00006033,Biffa Municipal Ltd,Street Cleansing & Furniture,Street Cleansing General Exps,Private Contractors,"119,170.50",10/03/2014,vm82127430
00006033,Biffa Municipal Ltd,Refuse Collection,Bubbenhall Landfill Site,Private Contractors,"11,458.08",17/03/2014,vm82127438
00006033,Biffa Municipal Ltd,Refuse Collection,Bulk Collections,Private Contractors,"2,383.73",17/03/2014,vm82127438
00006033,Biffa Municipal Ltd,Refuse Collection,Clinical Waste Collection,Private Contractors,314.02,17/03/2014,vm82127437
00006033,Biffa Municipal Ltd,Refuse Collection,Clinical Waste Collection,Private Contractors,0.58,17/03/2014,vm82127438
00006033,Biffa Municipal Ltd,Refuse Collection,Domestic Collections,Private Contractors,"89,498.17",17/03/2014,vm82127437
00006033,Biffa Municipal Ltd,Refuse Collection,Garden Refuse - Wheeled Bins Collection,Private Contractors,"83,893.16",17/03/2014,vm82127437
00006033,Biffa Municipal Ltd,Refuse Collection,General Operation,Private Contractors,"-16,109.51",17/03/2014,vm82127437
00006033,Biffa Municipal Ltd,Refuse Collection,Kerbside Recycling/Mini Recycling Centre,Private Contractors,"93,741.56",17/03/2014,vm82127437
00006033,Biffa Municipal Ltd,Refuse Collection,Night Soil Collection,Private Contractors,112.16,17/03/2014,vm82127437
00006033,Biffa Municipal Ltd,Refuse Collection,General Operation,Private Contractors,"24,827.35",24/03/2014,vm82127445
00002192,Biffa Waste Services Ltd,Building Services,Alcester Area Office,Other Third Party Payments,214.09,13/06/2013,vm84132922
00002192,Biffa Waste Services Ltd,Building Services,Alcester Area Office,Other Third Party Payments,118.09,16/09/2013,vm84133341
00002192,Biffa Waste Services Ltd,Building Services,Alcester Area Office,Other Third Party Payments,118.09,12/12/2013,vm84133711
00002192,Biffa Waste Services Ltd,Building Services,Alcester Area Office,Other Third Party Payments,143.83,13/03/2014,vm84133946
00122412,Bigwood Asssociates Ltd,Housing,Homelessness Prevention Fund,Other Customer & Client Income,150.00,02/05/2013,wn84133240
00122412,Bigwood Asssociates Ltd,Housing,Homelessness Prevention Fund,Other Third Party Payments,625.00,19/09/2013,wn84133560
00122412,Bigwood Asssociates Ltd,Housing,Rent Express Scheme - NEW,Other Third Party Payments,695.00,13/03/2014,wn84133985
00013796,Binton Village Hall,Creditors,WCC Elections May 2013,Cash Payments,120.00,10/06/2013,yq84119790
,BIRMINGHAM BULLRING,Leisure Centres,Leisure Centres General,Car Parking Charges,8.00,18/06/2013 ,4100
00002040,Birmingham City Council(Income Sect L24),Front Office & Trans Team,Front Office & Trans Team,Communications Expenses,"4,854.56",18/04/2013,rk84144433
00002040,Birmingham City Council(Income Sect L24),Monitoring Officer,Monitoring Officer,Professional Fees,"29,339.38",25/04/2013,rk84144581
00002040,Birmingham City Council(Income Sect L24),Council Tax,Council Tax,Communications Expenses,"15,406.80",13/05/2013,yq84119759
00002040,Birmingham City Council(Income Sect L24),Creditors,WCC Elections May 2013,Cash Payments,"24,207.60",13/05/2013,yq84119759
00002040,Birmingham City Council(Income Sect L24),Front Office & Trans Team,Front Office & Trans Team,Communications Expenses,"4,734.40",13/05/2013,yq84119759
00002040,Birmingham City Council(Income Sect L24),Monitoring Officer,Monitoring Officer,Professional Fees,"3,006.32",17/06/2013,rk84144820
00002040,Birmingham City Council(Income Sect L24),Monitoring Officer,Monitoring Officer,Professional Fees,"4,175.99",01/07/2013,rk84144880
00002040,Birmingham City Council(Income Sect L24),Front Office & Trans Team,Front Office & Trans Team,Communications Expenses,"7,742.10",18/07/2013,rk84144980
00002040,Birmingham City Council(Income Sect L24),Creditors,WCC Elections May 2013,Cash Payments,"4,200.00",22/07/2013,rk84145007
00002040,Birmingham City Council(Income Sect L24),Front Office & Trans Team,Front Office & Trans Team,Communications Expenses,"5,738.69",22/07/2013,rk84145007
00002040,Birmingham City Council(Income Sect L24),Housing,Private Sector Housing Team,Professional Fees,360.00,29/07/2013,wn84133446
00002040,Birmingham City Council(Income Sect L24),Monitoring Officer,Monitoring Officer,Professional Fees,"1,063.81",05/08/2013,rk84145104
00002040,Birmingham City Council(Income Sect L24),Front Office & Trans Team,Front Office & Trans Team,Communications Expenses,"5,615.71",15/08/2013,rk84145141
00002040,Birmingham City Council(Income Sect L24),Monitoring Officer,Monitoring Officer,Professional Fees,"5,423.40",05/09/2013,rk84145278
00002040,Birmingham City Council(Income Sect L24),Front Office & Trans Team,Front Office & Trans Team,Communications Expenses,"6,256.56",19/09/2013,rk84145332
00002040,Birmingham City Council(Income Sect L24),Front Office & Trans Team,Front Office & Trans Team,Communications Expenses,"6,226.10",17/10/2013,rk84145503
00002040,Birmingham City Council(Income Sect L24),Monitoring Officer,Monitoring Officer,Professional Fees,"1,886.93",21/10/2013,rk84145574
00002040,Birmingham City Council(Income Sect L24),Front Office & Trans Team,Front Office & Trans Team,Communications Expenses,"4,848.86",04/11/2013,rk84145646
00002040,Birmingham City Council(Income Sect L24),Monitoring Officer,Monitoring Officer,Professional Fees,"1,445.33",07/11/2013,rk84145659
00002040,Birmingham City Council(Income Sect L24),Elections,Registration Of Electors,Communications Expenses,"14,359.26",05/12/2013,rk84145813
00002040,Birmingham City Council(Income Sect L24),Front Office & Trans Team,Front Office & Trans Team,Communications Expenses,"5,629.22",05/12/2013,rk84145813
00002040,Birmingham City Council(Income Sect L24),Monitoring Officer,Monitoring Officer,Professional Fees,"18,852.95",19/12/2013,rk84145894
00002040,Birmingham City Council(Income Sect L24),Monitoring Officer,Monitoring Officer,Professional Fees,"14,132.42",20/01/2014,rk84146033
00002040,Birmingham City Council(Income Sect L24),Elections,Registration Of Electors,Communications Expenses,"4,462.08",03/02/2014,rk84146093
00002040,Birmingham City Council(Income Sect L24),Front Office & Trans Team,Front Office & Trans Team,Communications Expenses,"5,552.42",03/02/2014,rk84146093
00002040,Birmingham City Council(Income Sect L24),Front Office & Trans Team,Front Office & Trans Team,Communications Expenses,"5,725.44",06/02/2014,rk84146071
00002040,Birmingham City Council(Income Sect L24),Monitoring Officer,Monitoring Officer,Professional Fees,"55,775.77",20/02/2014,rk84146164
00002040,Birmingham City Council(Income Sect L24),Monitoring Officer,Monitoring Officer,Professional Fees,"41,153.25",10/03/2014,rk84146242
00002040,Birmingham City Council(Income Sect L24),Front Office & Trans Team,Front Office & Trans Team,Communications Expenses,"6,635.11",13/03/2014,rk84146257
00013000,Birmingham City University,HR and Training,Customer Access Training,Indirect Employee Expenses,400.00,14/11/2013,yq82116802
00013000,Birmingham City University,HR and Training,Post Entry training,Indirect Employee Expenses,"1,340.00",14/11/2013,yq82116802
00173652,Birthplace Lightshow Project Group,Local Economy/Tourism,Tourism-Client,Grants & Subscription Expenses,"1,000.00",12/12/2013,vm84133716
00042013,Bishop Sports & Leisure Ltd,Sports Development,Sports Development,Machinery & Equipment Expenses,59.70,25/07/2013,vm84133084
00042013,Bishop Sports & Leisure Ltd,Sports Development,Sports Development,Machinery & Equipment Expenses,215.40,01/08/2013,vm84133140
00008442,Bishops Itchington Primary School,Sports Development,Sports Development,Rent Expenses,300.00,11/07/2013,vm84133066
00093606,Bishopton Community Centre,Creditors,WCC Elections May 2013,Cash Payments,137.00,10/06/2013,yq84119792
00093606,Bishopton Community Centre,Elections,District Elections,General Office Expenses,40.00,27/06/2013,yq84119921
00093606,Bishopton Community Centre,Crime Reduction,Crime Reduction,Rent Expenses,48.00,23/01/2014,rk84146043
00013466,Bishopton Primary School,Sports Development,Sports Development,Rent Expenses,120.00,16/05/2013,vm84132822
00084518,Black Tie,CDC Chief Executive,Civic - Miscellaneous,Other Third Party Payments,170.00,10/05/2013,yq84119754
00160157,Blackwell Village Hall,Sports Development,Sports Development,Rent Expenses,150.00,11/07/2013,vm84133065
00171421,Bluesource Information Ltd,Information Technology,Information Technology Division,Computing Expenses,"3,582.00",06/03/2014,rk82125700
,BOOTS THE CHEMIST,Environmental Health,Environmental Health Expenses,Health & Safety,3.03,02/04/2013 ,3775
00169844,Born Extreme,Sports Development,Sports Development,Machinery & Equipment Expenses,966.00,30/08/2013,vm84133263
00173746,Bottomline Technologies,HR and Training,"Business, Housing & Revenues Training",Indirect Employee Expenses,675.00,16/12/2013,rk84145877
00173746,Bottomline Technologies,HR and Training,Resources Training,Indirect Employee Expenses,225.00,16/12/2013,rk84145877
00165673,Bournemouth Borough Council,Licensing,Personal Licences,Discretion Fees & Charges Inc,10.50,25/04/2013,wn84133224
,BP OVERSLEY MILL,Corporate Property Div (Sals),Engineers Consultancy Account,Vehicle Diesel Costs,86.52,02/04/2013 ,3792
,BP OVERSLEY MILL,Environmental Health,CV08 AYV Health Van,Vehicle Petrol,30.00,10/04/2013 ,3821
,BP OVERSLEY MILL,Corporate Property Div (Sals),Engineers Consultancy Account,Vehicle Diesel Costs,89.79,15/04/2013 ,3851
,BP OVERSLEY MILL,Corporate Property Div (Sals),Engineers Consultancy Account,Vehicle Diesel Costs,73.31,26/04/2013 ,3914
,BP OVERSLEY MILL,Corporate Property Div (Sals),Engineers Consultancy Account,Vehicle Diesel Costs,85.05,24/05/2013 ,4018
,BP OVERSLEY MILL,Corporate Property Div (Sals),Engineers Consultancy Account,Vehicle Diesel Costs,87.58,24/06/2013 ,4157
,BP OVERSLEY MILL,Corporate Property Div (Sals),Engineers Consultancy Account,Vehicle Diesel Costs,77.69,08/07/2013 ,4219
,BP OVERSLEY MILL,Corporate Property Div (Sals),Engineers Consultancy Account,Vehicle Diesel Costs,78.82,19/07/2013 ,4288
,BP OVERSLEY MILL,Corporate Property Div (Sals),Engineers Consultancy Account,Vehicle Diesel Costs,80.65,01/08/2013 ,4344
,BP OVERSLEY MILL,Corporate Property Div (Sals),Engineers Consultancy Account,Vehicle Diesel Costs,75.91,13/08/2013 ,4380
,BP OVERSLEY MILL,Corporate Property Div (Sals),Engineers Consultancy Account,Vehicle Diesel Costs,72.35,23/08/2013 ,4436
,BP OVERSLEY MILL,Corporate Property Div (Sals),Engineers Consultancy Account,Vehicle Diesel Costs,77.56,05/09/2013 ,4489
,BP OVERSLEY MILL,Corporate Property Div (Sals),Engineers Consultancy Account,Vehicle Diesel Costs,76.48,13/09/2013 ,4521
,BP OVERSLEY MILL,Corporate Property Div (Sals),Engineers Consultancy Account,Vehicle Diesel Costs,77.49,24/09/2013 ,4549
,BP OVERSLEY MILL,Corporate Property Div (Sals),Engineers Consultancy Account,Vehicle Diesel Costs,83.97,14/10/2013 ,4638
,BP OVERSLEY MILL,Corporate Property Div (Sals),Engineers Consultancy Account,Vehicle Diesel Costs,78.04,27/10/2013 ,4717
,BP OVERSLEY MILL,Corporate Property Div (Sals),Engineers Consultancy Account,Vehicle Diesel Costs,75.45,06/11/2013 ,4753
,BP OVERSLEY MILL,Corporate Property Div (Sals),Engineers Consultancy Account,Vehicle Diesel Costs,77.10,18/11/2013 ,4827
,BP OVERSLEY MILL,Corporate Property Div (Sals),Engineers Consultancy Account,Vehicle Diesel Costs,81.36,29/11/2013 ,4888
,BP OVERSLEY MILL,Corporate Property Div (Sals),Engineers Consultancy Account,Vehicle Diesel Costs,74.63,12/12/2013 ,4960
,BP OVERSLEY MILL,Corporate Property Div (Sals),Engineers Consultancy Account,Vehicle Diesel Costs,78.07,23/12/2013 ,4982
,BP OVERSLEY MILL,Corporate Property Div (Sals),Engineers Consultancy Account,Vehicle Diesel Costs,72.35,06/01/2014 ,5016
,BP OVERSLEY MILL,Environmental Health,HV57 YCJ Health Van,Vehicle Diesel Costs,29.78,15/01/2014 ,5029
,BP OVERSLEY MILL,Corporate Property Div (Sals),Engineers Consultancy Account,Vehicle Diesel Costs,74.38,16/01/2014 ,5083
,BP OVERSLEY MILL,Corporate Property Div (Sals),Engineers Consultancy Account,Vehicle Diesel Costs,80.02,27/01/2014 ,5125
,BP OVERSLEY MILL,Corporate Property Div (Sals),Engineers Consultancy Account,Vehicle Diesel Costs,76.62,05/02/2014 ,5159
,BP OVERSLEY MILL,Corporate Property Div (Sals),Engineers Consultancy Account,Vehicle Diesel Costs,74.80,12/02/2014 ,5193
,BP OVERSLEY MILL,Corporate Property Div (Sals),Engineers Consultancy Account,Vehicle Diesel Costs,74.06,21/02/2014 ,5255
,BP OVERSLEY MILL,Corporate Property Div (Sals),Engineers Consultancy Account,Vehicle Diesel Costs,73.10,28/02/2014 ,5283
,BP OVERSLEY MILL,Corporate Property Div (Sals),Engineers Consultancy Account,Vehicle Diesel Costs,70.66,12/03/2014 ,5317
,BPP PROF EDUCATION,HR and Training,Post Entry Training,Training Expenses,477.20,12/11/2013 ,4790
,BPP PROF EDUCATION,HR and Training,Post Entry Training,Training Expenses,477.20,14/11/2013 ,4775
00075297,Brailes Village Hall Management Committe,Creditors,WCC Elections May 2013,Cash Payments,50.00,10/06/2013,yq84119793
00075297,Brailes Village Hall Management Committe,Elections,District Elections,General Office Expenses,20.00,27/06/2013,yq84119894
,BravoFly.co.uk STN/SZG 02,Local Economy/Tourism,Boo - Games Project,Flight Charges,113.45,20/03/2014 ,5358
00174512,Brethertons,Housing Ben. Admin,H BenPrvte Tnants-Gen Admin,Professional Fees,193.90,20/01/2014,rk84146036
00174512,Brethertons,Housing Ben. Admin,H BenPrvte Tnants-Gen Admin,Professional Fees,"1,195.61",20/01/2014,rk84146037
00174512,Brethertons,Creditors,Stratford Business Improvement District,Cash Payments,7.20,10/02/2014,rk84146129
00174512,Brethertons,Housing Ben. Admin,H BenPrvte Tnants-Gen Admin,Professional Fees,972.33,13/02/2014,rk84146152
00174512,Brethertons,Creditors,Stratford Business Improvement District,Cash Payments,14.40,10/03/2014,rk84146245
00174512,Brethertons,Environmental Health,Other Disinfestations,Professional Fees,180.40,13/03/2014,rk84146262
00174512,Brethertons,Housing Ben. Admin,H BenPrvte Tnants-Gen Admin,Professional Fees,"2,472.67",13/03/2014,rk84146262
,BREWERS,Environmental Health,Pathlow Gypsy Caravan Site,Repair & Maintenance of Buildings,17.22,06/03/2014 ,5277
00023951,Bridge House Medical Centre,Housing,Homelessness,Other Third Party Payments,30.18,13/06/2013,wn84133319
00023951,Bridge House Medical Centre,Housing,Homelessness,Other Third Party Payments,30.18,17/06/2013,wn84133344
00023951,Bridge House Medical Centre,Housing,Homelessness,Other Third Party Payments,30.18,05/08/2013,wn84133466
00023951,Bridge House Medical Centre,Housing,Homelessness,Other Third Party Payments,30.18,15/08/2013,wn84133476
00023951,Bridge House Medical Centre,Housing,Homelessness,Other Third Party Payments,30.18,03/02/2014,wn84133887
00023951,Bridge House Medical Centre,Housing,Homelessness,Other Third Party Payments,30.18,10/03/2014,wn84133979
00137274,Bridges Pound Ltd,Current Schemes In Progress,Refurb of Stratford LC (SLVC),Consulting Engineers (Capital),840.00,10/10/2013,vm82127283
00003586,Bristow & Sutor,Council Tax,Council Tax,Professional Fees,4.90,25/04/2013,rk85116970
00003586,Bristow & Sutor,Council Tax,Council Tax,Professional Fees,"1,673.55",29/04/2013,rk85116971
00003586,Bristow & Sutor,National Non-Domestic Rate,NNDR Admin.,Professional Fees,548.65,29/04/2013,rk85116972
00003586,Bristow & Sutor,Council Tax,Council Tax,Professional Fees,"1,367.90",23/05/2013,rk85116980
00003586,Bristow & Sutor,National Non-Domestic Rate,NNDR Admin.,Professional Fees,637.03,23/05/2013,rk85116979
00003586,Bristow & Sutor,Council Tax,Council Tax,Professional Fees,"1,269.28",20/06/2013,rk85116985
00003586,Bristow & Sutor,National Non-Domestic Rate,NNDR Admin.,Professional Fees,467.55,20/06/2013,rk85116984
00003586,Bristow & Sutor,Council Tax,Council Tax,Professional Fees,775.78,25/07/2013,rk85116993
00003586,Bristow & Sutor,National Non-Domestic Rate,NNDR Admin.,Professional Fees,117.41,25/07/2013,rk85116991
00003586,Bristow & Sutor,National Non-Domestic Rate,NNDR Admin.,Professional Fees,286.58,02/09/2013,rk85117000
00003586,Bristow & Sutor,Council Tax,Council Tax,Professional Fees,"1,878.49",05/09/2013,rk85117001
00003586,Bristow & Sutor,Council Tax,Council Tax,Professional Fees,"1,830.26",19/09/2013,rk85117003
00003586,Bristow & Sutor,National Non-Domestic Rate,NNDR Admin.,Professional Fees,323.90,19/09/2013,rk85117002
00003586,Bristow & Sutor,National Non-Domestic Rate,NNDR Admin.,Professional Fees,858.70,14/10/2013,rk85117008
00003586,Bristow & Sutor,Council Tax,Council Tax,Professional Fees,"1,553.45",17/10/2013,rk85117010
00003586,Bristow & Sutor,National Non-Domestic Rate,NNDR Admin.,Professional Fees,476.30,18/11/2013,rk85117011
00003586,Bristow & Sutor,Council Tax,Council Tax,Professional Fees,"1,875.59",21/11/2013,rk85117014
00003586,Bristow & Sutor,National Non-Domestic Rate,NNDR Admin.,Professional Fees,316.62,02/12/2013,rk85117015
00003586,Bristow & Sutor,Council Tax,Council Tax,Professional Fees,"3,072.84",05/12/2013,rk85117016
00003586,Bristow & Sutor,Council Tax,Council Tax,Professional Fees,"1,951.68",16/01/2014,rk85117031
00003586,Bristow & Sutor,Council Tax,Council Tax,Professional Fees,241.90,16/01/2014,rk85117032
00003586,Bristow & Sutor,National Non-Domestic Rate,NNDR Admin.,Professional Fees,273.00,16/01/2014,rk85117032
00003586,Bristow & Sutor,Council Tax,Council Tax,Professional Fees,"1,574.12",06/02/2014,rk85117042
00003586,Bristow & Sutor,National Non-Domestic Rate,NNDR Admin.,Professional Fees,399.20,06/02/2014,rk85117041
00003586,Bristow & Sutor,On Street Parking,On Street,Discretion Fees & Charges Inc,13.44,06/02/2014,vm84133866
00003586,Bristow & Sutor,On Street Parking,On Street,Discretion Fees & Charges Inc,112.00,27/02/2014,vm84133920
00003586,Bristow & Sutor,Council Tax,Council Tax,Professional Fees,"2,672.43",27/03/2014,rk85117048
00003586,Bristow & Sutor,National Non-Domestic Rate,NNDR Admin.,Professional Fees,435.30,27/03/2014,rk85117047
00167891,Britannia Squab Group,Housing,Homelessness,Other Third Party Payments,396.00,27/06/2013,wn84133370
00166041,British Gas Services(Commercial)Ltd,Environmental Initiatives,Electric Cars,Machinery & Equipment Expenses,"2,825.04",30/05/2013,rk82125346
00175430,British Microlight Aircraft Association,Regulatory Services,Planning Application Appeals,Professional Fees,909.54,20/03/2014,wn82116999
00007757,British Parking Association,Off-Street Parking,Car Parks Expenses,Grants & Subscription Expenses,302.40,24/10/2013,vm84133527
00007757,British Parking Association,On Street Parking,On Street,Grants & Subscription Expenses,705.60,24/10/2013,vm84133527
00007757,British Parking Association,Off-Street Parking,Car Parks Expenses,Grants & Subscription Expenses,29.52,16/01/2014,vm84133787
00007757,British Parking Association,On Street Parking,On Street,Grants & Subscription Expenses,68.88,16/01/2014,vm84133787
00079361,British Red Cross Society,HR and Training,Human Resources,Indirect Employee Expenses,432.00,24/02/2014,vm82127419
00000615,British Telecommunications Plc,Building Services,Alcester Area Office,Communications Expenses,21.00,13/05/2013,rk84144656
00000615,British Telecommunications Plc,Building Services,Elizabeth House,Communications Expenses,382.05,13/05/2013,rk84144654
00000615,British Telecommunications Plc,Building Services,Elizabeth House,Communications Expenses,21.00,13/05/2013,rk84144656
00000615,British Telecommunications Plc,Building Services,Southam Area Office,Communications Expenses,21.00,13/05/2013,rk84144656
00000615,British Telecommunications Plc,C.C.T.V.,CCTV General Operation,Communications Expenses,483.89,13/05/2013,rk84144654
00000615,British Telecommunications Plc,C.C.T.V.,CCTV General Operation,Communications Expenses,21.00,13/05/2013,rk84144656
00000615,British Telecommunications Plc,Front Office & Trans Team,Front Office & Trans Team,Communications Expenses,"1,587.35",13/05/2013,rk84144654
00000615,British Telecommunications Plc,Front Office & Trans Team,Front Office & Trans Team,Communications Expenses,179.57,13/05/2013,rk84144656
00000615,British Telecommunications Plc,Information Technology,Information Technology Division,Communications Expenses,422.03,13/05/2013,rk84144654
00000615,British Telecommunications Plc,Information Technology,Information Technology Division,Communications Expenses,21.00,13/05/2013,rk84144656
00000615,British Telecommunications Plc,Information Technology,Telephones-Elizabeth House,Communications Expenses,"5,690.34",13/05/2013,rk84144654
00000615,British Telecommunications Plc,Off-Street Parking,Car Parks Expenses,Communications Expenses,564.09,13/05/2013,rk84144654
00000615,British Telecommunications Plc,Off-Street Parking,Car Parks Expenses,Communications Expenses,20.99,13/05/2013,rk84144656
00000615,British Telecommunications Plc,Off-Street Parking,Shopmobility,Communications Expenses,106.79,13/05/2013,rk84144654
00000615,British Telecommunications Plc,On Street Parking,On Street,Communications Expenses,45.49,13/05/2013,rk84144654
00000615,British Telecommunications Plc,Street Cleansing & Furniture,Street Furniture,Communications Expenses,190.18,13/05/2013,rk84144654
00000615,British Telecommunications Plc,C.C.T.V.,CCTV General Operation,Communications Expenses,"1,012.50",03/06/2013,rk84144763
00000615,British Telecommunications Plc,Information Technology,Telephones-Elizabeth House,Communications Expenses,363.89,03/06/2013,rk84144763
00000615,British Telecommunications Plc,Building Services,Alcester Area Office,Communications Expenses,21.00,10/06/2013,rk84144789
00000615,British Telecommunications Plc,Building Services,Elizabeth House,Communications Expenses,21.00,10/06/2013,rk84144789
00000615,British Telecommunications Plc,Building Services,Southam Area Office,Communications Expenses,21.00,10/06/2013,rk84144789
00000615,British Telecommunications Plc,C.C.T.V.,CCTV General Operation,Communications Expenses,21.00,10/06/2013,rk84144789
00000615,British Telecommunications Plc,Front Office & Trans Team,Front Office & Trans Team,Communications Expenses,188.98,10/06/2013,rk84144789
00000615,British Telecommunications Plc,Information Technology,Information Technology Division,Communications Expenses,21.00,10/06/2013,rk84144789
00000615,British Telecommunications Plc,Off-Street Parking,Car Parks Expenses,Communications Expenses,20.99,10/06/2013,rk84144789
00000615,British Telecommunications Plc,Building Services,Alcester Area Office,Communications Expenses,21.00,04/07/2013,rk84144901
00000615,British Telecommunications Plc,Building Services,Elizabeth House,Communications Expenses,21.00,04/07/2013,rk84144901
00000615,British Telecommunications Plc,Building Services,Southam Area Office,Communications Expenses,21.00,04/07/2013,rk84144901
00000615,British Telecommunications Plc,C.C.T.V.,CCTV General Operation,Communications Expenses,21.00,04/07/2013,rk84144901
00000615,British Telecommunications Plc,Front Office & Trans Team,Front Office & Trans Team,Communications Expenses,252.08,04/07/2013,rk84144901
00000615,British Telecommunications Plc,Information Technology,Information Technology Division,Communications Expenses,21.00,04/07/2013,rk84144901
00000615,British Telecommunications Plc,Off-Street Parking,Car Parks Expenses,Communications Expenses,21.00,04/07/2013,rk84144901
00000615,British Telecommunications Plc,Building Services,Alcester Area Office,Communications Expenses,21.00,01/08/2013,rk84145064
00000615,British Telecommunications Plc,Building Services,Elizabeth House,Communications Expenses,21.00,01/08/2013,rk84145064
00000615,British Telecommunications Plc,Building Services,Southam Area Office,Communications Expenses,4.19,01/08/2013,rk84145064
00000615,British Telecommunications Plc,C.C.T.V.,CCTV General Operation,Communications Expenses,21.00,01/08/2013,rk84145064
00000615,British Telecommunications Plc,Front Office & Trans Team,Front Office & Trans Team,Communications Expenses,188.99,01/08/2013,rk84145064
00000615,British Telecommunications Plc,Information Technology,Information Technology Division,Communications Expenses,21.00,01/08/2013,rk84145064
00000615,British Telecommunications Plc,Off-Street Parking,Car Parks Expenses,Communications Expenses,21.00,01/08/2013,rk84145064
00000615,British Telecommunications Plc,Building Services,Elizabeth House,Communications Expenses,382.74,15/08/2013,rk84145172
00000615,British Telecommunications Plc,C.C.T.V.,CCTV General Operation,Communications Expenses,512.55,15/08/2013,rk84145172
00000615,British Telecommunications Plc,Front Office & Trans Team,Front Office & Trans Team,Communications Expenses,"1,669.48",15/08/2013,rk84145172
00000615,British Telecommunications Plc,Information Technology,Telephones-Elizabeth House,Communications Expenses,"6,077.31",15/08/2013,rk84145172
00000615,British Telecommunications Plc,Off-Street Parking,Car Parks Expenses,Communications Expenses,864.17,15/08/2013,rk84145172
00000615,British Telecommunications Plc,Off-Street Parking,Shopmobility,Communications Expenses,117.83,15/08/2013,rk84145172
00000615,British Telecommunications Plc,On Street Parking,On Street,Communications Expenses,45.49,15/08/2013,rk84145172
00000615,British Telecommunications Plc,Street Cleansing & Furniture,Street Furniture,Communications Expenses,193.33,15/08/2013,rk84145172
00000615,British Telecommunications Plc,Front Office & Trans Team,Front Office & Trans Team,Communications Expenses,225.74,29/08/2013,rk84145242
00000615,British Telecommunications Plc,Building Services,Alcester Area Office,Communications Expenses,21.00,02/09/2013,rk84145254
00000615,British Telecommunications Plc,Building Services,Elizabeth House,Communications Expenses,21.00,02/09/2013,rk84145254
00000615,British Telecommunications Plc,Building Services,Southam Area Office,Communications Expenses,21.00,02/09/2013,rk84145254
00000615,British Telecommunications Plc,C.C.T.V.,CCTV General Operation,Communications Expenses,21.00,02/09/2013,rk84145254
00000615,British Telecommunications Plc,Front Office & Trans Team,Front Office & Trans Team,Communications Expenses,188.97,02/09/2013,rk84145254
00000615,British Telecommunications Plc,Information Technology,Information Technology Division,Communications Expenses,21.00,02/09/2013,rk84145254
00000615,British Telecommunications Plc,Off-Street Parking,Car Parks Expenses,Communications Expenses,21.00,02/09/2013,rk84145254
00000615,British Telecommunications Plc,C.C.T.V.,CCTV General Operation,Communications Expenses,"1,012.50",26/09/2013,rk84145461
00000615,British Telecommunications Plc,Information Technology,Telephones-Elizabeth House,Communications Expenses,363.89,26/09/2013,rk84145461
00000615,British Telecommunications Plc,Building Services,Alcester Area Office,Communications Expenses,21.00,30/09/2013,rk84145472
00000615,British Telecommunications Plc,Building Services,Elizabeth House,Communications Expenses,21.00,30/09/2013,rk84145472
00000615,British Telecommunications Plc,Building Services,Southam Area Office,Communications Expenses,21.00,30/09/2013,rk84145472
00000615,British Telecommunications Plc,C.C.T.V.,CCTV General Operation,Communications Expenses,21.00,30/09/2013,rk84145472
00000615,British Telecommunications Plc,Front Office & Trans Team,Front Office & Trans Team,Communications Expenses,188.97,30/09/2013,rk84145472
00000615,British Telecommunications Plc,Information Technology,Information Technology Division,Communications Expenses,21.00,30/09/2013,rk84145472
00000615,British Telecommunications Plc,Off-Street Parking,Car Parks Expenses,Communications Expenses,21.00,30/09/2013,rk84145472
00000615,British Telecommunications Plc,Building Services,Alcester Area Office,Communications Expenses,21.00,04/11/2013,rk84145642
00000615,British Telecommunications Plc,Building Services,Elizabeth House,Communications Expenses,21.00,04/11/2013,rk84145642
00000615,British Telecommunications Plc,C.C.T.V.,CCTV General Operation,Communications Expenses,21.00,04/11/2013,rk84145642
00000615,British Telecommunications Plc,Front Office & Trans Team,Front Office & Trans Team,Communications Expenses,188.97,04/11/2013,rk84145642
00000615,British Telecommunications Plc,Information Technology,Information Technology Division,Communications Expenses,21.00,04/11/2013,rk84145642
00000615,British Telecommunications Plc,Investment Properties,"The Grange, Southam",Communications Expenses,21.00,04/11/2013,rk84145642
00000615,British Telecommunications Plc,Off-Street Parking,Car Parks Expenses,Communications Expenses,21.00,04/11/2013,rk84145642
00000615,British Telecommunications Plc,Building Services,Elizabeth House,Communications Expenses,382.77,14/11/2013,rk84145696
00000615,British Telecommunications Plc,C.C.T.V.,CCTV General Operation,Communications Expenses,532.93,14/11/2013,rk84145696
00000615,British Telecommunications Plc,Front Office & Trans Team,Front Office & Trans Team,Communications Expenses,"1,549.61",14/11/2013,rk84145696
00000615,British Telecommunications Plc,Information Technology,Telephones-Elizabeth House,Communications Expenses,"6,047.88",14/11/2013,rk84145696
00000615,British Telecommunications Plc,Off-Street Parking,Car Parks Expenses,Communications Expenses,994.51,14/11/2013,rk84145696
00000615,British Telecommunications Plc,Off-Street Parking,Shopmobility,Communications Expenses,109.31,14/11/2013,rk84145696
00000615,British Telecommunications Plc,On Street Parking,On Street,Communications Expenses,45.47,14/11/2013,rk84145696
00000615,British Telecommunications Plc,Street Cleansing & Furniture,Street Furniture,Communications Expenses,189.11,14/11/2013,rk84145696
00000615,British Telecommunications Plc,C.C.T.V.,CCTV General Operation,Communications Expenses,"1,012.50",25/11/2013,rk84145766
00000615,British Telecommunications Plc,Information Technology,Telephones-Elizabeth House,Communications Expenses,384.00,25/11/2013,rk84145766
00000615,British Telecommunications Plc,Front Office & Trans Team,Front Office & Trans Team,Communications Expenses,56.26,28/11/2013,rk84145786
00000615,British Telecommunications Plc,Building Services,Alcester Area Office,Communications Expenses,21.00,05/12/2013,rk84145824
00000615,British Telecommunications Plc,Building Services,Elizabeth House,Communications Expenses,21.00,05/12/2013,rk84145824
00000615,British Telecommunications Plc,C.C.T.V.,CCTV General Operation,Communications Expenses,21.00,05/12/2013,rk84145824
00000615,British Telecommunications Plc,Front Office & Trans Team,Front Office & Trans Team,Communications Expenses,188.97,05/12/2013,rk84145824
00000615,British Telecommunications Plc,Information Technology,Information Technology Division,Communications Expenses,21.00,05/12/2013,rk84145824
00000615,British Telecommunications Plc,Investment Properties,"The Grange, Southam",Communications Expenses,21.00,05/12/2013,rk84145824
00000615,British Telecommunications Plc,Off-Street Parking,Car Parks Expenses,Communications Expenses,21.00,05/12/2013,rk84145824
00000615,British Telecommunications Plc,Building Services,Alcester Area Office,Communications Expenses,21.00,09/01/2014,rk84145962
00000615,British Telecommunications Plc,Building Services,Elizabeth House,Communications Expenses,21.00,09/01/2014,rk84145962
00000615,British Telecommunications Plc,C.C.T.V.,CCTV General Operation,Communications Expenses,21.00,09/01/2014,rk84145962
00000615,British Telecommunications Plc,Front Office & Trans Team,Front Office & Trans Team,Communications Expenses,188.97,09/01/2014,rk84145962
00000615,British Telecommunications Plc,Information Technology,Information Technology Division,Communications Expenses,21.00,09/01/2014,rk84145962
00000615,British Telecommunications Plc,Investment Properties,"The Grange, Southam",Communications Expenses,21.00,09/01/2014,rk84145962
00000615,British Telecommunications Plc,Off-Street Parking,Car Parks Expenses,Communications Expenses,21.00,09/01/2014,rk84145962
00000615,British Telecommunications Plc,Building Services,Alcester Area Office,Communications Expenses,21.00,06/02/2014,rk84146091
00000615,British Telecommunications Plc,Building Services,Elizabeth House,Communications Expenses,21.00,06/02/2014,rk84146091
00000615,British Telecommunications Plc,C.C.T.V.,CCTV General Operation,Communications Expenses,21.00,06/02/2014,rk84146091
00000615,British Telecommunications Plc,Front Office & Trans Team,Front Office & Trans Team,Communications Expenses,188.97,06/02/2014,rk84146091
00000615,British Telecommunications Plc,Information Technology,Information Technology Division,Communications Expenses,21.00,06/02/2014,rk84146091
00000615,British Telecommunications Plc,Investment Properties,"The Grange, Southam",Communications Expenses,21.00,06/02/2014,rk84146091
00000615,British Telecommunications Plc,Off-Street Parking,Car Parks Expenses,Communications Expenses,21.00,06/02/2014,rk84146091
00000615,British Telecommunications Plc,Building Services,Elizabeth House,Communications Expenses,385.28,10/02/2014,rk84146117
00000615,British Telecommunications Plc,C.C.T.V.,CCTV General Operation,Communications Expenses,461.53,10/02/2014,rk84146117
00000615,British Telecommunications Plc,Front Office & Trans Team,Front Office & Trans Team,Communications Expenses,"1,615.45",10/02/2014,rk84146117
00000615,British Telecommunications Plc,Information Technology,Telephones-Elizabeth House,Communications Expenses,"5,681.37",10/02/2014,rk84146117
00000615,British Telecommunications Plc,Off-Street Parking,Car Parks Expenses,Communications Expenses,781.64,10/02/2014,rk84146117
00000615,British Telecommunications Plc,Off-Street Parking,Shopmobility,Communications Expenses,107.33,10/02/2014,rk84146117
00000615,British Telecommunications Plc,On Street Parking,On Street,Communications Expenses,45.47,10/02/2014,rk84146117
00000615,British Telecommunications Plc,Street Cleansing & Furniture,Street Furniture,Communications Expenses,199.01,10/02/2014,rk84146117
00000615,British Telecommunications Plc,C.C.T.V.,CCTV General Operation,Communications Expenses,"1,012.50",24/02/2014,rk84146190
00000615,British Telecommunications Plc,Front Office & Trans Team,Front Office & Trans Team,Communications Expenses,56.26,24/02/2014,rk84146191
00000615,British Telecommunications Plc,Information Technology,Telephones-Elizabeth House,Communications Expenses,384.00,24/02/2014,rk84146190
00000615,British Telecommunications Plc,Information Technology,Telephones-Elizabeth House,Communications Expenses,"2,353.42",24/02/2014,rk84146192
00000615,British Telecommunications Plc,Building Services,Alcester Area Office,Communications Expenses,21.00,06/03/2014,rk84146230
00000615,British Telecommunications Plc,Building Services,Elizabeth House,Communications Expenses,21.00,06/03/2014,rk84146230
00000615,British Telecommunications Plc,C.C.T.V.,CCTV General Operation,Communications Expenses,21.00,06/03/2014,rk84146230
00000615,British Telecommunications Plc,Front Office & Trans Team,Front Office & Trans Team,Communications Expenses,188.97,06/03/2014,rk84146230
00000615,British Telecommunications Plc,Information Technology,Information Technology Division,Communications Expenses,21.00,06/03/2014,rk84146230
00000615,British Telecommunications Plc,Investment Properties,"The Grange, Southam",Communications Expenses,21.00,06/03/2014,rk84146230
00000615,British Telecommunications Plc,Off-Street Parking,Car Parks Expenses,Communications Expenses,21.00,06/03/2014,rk84146230
00159184,Bromford Group,Crime Reduction,Crime Reduction,Grants & Subscription Expenses,"2,000.00",12/09/2013,rk84145313
00006664,Bromsgrove District Council,Resources,Accountancy Division,Other Third Party Payments,"1,200.00",31/03/2014,rk84146342
00171256,Brook Lodge Guest House,Housing,Homelessness,Other Third Party Payments,78.00,14/11/2013,wn82116927
00171256,Brook Lodge Guest House,Housing,Homelessness,Other Third Party Payments,45.00,14/11/2013,wn82116928
00173047,Brooke Smith Planning Consultants Ltd,Regulatory Services,Planning Application Appeals,Legal Expenses,"6,093.60",23/12/2013,wn82116945
00173047,Brooke Smith Planning Consultants Ltd,Regulatory Services,Dev. Control General,Professional Fees,"12,144.00",20/01/2014,wn84133863
00075365,Broom Village Hall,Creditors,WCC Elections May 2013,Cash Payments,150.00,10/06/2013,yq84119794
00075365,Broom Village Hall,Elections,District Elections,General Office Expenses,20.00,27/06/2013,yq84119890
00014766,BSI,Building Control,Building Control Service (Fee),Grants & Subscription Expenses,872.40,13/01/2014,wn84133839
00138257,BT Phonebook,Front Office & Trans Team,Front Office & Trans Team,Miscellaneous Expenses,451.20,13/05/2013,rk84144658
00138257,BT Phonebook,Front Office & Trans Team,Front Office & Trans Team,Miscellaneous Expenses,218.40,13/03/2014,rk84146255
00138257,BT Phonebook,Front Office & Trans Team,Front Office & Trans Team,Miscellaneous Expenses,232.80,27/03/2014,rk84146328
00051402,BT Red Care,C.C.T.V.,CCTV General Operation,Communications Expenses,"68,834.54",25/04/2013,vm84132704
00051402,BT Red Care,C.C.T.V.,CCTV General Operation,Communications Expenses,"5,594.40",25/04/2013,vm84132705
00153481,Buckinghamshire Country Council,Monitoring Officer,Monitoring Officer,Grants & Subscription Expenses,"12,000.00",16/05/2013,yq84119756
00005636,Bullivant Media Limited,Off-Street Parking,Car Parks Expenses,Miscellaneous Expenses,108.00,09/09/2013,vm82127246
00005636,Bullivant Media Limited,On Street Parking,On Street,Miscellaneous Expenses,108.00,09/09/2013,vm82127246
00005636,Bullivant Media Limited,Social Inclusion,Social Transport Fund,Miscellaneous Expenses,126.00,13/03/2014,rk82125704
00005636,Bullivant Media Limited,Social Inclusion,Social Transport Fund,Miscellaneous Expenses,126.00,13/03/2014,rk82125705
00005636,Bullivant Media Limited,Social Inclusion,Social Transport Fund,Miscellaneous Expenses,126.00,13/03/2014,rk82125706
00005636,Bullivant Media Limited,Social Inclusion,Social Transport Fund,Miscellaneous Expenses,126.00,13/03/2014,rk82125707
00005636,Bullivant Media Limited,Social Inclusion,Social Transport Fund,Miscellaneous Expenses,258.00,13/03/2014,rk82125708
00005636,Bullivant Media Limited,Social Inclusion,Social Transport Fund,Miscellaneous Expenses,126.00,17/03/2014,rk84146282
,BULLIVANT MEDIA LT,Off-Street Parking,Car Parks Expenses,Advertising for Staff,172.80,21/05/2013 ,3982
,BULLIVANT MEDIA LT,On Street Parking,On Street Parking,Advertising for Staff,403.20,21/05/2013 ,3982
,BULLIVANT MEDIA LT,Housing,Homelessness,Advertising for Staff,702.00,18/06/2013 ,4109
,BULLIVANT MEDIA LT,Policy,Local Development Framework,Advertising Expenses General,-299.20,01/08/2013 ,4299
,BULLIVANT MEDIA LT,Policy,Local Development Framework,Advertising Expenses General,421.60,01/08/2013 ,4300
,BULLIVANT MEDIA LT,Policy,PIAR General,Advertising Expenses General,180.00,08/10/2013 ,4589
,BULLIVANT MEDIA LT,Policy,PIAR General,Advertising Expenses General,180.14,08/10/2013 ,4590
,BULLIVANT MEDIA LT,Policy,PIAR General,Advertising Expenses General,180.00,15/10/2013 ,4619
,BULLIVANT MEDIA LT,Miscellaneous Properties,Other Properties,Advertising Expenses General,137.28,28/10/2013 ,4700
,BULLIVANT MEDIA LT,Miscellaneous Properties,Other Properties,Advertising Expenses General,137.28,28/10/2013 ,4701
,BULLIVANT MEDIA LT,Miscellaneous Properties,Other Properties,Advertising Expenses General,137.28,28/10/2013 ,4702
,BULLIVANT MEDIA LT,Policy,PIAR General,Advertising Expenses General,162.24,26/11/2013 ,4840
,BULLIVANT MEDIA LT,Policy,PIAR General,Advertising Expenses General,162.24,26/11/2013 ,4841
,BULLIVANT MEDIA LT,Information Technology,Design & Cartographic Unit,Advertising Expenses General,557.04,12/12/2013 ,4902
,BULLIVANT MEDIA LT,Policy,Neighbourhood Plan Consultation,Advertising Expenses General,120.00,04/02/2014 ,5141
,BULLIVANT MEDIA LT,Policy,Neighbourhood Plan Consultation,Advertising Expenses General,120.00,04/02/2014 ,5142
,BULLIVANT MEDIA LT,Policy,PIAR General,Advertising Expenses General,93.24,11/02/2014 ,5214
,BULLIVANT MEDIA LT,Policy,PIAR General,Advertising Expenses General,93.24,11/02/2014 ,5215
,BULLIVANT MEDIA LT,Policy,PIAR General,Advertising Expenses General,93.24,11/02/2014 ,5216
00129020,Bupa Cash Plan,HR and Training,Staff Benefits,Indirect Employee Expenses,-3.03,13/05/2013,yq00100042
00129020,Bupa Cash Plan,HR and Training,Staff Benefits,Indirect Employee Expenses,693.87,13/05/2013,yq84119757
00129020,Bupa Cash Plan,Payroll Control Accounts,BUPA Staff Scheme,Cash Payments,497.02,13/05/2013,yq84119757
00129020,Bupa Cash Plan,Payroll Control Accounts,BUPA Staff Scheme,Cash Payments,3.04,20/05/2013,rk84144701
00129020,Bupa Cash Plan,HR and Training,Staff Benefits,Indirect Employee Expenses,684.78,03/06/2013,yq84119777
00129020,Bupa Cash Plan,Payroll Control Accounts,BUPA Staff Scheme,Cash Payments,497.02,03/06/2013,yq84119777
00129020,Bupa Cash Plan,HR and Training,Staff Benefits,Indirect Employee Expenses,657.51,01/07/2013,yq84119929
00129020,Bupa Cash Plan,Payroll Control Accounts,BUPA Staff Scheme,Cash Payments,579.12,01/07/2013,yq84119929
00129020,Bupa Cash Plan,HR and Training,Staff Benefits,Indirect Employee Expenses,687.81,29/07/2013,yq84119946
00129020,Bupa Cash Plan,Payroll Control Accounts,BUPA Staff Scheme,Cash Payments,557.91,29/07/2013,yq84119946
00129020,Bupa Cash Plan,HR and Training,Staff Benefits,Indirect Employee Expenses,681.75,29/08/2013,yq84119960
00129020,Bupa Cash Plan,Payroll Control Accounts,BUPA Staff Scheme,Cash Payments,558.78,29/08/2013,yq84119960
00129020,Bupa Cash Plan,HR and Training,Staff Benefits,Indirect Employee Expenses,681.75,10/10/2013,yq84119979
00129020,Bupa Cash Plan,Payroll Control Accounts,BUPA Staff Scheme,Cash Payments,581.54,10/10/2013,yq84119979
00129020,Bupa Cash Plan,HR and Training,Staff Benefits,Indirect Employee Expenses,687.81,31/10/2013,yq84119995
00129020,Bupa Cash Plan,Payroll Control Accounts,BUPA Staff Scheme,Cash Payments,591.51,31/10/2013,yq84119995
00129020,Bupa Cash Plan,HR and Training,Staff Benefits,Indirect Employee Expenses,687.81,12/12/2013,yq84120015
00129020,Bupa Cash Plan,Payroll Control Accounts,BUPA Staff Scheme,Cash Payments,591.51,12/12/2013,yq84120015
00129020,Bupa Cash Plan,HR and Training,Staff Benefits,Indirect Employee Expenses,678.72,07/01/2014,yq84120043
00129020,Bupa Cash Plan,Payroll Control Accounts,BUPA Staff Scheme,Cash Payments,607.32,07/01/2014,yq84120043
00129020,Bupa Cash Plan,HR and Training,Staff Benefits,Indirect Employee Expenses,678.72,06/02/2014,yq84120056
00129020,Bupa Cash Plan,Payroll Control Accounts,BUPA Staff Scheme,Cash Payments,607.32,06/02/2014,yq84120056
00129020,Bupa Cash Plan,HR and Training,Staff Benefits,Indirect Employee Expenses,672.66,13/03/2014,yq84120072
00129020,Bupa Cash Plan,Payroll Control Accounts,BUPA Staff Scheme,Cash Payments,604.93,13/03/2014,yq84120072
00130336,Bupa Wellness,HR and Training,Staff Benefits,Indirect Employee Expenses,"4,860.00",21/11/2013,yq82116805
00141626,Burmington Village Hall,Creditors,WCC Elections May 2013,Cash Payments,67.50,10/06/2013,yq84119795
00141626,Burmington Village Hall,Elections,District Elections,General Office Expenses,20.00,27/06/2013,yq84119895
00167833,Bywater Training Ltd,HR and Training,Technical Services Training,Indirect Employee Expenses,"1,825.20",11/07/2013,vm82127160
00005720,C A Wallgate & Co Ltd,Public Conveniences,Conveniences Expenses,Repairs & Maintenance Expenses,144.48,25/04/2013,vm82127102
00005720,C A Wallgate & Co Ltd,Public Conveniences,Conveniences Expenses,Repairs & Maintenance Expenses,144.48,08/07/2013,vm82127154
00005720,C A Wallgate & Co Ltd,Public Conveniences,Conveniences Expenses,Repairs & Maintenance Expenses,144.48,03/10/2013,vm82127274
00005720,C A Wallgate & Co Ltd,Public Conveniences,Conveniences Expenses,Repairs & Maintenance Expenses,262.56,24/12/2013,vm82127355
00005720,C A Wallgate & Co Ltd,Public Conveniences,Conveniences Expenses,Repairs & Maintenance Expenses,"2,966.40",20/02/2014,vm82127412
,C I H,Housing,Homelessness,Training Expenses,438.00,16/08/2013 ,4400
,C I H,Housing,Homelessness,Professional Subs - Employees,296.00,03/01/2014 ,5006
00139573,C N Payne T/A R N Payne & Son,Current Schemes In Progress,Home Repair Assist.Grants,Renovation Grants (Capital),146.77,20/01/2014,rk84146034
00175621,Cala Homes (Midlands) Ltd,Regulatory Services,Planning Application Appeals,Legal Expenses,"145,700.00",17/03/2014,wn84133988
00125820,Calby Air,Off-Street Parking,Car Parks Expenses,Private Contractors,197.28,27/06/2013,rk82125378
00125820,Calby Air,On Street Parking,On Street,Private Contractors,460.32,27/06/2013,rk82125378
00125820,Calby Air,C.C.T.V.,CCTV General Operation,Private Contractors,571.20,06/02/2014,rk82125634
00076254,Cale Briparc Ltd,On Street Parking,On Street,Machinery & Equipment Expenses,990.00,25/04/2013,rk84144459
00076254,Cale Briparc Ltd,On Street Parking,On Street,Machinery & Equipment Expenses,63.54,25/07/2013,rk82125405
00076254,Cale Briparc Ltd,On Street Parking,On Street,Machinery & Equipment Expenses,"1,008.00",08/08/2013,rk84145066
00076254,Cale Briparc Ltd,On Street Parking,On Street,Machinery & Equipment Expenses,63.54,27/08/2013,rk82125443
00076254,Cale Briparc Ltd,On Street Parking,On Street,Machinery & Equipment Expenses,176.95,29/08/2013,rk82125445
00076254,Cale Briparc Ltd,On Street Parking,On Street,Machinery & Equipment Expenses,130.80,12/09/2013,rk84145283
00076254,Cale Briparc Ltd,On Street Parking,On Street,Machinery & Equipment Expenses,470.40,26/09/2013,rk82125462
00076254,Cale Briparc Ltd,On Street Parking,On Street,Machinery & Equipment Expenses,"1,008.00",24/10/2013,rk84145586
00076254,Cale Briparc Ltd,On Street Parking,On Street,Machinery & Equipment Expenses,194.24,07/11/2013,rk82125513
00076254,Cale Briparc Ltd,On Street Parking,On Street,Machinery & Equipment Expenses,"6,099.67",28/11/2013,rk84145779
00076254,Cale Briparc Ltd,On Street Parking,On Street,Machinery & Equipment Expenses,"1,008.00",16/01/2014,rk84145991
00076254,Cale Briparc Ltd,On Street Parking,On Street,Machinery & Equipment Expenses,594.80,16/01/2014,rk84145992
00076254,Cale Briparc Ltd,On Street Parking,On Street,Machinery & Equipment Expenses,287.31,20/01/2014,rk82125622
00076254,Cale Briparc Ltd,On Street Parking,On Street,Machinery & Equipment Expenses,"2,306.45",10/02/2014,rk82125665
00076254,Cale Briparc Ltd,On Street Parking,On Street,Machinery & Equipment Expenses,434.91,10/02/2014,rk82125666
00076254,Cale Briparc Ltd,On Street Parking,On Street,Machinery & Equipment Expenses,337.79,20/03/2014,rk82125710
00076254,Cale Briparc Ltd,On Street Parking,On Street,Machinery & Equipment Expenses,50.48,31/03/2014,rk82125751
00076254,Cale Briparc Ltd,On Street Parking,On Street,Machinery & Equipment Expenses,319.97,31/03/2014,rk82125752
00076254,Cale Briparc Ltd,On Street Parking,On Street,Machinery & Equipment Expenses,50.48,31/03/2014,rk82125753
00076254,Cale Briparc Ltd,On Street Parking,On Street,Machinery & Equipment Expenses,466.01,31/03/2014,rk82125754
,CAMPANILE,On Street Parking,On Street Parking,Bed & Breakfast Costs,82.00,20/01/2014 ,5093
,CAMPANILE,On Street Parking,On Street Parking,Refreshments Expenses,6.75,21/01/2014 ,5094
00007210,Canford Audio Plc,Environmental Health,Env. Health Expenses,Machinery & Equipment Expenses,181.94,20/05/2013,wn82116805
00007210,Canford Audio Plc,Council Tax Reduction - Admin.,Council Tax Benefits - Admin.,General Office Expenses,72.00,19/12/2013,rk82125577
00007210,Canford Audio Plc,Housing Ben. Admin,H BenPrvte Tnants-Gen Admin,General Office Expenses,47.40,19/12/2013,rk82125577
00007210,Canford Audio Plc,Housing Ben. Admin,H BenPrvte Tnants-Gen Admin,Machinery & Equipment Expenses,134.16,13/01/2014,rk82125616
00001779,Cannon Hygiene,Building Services,Alcester Area Office,Other Third Party Payments,32.44,25/04/2013,vm84132727
00001779,Cannon Hygiene,Building Services,Elizabeth House,Other Third Party Payments,329.80,25/04/2013,vm84132726
00001779,Cannon Hygiene,Building Services,Elizabeth House Executive Suite Operatio,Other Third Party Payments,12.21,25/04/2013,vm84132726
00001779,Cannon Hygiene,Building Services,Elizabeth House Ground Floor Area,Other Third Party Payments,65.15,25/04/2013,vm84132726
00001779,Cannon Hygiene,C.C.T.V.,CCTV General Operation,Other Third Party Payments,8.10,25/04/2013,vm84132731
00001779,Cannon Hygiene,Off-Street Parking,Car Parks Expenses,Other Third Party Payments,16.24,25/04/2013,vm84132730
00001779,Cannon Hygiene,Off-Street Parking,Shopmobility,Other Third Party Payments,81.43,25/04/2013,vm84132730
00001779,Cannon Hygiene,Public Conveniences,Conveniences Expenses,Other Third Party Payments,150.70,29/04/2013,vm84132742
00001779,Cannon Hygiene,Public Conveniences,Conveniences Expenses,Other Third Party Payments,16.99,29/04/2013,vm84132744
00001779,Cannon Hygiene,Public Conveniences,Conveniences Expenses,Other Third Party Payments,16.99,29/04/2013,vm84132745
00001779,Cannon Hygiene,Public Conveniences,Conveniences Expenses,Other Third Party Payments,635.54,29/04/2013,vm84132746
00001779,Cannon Hygiene,Public Conveniences,Conveniences Expenses,Other Third Party Payments,301.39,29/04/2013,vm84132749
00001779,Cannon Hygiene,Public Conveniences,Conveniences Expenses,Other Third Party Payments,462.38,29/04/2013,vm84132750
00001779,Cannon Hygiene,Public Conveniences,Conveniences Expenses,Other Third Party Payments,16.99,29/04/2013,vm84132751
00001779,Cannon Hygiene,Public Conveniences,Conveniences Expenses,Other Third Party Payments,16.99,29/04/2013,vm84132753
00001779,Cannon Hygiene,Public Conveniences,Conveniences Expenses,Other Third Party Payments,16.99,29/04/2013,vm84132754
00001779,Cannon Hygiene,Public Conveniences,Conveniences Expenses,Other Third Party Payments,16.99,29/04/2013,vm84132755
00001779,Cannon Hygiene,Public Conveniences,Conveniences Expenses,Other Third Party Payments,138.53,29/04/2013,vm84132756
00001779,Cannon Hygiene,Building Services,Alcester Area Office,Other Third Party Payments,32.44,22/07/2013,vm84133082
00001779,Cannon Hygiene,Building Services,Elizabeth House,Other Third Party Payments,329.80,22/07/2013,vm84133081
00001779,Cannon Hygiene,Building Services,Elizabeth House Executive Suite Operatio,Other Third Party Payments,12.21,22/07/2013,vm84133081
00001779,Cannon Hygiene,Building Services,Elizabeth House Ground Floor Area,Other Third Party Payments,65.15,22/07/2013,vm84133081
00001779,Cannon Hygiene,C.C.T.V.,CCTV General Operation,Other Third Party Payments,8.10,22/07/2013,vm84133086
00001779,Cannon Hygiene,Off-Street Parking,Car Parks Expenses,Other Third Party Payments,16.24,22/07/2013,vm84133085
00001779,Cannon Hygiene,Off-Street Parking,Shopmobility,Other Third Party Payments,81.43,22/07/2013,vm84133085
00001779,Cannon Hygiene,Public Conveniences,Conveniences Expenses,Other Third Party Payments,16.99,22/07/2013,vm84133091
00001779,Cannon Hygiene,Public Conveniences,Conveniences Expenses,Other Third Party Payments,16.99,22/07/2013,vm84133092
00001779,Cannon Hygiene,Public Conveniences,Conveniences Expenses,Other Third Party Payments,16.99,22/07/2013,vm84133093
00001779,Cannon Hygiene,Public Conveniences,Conveniences Expenses,Other Third Party Payments,138.53,22/07/2013,vm84133094
00001779,Cannon Hygiene,Public Conveniences,Conveniences Expenses,Other Third Party Payments,16.99,22/07/2013,vm84133095
00001779,Cannon Hygiene,Public Conveniences,Conveniences Expenses,Other Third Party Payments,462.38,22/07/2013,vm84133096
00001779,Cannon Hygiene,Public Conveniences,Conveniences Expenses,Other Third Party Payments,150.70,22/07/2013,vm84133097
00001779,Cannon Hygiene,Public Conveniences,Conveniences Expenses,Other Third Party Payments,16.99,22/07/2013,vm84133098
00001779,Cannon Hygiene,Public Conveniences,Conveniences Expenses,Other Third Party Payments,16.99,22/07/2013,vm84133099
00001779,Cannon Hygiene,Public Conveniences,Conveniences Expenses,Other Third Party Payments,635.54,22/07/2013,vm84133100
00001779,Cannon Hygiene,Public Conveniences,Conveniences Expenses,Other Third Party Payments,301.39,22/07/2013,vm84133101
00001779,Cannon Hygiene,Building Services,Alcester Area Office,Other Third Party Payments,32.44,11/11/2013,vm84133583
00001779,Cannon Hygiene,Building Services,Elizabeth House,Other Third Party Payments,329.80,11/11/2013,vm84133584
00001779,Cannon Hygiene,Building Services,Elizabeth House Executive Suite Operatio,Other Third Party Payments,12.21,11/11/2013,vm84133584
00001779,Cannon Hygiene,Building Services,Elizabeth House Ground Floor Area,Other Third Party Payments,65.15,11/11/2013,vm84133584
00001779,Cannon Hygiene,Public Conveniences,Conveniences Expenses,Other Third Party Payments,138.53,11/11/2013,vm84133585
00001779,Cannon Hygiene,Public Conveniences,Conveniences Expenses,Other Third Party Payments,635.54,11/11/2013,vm84133586
00001779,Cannon Hygiene,Public Conveniences,Conveniences Expenses,Other Third Party Payments,301.39,11/11/2013,vm84133587
00001779,Cannon Hygiene,Public Conveniences,Conveniences Expenses,Other Third Party Payments,462.38,11/11/2013,vm84133588
00001779,Cannon Hygiene,Public Conveniences,Conveniences Expenses,Other Third Party Payments,150.70,11/11/2013,vm84133589
00001779,Cannon Hygiene,Public Conveniences,Conveniences Expenses,Other Third Party Payments,16.99,11/11/2013,vm84133590
00001779,Cannon Hygiene,Public Conveniences,Conveniences Expenses,Other Third Party Payments,16.99,11/11/2013,vm84133591
00001779,Cannon Hygiene,Public Conveniences,Conveniences Expenses,Other Third Party Payments,16.99,11/11/2013,vm84133592
00001779,Cannon Hygiene,Public Conveniences,Conveniences Expenses,Other Third Party Payments,16.99,11/11/2013,vm84133593
00001779,Cannon Hygiene,Public Conveniences,Conveniences Expenses,Other Third Party Payments,16.99,11/11/2013,vm84133594
00001779,Cannon Hygiene,Public Conveniences,Conveniences Expenses,Other Third Party Payments,16.99,11/11/2013,vm84133595
00001779,Cannon Hygiene,C.C.T.V.,CCTV General Operation,Other Third Party Payments,8.10,14/11/2013,vm84133598
00001779,Cannon Hygiene,Off-Street Parking,Car Parks Expenses,Other Third Party Payments,16.23,14/11/2013,vm84133599
00001779,Cannon Hygiene,Off-Street Parking,Shopmobility,Other Third Party Payments,81.44,14/11/2013,vm84133599
00001779,Cannon Hygiene,Building Services,Alcester Area Office,Other Third Party Payments,32.44,13/01/2014,vm84133769
00001779,Cannon Hygiene,C.C.T.V.,CCTV General Operation,Other Third Party Payments,8.10,20/01/2014,vm84133803
00001779,Cannon Hygiene,Off-Street Parking,Car Parks Expenses,Other Third Party Payments,16.24,20/01/2014,vm84133804
00001779,Cannon Hygiene,Off-Street Parking,Shopmobility,Other Third Party Payments,81.43,20/01/2014,vm84133804
00001779,Cannon Hygiene,Public Conveniences,Conveniences Expenses,Other Third Party Payments,16.99,20/01/2014,vm84133812
00001779,Cannon Hygiene,Public Conveniences,Conveniences Expenses,Other Third Party Payments,150.70,20/01/2014,vm84133813
00001779,Cannon Hygiene,Public Conveniences,Conveniences Expenses,Other Third Party Payments,462.38,20/01/2014,vm84133814
00001779,Cannon Hygiene,Public Conveniences,Conveniences Expenses,Other Third Party Payments,301.39,20/01/2014,vm84133815
00001779,Cannon Hygiene,Public Conveniences,Conveniences Expenses,Other Third Party Payments,635.54,20/01/2014,vm84133816
00001779,Cannon Hygiene,Public Conveniences,Conveniences Expenses,Other Third Party Payments,16.99,20/01/2014,vm84133817
00001779,Cannon Hygiene,Public Conveniences,Conveniences Expenses,Other Third Party Payments,138.53,20/01/2014,vm84133818
00001779,Cannon Hygiene,Public Conveniences,Conveniences Expenses,Other Third Party Payments,16.99,20/01/2014,vm84133819
00001779,Cannon Hygiene,Public Conveniences,Conveniences Expenses,Other Third Party Payments,16.99,20/01/2014,vm84133820
00001779,Cannon Hygiene,Public Conveniences,Conveniences Expenses,Other Third Party Payments,16.99,20/01/2014,vm84133821
00001779,Cannon Hygiene,Public Conveniences,Conveniences Expenses,Other Third Party Payments,16.99,20/01/2014,vm84133822
00001779,Cannon Hygiene,Building Services,Elizabeth House,Other Third Party Payments,-109.87,27/01/2014,vm83115496
00001779,Cannon Hygiene,Building Services,Elizabeth House,Other Third Party Payments,329.80,27/01/2014,vm84133837
00001779,Cannon Hygiene,Building Services,Elizabeth House Executive Suite Operatio,Other Third Party Payments,-4.07,27/01/2014,vm83115496
00001779,Cannon Hygiene,Building Services,Elizabeth House Executive Suite Operatio,Other Third Party Payments,12.21,27/01/2014,vm84133837
00001779,Cannon Hygiene,Building Services,Elizabeth House Ground Floor Area,Other Third Party Payments,-21.71,27/01/2014,vm83115496
00001779,Cannon Hygiene,Building Services,Elizabeth House Ground Floor Area,Other Third Party Payments,65.15,27/01/2014,vm84133837
00002930,Canon (UK) Limited,Information Technology,Design & Cartographic Unit,Machinery & Equipment Expenses,223.56,16/05/2013,rk82125329
00002930,Canon (UK) Limited,Information Technology,Design & Cartographic Unit,Machinery & Equipment Expenses,-400.99,03/06/2013,rk83116472
00002930,Canon (UK) Limited,Information Technology,Design & Cartographic Unit,Machinery & Equipment Expenses,36.29,03/06/2013,rk84144765
00002930,Canon (UK) Limited,Information Technology,Design & Cartographic Unit,Machinery & Equipment Expenses,400.99,03/06/2013,rk84144766
00002930,Canon (UK) Limited,Information Technology,Design & Cartographic Unit,Machinery & Equipment Expenses,"1,251.79",19/12/2013,rk82125575
00002930,Canon (UK) Limited,Information Technology,Design & Cartographic Unit,Machinery & Equipment Expenses,650.12,19/12/2013,rk82125576
00002930,Canon (UK) Limited,Information Technology,Design & Cartographic Unit,Machinery & Equipment Expenses,36.29,19/12/2013,rk84145885
00002930,Canon (UK) Limited,Information Technology,Design & Cartographic Unit,Machinery & Equipment Expenses,37.45,19/12/2013,rk84145886
00002930,Canon (UK) Limited,Information Technology,Design & Cartographic Unit,Machinery & Equipment Expenses,547.20,30/01/2014,rk82125638
00002930,Canon (UK) Limited,Information Technology,Design & Cartographic Unit,Machinery & Equipment Expenses,37.45,13/02/2014,rk84146114
00002930,Canon (UK) Limited,Information Technology,Design & Cartographic Unit,Machinery & Equipment Expenses,525.12,13/03/2014,rk82125723
00002930,Canon (UK) Limited,Information Technology,Design & Cartographic Unit,Machinery & Equipment Expenses,149.04,17/03/2014,rk84146281
00001944,Canon (UK) Ltd,Information Technology,Design & Cartographic Unit,Machinery & Equipment Expenses,"2,448.14",03/06/2013,rk82125354
00001944,Canon (UK) Ltd,Information Technology,Design & Cartographic Unit,Machinery & Equipment Expenses,"6,563.41",11/07/2013,rk84144957
00001944,Canon (UK) Ltd,Information Technology,Design & Cartographic Unit,Machinery & Equipment Expenses,"7,212.52",18/07/2013,rk82125379
00001944,Canon (UK) Ltd,Information Technology,Design & Cartographic Unit,Machinery & Equipment Expenses,"2,804.21",25/07/2013,rk84145011
00001944,Canon (UK) Ltd,Information Technology,Design & Cartographic Unit,Machinery & Equipment Expenses,866.83,01/08/2013,rk84145087
00001944,Canon (UK) Ltd,Information Technology,Design & Cartographic Unit,Machinery & Equipment Expenses,24.74,22/08/2013,rk84145187
00001944,Canon (UK) Ltd,Information Technology,Design & Cartographic Unit,Machinery & Equipment Expenses,"2,187.80",19/09/2013,rk84145324
00001944,Canon (UK) Ltd,Information Technology,Design & Cartographic Unit,Machinery & Equipment Expenses,"7,212.52",24/10/2013,rk82125473
00001944,Canon (UK) Ltd,Information Technology,Design & Cartographic Unit,Machinery & Equipment Expenses,"3,144.54",31/10/2013,rk84145628
00001944,Canon (UK) Ltd,Information Technology,Design & Cartographic Unit,Machinery & Equipment Expenses,"6,990.04",31/10/2013,rk84145629
00001944,Canon (UK) Ltd,Information Technology,Design & Cartographic Unit,Machinery & Equipment Expenses,453.36,19/12/2013,rk82125549
00001944,Canon (UK) Ltd,Information Technology,Design & Cartographic Unit,Machinery & Equipment Expenses,"7,212.52",20/01/2014,rk82125620
00001944,Canon (UK) Ltd,Information Technology,Design & Cartographic Unit,Machinery & Equipment Expenses,-300.00,20/01/2014,rk83116505
00001944,Canon (UK) Ltd,Information Technology,Design & Cartographic Unit,Machinery & Equipment Expenses,"3,531.46",23/01/2014,rk84146052
00001944,Canon (UK) Ltd,Information Technology,Design & Cartographic Unit,Machinery & Equipment Expenses,"6,990.04",03/02/2014,rk84146098
00001944,Canon (UK) Ltd,Information Technology,Design & Cartographic Unit,Machinery & Equipment Expenses,85.96,10/02/2014,rk84146116
00001944,Canon (UK) Ltd,Information Technology,Design & Cartographic Unit,Machinery & Equipment Expenses,453.36,20/02/2014,rk82125626
00001944,Canon (UK) Ltd,Information Technology,Design & Cartographic Unit,Machinery & Equipment Expenses,"7,212.52",13/03/2014,rk84146260
00001944,Canon (UK) Ltd,Information Technology,Design & Cartographic Unit,Machinery & Equipment Expenses,433.42,27/03/2014,rk82125743
00165631,Capacity Grid,Council Tax,Council Tax,Other Third Party Payments,"3,225.60",16/05/2013,rk82125321
00165631,Capacity Grid,Housing Ben. Admin,H BenPrvte Tnants-Gen Admin,Other Third Party Payments,"3,225.60",16/05/2013,rk82125321
00165631,Capacity Grid,Council Tax,Council Tax,Other Third Party Payments,"3,225.60",10/10/2013,rk82125476
00165631,Capacity Grid,Housing Ben. Admin,H BenPrvte Tnants-Gen Admin,Other Third Party Payments,"3,225.60",10/10/2013,rk82125476
00165631,Capacity Grid,Council Tax,Council Tax,Other Third Party Payments,"3,225.60",24/12/2013,rk82125600
00165631,Capacity Grid,Housing Ben. Admin,H BenPrvte Tnants-Gen Admin,Other Third Party Payments,"3,225.60",24/12/2013,rk82125600
00022693,CAPITA Business Services Ltd,CDC Resources,Bank Charges - Merchant Services,Bank Charges,316.11,22/04/2013,rk84144470
00022693,CAPITA Business Services Ltd,CDC Resources,Bank Charges - Merchant Services,Bank Charges,624.83,28/05/2013,rk84144740
00022693,CAPITA Business Services Ltd,Current Schemes In Progress,Hardware Replacement Programme,Acquisition Of Computers,"5,736.00",04/07/2013,rk82125386
00022693,CAPITA Business Services Ltd,CDC Resources,Bank Charges - Merchant Services,Bank Charges,360.37,11/07/2013,rk84144954
00022693,CAPITA Business Services Ltd,CDC Resources,Bank Charges - Merchant Services,Bank Charges,268.49,22/07/2013,rk84145012
00022693,CAPITA Business Services Ltd,CDC Resources,Bank Charges - Merchant Services,Bank Charges,336.29,27/08/2013,rk84145212
00022693,CAPITA Business Services Ltd,CDC Resources,Bank Charges - Merchant Services,Bank Charges,311.77,23/09/2013,rk84145347
00022693,CAPITA Business Services Ltd,CDC Resources,Bank Charges - Merchant Services,Bank Charges,284.02,24/10/2013,rk84145584
00022693,CAPITA Business Services Ltd,CDC Resources,Bank Charges - Merchant Services,Bank Charges,351.83,21/11/2013,rk84145744
00022693,CAPITA Business Services Ltd,CDC Resources,Bank Charges - Merchant Services,Bank Charges,281.83,23/12/2013,rk84145903
00022693,CAPITA Business Services Ltd,CDC Resources,Bank Charges - Merchant Services,Bank Charges,227.09,23/01/2014,rk84146044
00022693,CAPITA Business Services Ltd,CDC Resources,Bank Charges - Merchant Services,Bank Charges,264.61,17/02/2014,rk84146161
00022693,CAPITA Business Services Ltd,CDC Resources,Bank Charges - Merchant Services,Bank Charges,235.81,17/03/2014,rk84146272
00022693,CAPITA Business Services Ltd,Information Technology,Information Technology Division,Computing Expenses,"6,925.99",17/03/2014,rk84146275
00022693,CAPITA Business Services Ltd,Information Technology,Information Technology Division,Machinery & Equipment Expenses,825.73,17/03/2014,rk84146275
00162346,Care For A Song,Social Inclusion,Social Inclusion,Other Third Party Payments,50.00,28/05/2013,rk84144744
00073202,Cater Walsh Transcription,Members Services,Legal Unit,Other Third Party Payments,170.10,30/01/2014,rk84146073
00164001,Catherine Ann Pearson,Housing,Rent Express Scheme - NEW,Other Third Party Payments,800.00,20/02/2014,wn84133950
00006965,Catterall's of Southam,Regulatory Services,Dev. Control General,Non-Discret Fees & Charges Inc,110.00,28/10/2013,wn84133655
00066507,CCS Enforcement Services Ltd,Council Tax,Council Tax,Professional Fees,3.50,08/04/2013,rk85116965
00066507,CCS Enforcement Services Ltd,Council Tax,Council Tax,Professional Fees,4.21,04/07/2013,rk85116986
00066507,CCS Enforcement Services Ltd,Council Tax,Council Tax,Professional Fees,-1.89,01/08/2013,rk83116482
00066507,CCS Enforcement Services Ltd,Council Tax,Council Tax,Professional Fees,-3.50,01/08/2013,rk83116483
00066507,CCS Enforcement Services Ltd,Council Tax,Council Tax,Professional Fees,9.83,01/08/2013,rk85116992
00066507,CCS Enforcement Services Ltd,Council Tax,Council Tax,Professional Fees,6.15,22/08/2013,rk85116997
00066507,CCS Enforcement Services Ltd,Council Tax,Council Tax,Professional Fees,6.15,03/10/2013,rk85117004
00066507,CCS Enforcement Services Ltd,Council Tax,Council Tax,Professional Fees,0.61,17/10/2013,rk85117009
00066507,CCS Enforcement Services Ltd,Council Tax,Council Tax,Professional Fees,6.15,28/11/2013,rk85117012
00066507,CCS Enforcement Services Ltd,Council Tax,Council Tax,Professional Fees,0.68,23/12/2013,rk85117017
00066507,CCS Enforcement Services Ltd,Council Tax,Council Tax,Professional Fees,7.18,20/03/2014,rk85117046
00093428,Central Dog Warden Services,Environmental Health,Dog Warden Service,Other Third Party Payments,105.96,01/07/2013,wn82116834
00093428,Central Dog Warden Services,Environmental Health,Dog Warden Service,Other Third Party Payments,374.13,16/09/2013,wn84133555
00093428,Central Dog Warden Services,Environmental Health,Dog Warden Service,Other Third Party Payments,105.96,26/09/2013,wn84133570
00042343,Central Presentations Ltd,Social Inclusion,Social Inclusion,Other Third Party Payments,510.00,13/05/2013,rk84144647
00104618,Centurian Home Improvements Ltd,Current Schemes In Progress,Home Repair Assist.Grants,Renovation Grants (Capital),933.00,16/01/2014,rk84146015
00074683,Cerberus Services Ltd,SDC Infrastructure,SDC Infrastructure (inc. Car Parks),Repairs & Maintenance Expenses,284.40,25/04/2013,rk84144580
00074683,Cerberus Services Ltd,SDC Infrastructure,SDC Infrastructure (inc. Car Parks),Repairs & Maintenance Expenses,"1,374.92",15/08/2013,rk82125424
00074683,Cerberus Services Ltd,SDC Infrastructure,SDC Infrastructure (inc. Car Parks),Repairs & Maintenance Expenses,250.56,24/02/2014,rk84146181
00169530,CGT Lettings,Housing,Homelessness Prevention Fund,Other Third Party Payments,875.00,19/08/2013,wn84133505
00167011,Change My Face,Crime Reduction,Crime Reduction,Computing Expenses,500.00,05/07/2013,rk84144860
00172006,Chantelle Lee,Housing,Homelessness Prevention Fund,Other Third Party Payments,66.00,21/10/2013,wn84133628
00164218,Chapter 1 Charity Ltd,Housing,Temporary Accommodation for Homeless,Other Third Party Payments,"1,111.90",22/04/2013,wn84133207
00164218,Chapter 1 Charity Ltd,Housing,Temporary Accommodation for Homeless,Other Third Party Payments,860.00,15/07/2013,wn84133421
00164218,Chapter 1 Charity Ltd,Housing,Temporary Accommodation for Homeless,Other Third Party Payments,776.00,15/07/2013,wn84133422
00164218,Chapter 1 Charity Ltd,Housing,Temporary Accommodation for Homeless,Other Third Party Payments,"1,072.00",29/07/2013,wn84133450
00164218,Chapter 1 Charity Ltd,Housing,Temporary Accommodation for Homeless,Other Third Party Payments,"1,330.00",05/08/2013,wn84133464
00164218,Chapter 1 Charity Ltd,Housing,Temporary Accommodation for Homeless,Other Third Party Payments,149.00,28/11/2013,wn84133740
00164218,Chapter 1 Charity Ltd,Housing,Temporary Accommodation for Homeless,Other Third Party Payments,875.00,03/02/2014,wn84133888
00164218,Chapter 1 Charity Ltd,Housing,Temporary Accommodation for Homeless,Other Third Party Payments,"1,065.93",13/02/2014,wn84133908
00164218,Chapter 1 Charity Ltd,Housing,Temporary Accommodation for Homeless,Other Third Party Payments,687.98,20/03/2014,wn84133992
00075174,Charlecote Village Hall,Creditors,WCC Elections May 2013,Cash Payments,100.00,10/06/2013,yq84119797
00173704,Charlotte Sainsbury Plaice,Housing,Rent Guarentee/Express Scheme,Other Third Party Payments,625.00,12/12/2013,wn84133767
00173704,Charlotte Sainsbury Plaice,Housing,Rent Guarentee/Express Scheme,Other Third Party Payments,625.00,12/12/2013,wn84133768
,CHARTERED INST OF,HR and Training,Training Technical Services ,Professional Subs - Employees,159.00,16/07/2013 ,4262
,CHARTERED INST OF,HR and Training,Post Entry Training,Professional Subs - Employees,193.00,09/12/2013 ,4920
00005267,Chartered Institute Of Housing,Housing,Homelessness,Indirect Employee Expenses,90.83,05/08/2013,rk84145107
00005267,Chartered Institute Of Housing,HR and Training,"Business, Housing & Revenues Training",Expenses,438.00,02/09/2013,rk84145258
00005267,Chartered Institute Of Housing,Housing,Homelessness,Indirect Employee Expenses,286.00,23/12/2013,rk84145907
00005267,Chartered Institute Of Housing,Housing,Homelessness,Indirect Employee Expenses,225.00,23/12/2013,rk84145908
00005267,Chartered Institute Of Housing,Policy,Hsg Enabling Activities,Indirect Employee Expenses,296.00,23/12/2013,rk84145906
00005267,Chartered Institute Of Housing,Policy,Hsg Enabling Activities,Indirect Employee Expenses,296.00,23/12/2013,rk84145911
00005267,Chartered Institute Of Housing,Policy,Hsg Enabling Activities,Indirect Employee Expenses,296.00,10/02/2014,rk84146121
00005267,Chartered Institute Of Housing,HR and Training,"Business, Housing & Revenues Training",Indirect Employee Expenses,308.40,27/03/2014,wn82117002
00085177,Chartered Institute of Personnel & Dev,HR and Training,Human Resources,Indirect Employee Expenses,138.00,13/06/2013,rk84144814
00085177,Chartered Institute of Personnel & Dev,HR and Training,Human Resources,Indirect Employee Expenses,138.00,01/07/2013,rk84144897
00085177,Chartered Institute of Personnel & Dev,HR and Training,Human Resources,Indirect Employee Expenses,138.00,08/08/2013,rk84145125
00014478,Chartered Institute Of Public Relations,CDC Chief Executive,Chief Executive's Unit,Indirect Employee Expenses,210.00,20/12/2013,rk84145884
00006787,Chartered Institution Of Wastes Managem,Refuse Collection,General Operation,Indirect Employee Expenses,231.00,27/01/2014,rk84146063
00025580,Chartered Management Institute,Sports Development,Sports Development,Indirect Employee Expenses,155.00,27/06/2013,vm84132992
00168764,Christine Graham Consultancy Ltd,Crime Reduction,Crime Reduction,Grants & Subscription Expenses,72.00,08/08/2013,rk84145127
,CHRISTOPHER POEL LIMIT,CDC Chief Executive,Civic Expenses,Hospitality - Members,45.00,24/04/2013 ,3861
00082536,Chubb Fire Ltd,Building Services,Elizabeth House,Repairs & Maintenance Expenses,859.72,11/04/2013,vm84132681
00082536,Chubb Fire Ltd,Off-Street Parking,Bridgeway Car Park,Repairs & Maintenance Expenses,108.28,13/05/2013,vm84132782
00082536,Chubb Fire Ltd,Building Services,Elizabeth House,Repairs & Maintenance Expenses,199.98,20/05/2013,vm84132813
00082536,Chubb Fire Ltd,Off-Street Parking,Multi-Storey Car Parks,Repairs & Maintenance Expenses,29.20,20/05/2013,vm84132827
00082536,Chubb Fire Ltd,Building Services,Alcester Area Office,Repairs & Maintenance Expenses,116.08,23/05/2013,vm84132812
00082536,Chubb Fire Ltd,Building Services,Elizabeth House,Repairs & Maintenance Expenses,"1,506.19",30/05/2013,vm84132870
00082536,Chubb Fire Ltd,Off-Street Parking,Multi-Storey Car Parks,Repairs & Maintenance Expenses,145.55,03/06/2013,vm84132891
00082536,Chubb Fire Ltd,Building Services,Alcester Area Office,Repairs & Maintenance Expenses,204.35,27/06/2013,vm84133000
00082536,Chubb Fire Ltd,Building Services,Elizabeth House,Repairs & Maintenance Expenses,401.11,27/06/2013,vm84132990
00082536,Chubb Fire Ltd,Building Services,Elizabeth House,Repairs & Maintenance Expenses,190.94,08/07/2013,vm84133023
00082536,Chubb Fire Ltd,Investment Properties,"The Grange, Southam",Repairs & Maintenance Expenses,180.21,01/08/2013,vm84133116
00082536,Chubb Fire Ltd,Building Services,Alcester Area Office,Repairs & Maintenance Expenses,532.17,08/08/2013,vm84133144
00082536,Chubb Fire Ltd,Building Services,Alcester Area Office,Repairs & Maintenance Expenses,117.82,22/08/2013,vm84133206
00082536,Chubb Fire Ltd,Building Services,Elizabeth House,Repairs & Maintenance Expenses,"4,990.24",05/09/2013,vm82127219
00082536,Chubb Fire Ltd,Building Services,Elizabeth House,Repairs & Maintenance Expenses,"4,990.24",05/09/2013,vm82127220
00082536,Chubb Fire Ltd,Building Services,Elizabeth House,Repairs & Maintenance Expenses,"1,812.75",26/09/2013,vm84133396
00082536,Chubb Fire Ltd,Building Services,Alcester Area Office,Repairs & Maintenance Expenses,204.35,03/10/2013,vm84133445
